Body,Name of Body,Date,Transaction Number,Invoice Number,Amount,Supplier Name,Supplier ID,VAT Reg no,Expense Area,Expense Type,Expense Code,Creditor Type
18,Devon County Council,05/09/2012,CFADRES30067813,REDACTED UNDER DP ACT,1424,18 MARINE PARADE,265062,,People Services,Care Spot - Private (3rd),5701,B
18,Devon County Council,19/09/2012,CFADRES30068482,REDACTED UNDER DP ACT,1424,18 MARINE PARADE,265062,,People Services,Care Spot - Private (3rd),5701,B
18,Devon County Council,05/09/2012,CFADRES30067628,REDACTED UNDER DP ACT,5180.84,AARON COURT,173212,,People Services,Care Spot - Private (3rd),5701,B
18,Devon County Council,19/09/2012,CFADRES30068299,REDACTED UNDER DP ACT,5180.84,AARON COURT,173212,,People Services,Care Spot - Private (3rd),5701,B
18,Devon County Council,05/09/2012,CFADRES30067902,REDACTED UNDER DP ACT,6790.12,ABBEYFIELD - SHANDFORD,292973,231972268,People Services,Care Spot - Private (3rd),5701,B
18,Devon County Council,19/09/2012,CFADRES30068572,REDACTED UNDER DP ACT,7684.12,ABBEYFIELD - SHANDFORD,292973,231972268,People Services,Care Spot - Private (3rd),5701,B
18,Devon County Council,05/09/2012,CFADRES30067285,REDACTED UNDER DP ACT,6150.36,ABBEYFIELD E DEV EXTRA CARE SOC,88511,,People Services,Care Spot - Private (3rd),5701,B
18,Devon County Council,19/09/2012,CFADRES30067960,REDACTED UNDER DP ACT,4288.48,ABBEYFIELD E DEV EXTRA CARE SOC,88511,,People Services,Care Spot - Private (3rd),5701,B
18,Devon County Council,05/09/2012,CFADRES30067556,REDACTED UNDER DP ACT,1543.8,ACTION ON HEARING LOSS,121442,,People Services,Care Spot - Private (3rd),5701,B
18,Devon County Council,19/09/2012,CFADRES30068228,REDACTED UNDER DP ACT,1543.8,ACTION ON HEARING LOSS,121442,,People Services,Care Spot - Private (3rd),5701,B
18,Devon County Council,05/09/2012,CFADRES30067365,REDACTED UNDER DP ACT,18743.9,ADELAIDE LODGE CARE HOME PRTNSHP,89773,,People Services,Care Spot - Private (3rd),5701,B
18,Devon County Council,19/09/2012,CFADRES30068040,REDACTED UNDER DP ACT,20136.19,ADELAIDE LODGE CARE HOME PRTNSHP,89773,,People Services,Care Spot - Private (3rd),5701,B
18,Devon County Council,05/09/2012,CFADRES30067841,REDACTED UNDER DP ACT,782,ADL CARE - T/A JUBILEE HOUSE,278152,,People Services,Care Spot - Private (3rd),5701,B
18,Devon County Council,19/09/2012,CFADRES30068510,REDACTED UNDER DP ACT,782,ADL CARE - T/A JUBILEE HOUSE,278152,,People Services,Care Spot - Private (3rd),5701,B
18,Devon County Council,17/09/2012,CFADDOM30043156,REDACTED UNDER DP ACT,1647.38,ADVENT CARE TEAM LTD,168316,,People Services,Care Spot - Private (3rd),5701,B
18,Devon County Council,17/09/2012,CFADDOM30043160,REDACTED UNDER DP ACT,639.1,ADVENT CARE TEAM LTD,168316,,People Services,Care Spot - Private (3rd),5701,B
18,Devon County Council,17/09/2012,CFADDOM30043162,REDACTED UNDER DP ACT,635.25,ADVENT CARE TEAM LTD,168316,,People Services,Care Spot - Private (3rd),5701,B
18,Devon County Council,17/09/2012,CFADDOM30043164,REDACTED UNDER DP ACT,646.8,ADVENT CARE TEAM LTD,168316,,People Services,Care Spot - Private (3rd),5701,B
18,Devon County Council,17/09/2012,CFADDOM30043166,REDACTED UNDER DP ACT,754.6,ADVENT CARE TEAM LTD,168316,,People Services,Care Spot - Private (3rd),5701,B
18,Devon County Council,17/09/2012,CFADDOM30043168,REDACTED UNDER DP ACT,862.4,ADVENT CARE TEAM LTD,168316,,People Services,Care Spot - Private (3rd),5701,B
18,Devon County Council,17/09/2012,CFADDOM30043173,REDACTED UNDER DP ACT,688.08,ADVENT CARE TEAM LTD,168316,,People Services,Care Spot - Private (3rd),5701,B
18,Devon County Council,17/09/2012,CFADDOM30043177,REDACTED UNDER DP ACT,523.6,ADVENT CARE TEAM LTD,168316,,People Services,Care Spot - Private (3rd),5701,B
18,Devon County Council,17/09/2012,CFADDOM30043180,REDACTED UNDER DP ACT,904.02,ADVENT CARE TEAM LTD,168316,,People Services,Care Spot - Private (3rd),5701,B
18,Devon County Council,17/09/2012,CFADDOM30043185,REDACTED UNDER DP ACT,831.22,ADVENT CARE TEAM LTD,168316,,People Services,Care Spot - Private (3rd),5701,B
18,Devon County Council,17/09/2012,CFADDOM30043187,REDACTED UNDER DP ACT,539,ADVENT CARE TEAM LTD,168316,,People Services,Care Spot - Private (3rd),5701,B
18,Devon County Council,17/09/2012,CFADDOM30043188,REDACTED UNDER DP ACT,519.75,ADVENT CARE TEAM LTD,168316,,People Services,Care Spot - Private (3rd),5701,B
18,Devon County Council,17/09/2012,CFADDOM30043193,REDACTED UNDER DP ACT,639.1,ADVENT CARE TEAM LTD,168316,,People Services,Care Spot - Private (3rd),5701,B
18,Devon County Council,17/09/2012,CFADDOM30043195,REDACTED UNDER DP ACT,512.4,ADVENT CARE TEAM LTD,168316,,People Services,Care Spot - Private (3rd),5701,B
18,Devon County Council,17/09/2012,CFADDOM30043202,REDACTED UNDER DP ACT,525,ADVENT CARE TEAM LTD,168316,,People Services,Care Spot - Private (3rd),5701,B
18,Devon County Council,17/09/2012,CFADDOM30043203,REDACTED UNDER DP ACT,558.75,ADVENT CARE TEAM LTD,168316,,People Services,Care Spot - Private (3rd),5701,B
18,Devon County Council,17/09/2012,CFADDOM30043205,REDACTED UNDER DP ACT,558.92,ADVENT CARE TEAM LTD,168316,,People Services,Care Spot - Private (3rd),5701,B
18,Devon County Council,17/09/2012,CFADDOM30043208,REDACTED UNDER DP ACT,523.32,ADVENT CARE TEAM LTD,168316,,People Services,Care Spot - Private (3rd),5701,B
18,Devon County Council,17/09/2012,CFADDOM30043209,REDACTED UNDER DP ACT,614.88,ADVENT CARE TEAM LTD,168316,,People Services,Care Spot - Private (3rd),5701,B
18,Devon County Council,17/09/2012,CFADDOM30043210,REDACTED UNDER DP ACT,5152.65,ADVENT CARE TEAM LTD,168316,,People Services,Care Spot - Private (3rd),5701,B
18,Devon County Council,24/09/2012,CFADDOM30043768,REDACTED UNDER DP ACT,1208.9,ADVENT CARE TEAM LTD,168316,,People Services,Care Spot - Private (3rd),5701,B
18,Devon County Council,05/09/2012,CFSUPP30171043,REDACTED UNDER DP ACT,1203.02,ALABARE CHRISTIAN CARE CENTRES,226086,,People Services,Accomodation Based Services (3rd),5707,B
18,Devon County Council,05/09/2012,CFADRES30067269,REDACTED UNDER DP ACT,13528.06,ALBAN HOUSE,87208,,People Services,Care Spot - Private (3rd),5701,B
18,Devon County Council,19/09/2012,CFADRES30067944,REDACTED UNDER DP ACT,13528.06,ALBAN HOUSE,87208,,People Services,Care Spot - Private (3rd),5701,B
18,Devon County Council,05/09/2012,CFADRES30067478,REDACTED UNDER DP ACT,2509.32,ALLIED BACK-UP PROJECT,90897,,People Services,Care Spot - Private (3rd),5701,B
18,Devon County Council,19/09/2012,CFADRES30068151,REDACTED UNDER DP ACT,2509.32,ALLIED BACK-UP PROJECT,90897,,People Services,Care Spot - Private (3rd),5701,B
18,Devon County Council,05/09/2012,CFADRES30067380,REDACTED UNDER DP ACT,5507.6,ALPHINGTON LODGE RESIDENTIAL HME,89941,,People Services,Care Spot - Private (3rd),5701,B
18,Devon County Council,19/09/2012,CFADRES30068054,REDACTED UNDER DP ACT,6186.17,ALPHINGTON LODGE RESIDENTIAL HME,89941,,People Services,Care Spot - Private (3rd),5701,B
18,Devon County Council,05/09/2012,CFADRES30067410,REDACTED UNDER DP ACT,1880.56,ALPINE LODGE RCH LTD,90255,,People Services,Care Spot - Private (3rd),5701,B
18,Devon County Council,19/09/2012,CFADRES30068083,REDACTED UNDER DP ACT,1880.56,ALPINE LODGE RCH LTD,90255,,People Services,Care Spot - Private (3rd),5701,B
18,Devon County Council,17/09/2012,CFADDOM30043278,REDACTED UNDER DP ACT,885.36,ANGEL HOMECARE,210685,,People Services,Care Spot - Private (3rd),5701,B
18,Devon County Council,17/09/2012,CFADDOM30043284,REDACTED UNDER DP ACT,2570.4,ANGEL HOMECARE,210685,,People Services,Care Spot - Private (3rd),5701,B
18,Devon County Council,17/09/2012,CFADDOM30043286,REDACTED UNDER DP ACT,740.48,ANGEL HOMECARE,210685,,People Services,Care Spot - Private (3rd),5701,B
18,Devon County Council,17/09/2012,CFADDOM30043288,REDACTED UNDER DP ACT,899.64,ANGEL HOMECARE,210685,,People Services,Care Spot - Private (3rd),5701,B
18,Devon County Council,17/09/2012,CFADDOM30043290,REDACTED UNDER DP ACT,699.72,ANGEL HOMECARE,210685,,People Services,Care Spot - Private (3rd),5701,B
18,Devon County Council,17/09/2012,CFADDOM30043291,REDACTED UNDER DP ACT,599.76,ANGEL HOMECARE,210685,,People Services,Care Spot - Private (3rd),5701,B
18,Devon County Council,17/09/2012,CFADDOM30043293,REDACTED UNDER DP ACT,614.04,ANGEL HOMECARE,210685,,People Services,Care Spot - Private (3rd),5701,B
18,Devon County Council,17/09/2012,CFADDOM30043302,REDACTED UNDER DP ACT,797.44,ANGEL HOMECARE,210685,,People Services,Care Spot - Private (3rd),5701,B
18,Devon County Council,17/09/2012,CFADDOM30043304,REDACTED UNDER DP ACT,1256.64,ANGEL HOMECARE,210685,,People Services,Care Spot - Private (3rd),5701,B
18,Devon County Council,17/09/2012,CFADDOM30043305,REDACTED UNDER DP ACT,811.68,ANGEL HOMECARE,210685,,People Services,Care Spot - Private (3rd),5701,B
18,Devon County Council,17/09/2012,CFADDOM30043311,REDACTED UNDER DP ACT,697.76,ANGEL HOMECARE,210685,,People Services,Care Spot - Private (3rd),5701,B
18,Devon County Council,05/09/2012,CFADRES30067485,REDACTED UNDER DP ACT,12968.61,ANGELA COURT,90966,,People Services,Care Spot - Private (3rd),5701,B
18,Devon County Council,19/09/2012,CFADRES30068158,REDACTED UNDER DP ACT,12435.04,ANGELA COURT,90966,,People Services,Care Spot - Private (3rd),5701,B
18,Devon County Council,05/09/2012,CFADRES30067281,REDACTED UNDER DP ACT,4790.4,ANNING BJ,87559,,People Services,Care Spot - Private (3rd),5701,B
18,Devon County Council,19/09/2012,CFADRES30067956,REDACTED UNDER DP ACT,4790.4,ANNING BJ,87559,,People Services,Care Spot - Private (3rd),5701,B
18,Devon County Council,05/09/2012,CFADRES30067882,REDACTED UNDER DP ACT,793,ARGYLE PARK NH/MARK&LUKE GILBERT,289098,,People Services,Care Spot - Private (3rd),5701,B
18,Devon County Council,19/09/2012,CFADRES30068552,REDACTED UNDER DP ACT,793,ARGYLE PARK NH/MARK&LUKE GILBERT,289098,,People Services,Care Spot - Private (3rd),5701,B
18,Devon County Council,05/09/2012,CFADRES30067735,REDACTED UNDER DP ACT,10866.28,ARK CARE HOMES LTD (CF PAYMENTS),229190,,People Services,Care Spot - Private (3rd),5701,B
18,Devon County Council,19/09/2012,CFADRES30068407,REDACTED UNDER DP ACT,10866.28,ARK CARE HOMES LTD (CF PAYMENTS),229190,,People Services,Care Spot - Private (3rd),5701,B
18,Devon County Council,12/09/2012,CFADDAY30019987,REDACTED UNDER DP ACT,2211.2,AROHA HOUSE LIMITED,216752,,People Services,Individualised Support - Private (3rd),5706,B
18,Devon County Council,12/09/2012,CFADDAY30019988,REDACTED UNDER DP ACT,2211.2,AROHA HOUSE LIMITED,216752,,People Services,Individualised Support - Private (3rd),5706,B
18,Devon County Council,12/09/2012,CFADDAY30019989,REDACTED UNDER DP ACT,2211.2,AROHA HOUSE LIMITED,216752,,People Services,Individualised Support - Private (3rd),5706,B
18,Devon County Council,12/09/2012,CFADDAY30019990,REDACTED UNDER DP ACT,2211.2,AROHA HOUSE LIMITED,216752,,People Services,Individualised Support - Private (3rd),5706,B
18,Devon County Council,12/09/2012,CFADDAY30019991,REDACTED UNDER DP ACT,2211.2,AROHA HOUSE LIMITED,216752,,People Services,Care Spot - Private (3rd),5701,B
18,Devon County Council,05/09/2012,CFADRES30067686,REDACTED UNDER DP ACT,4488.52,ARUNDEL HOUSE,201385,,People Services,Care Spot - Private (3rd),5701,B
18,Devon County Council,19/09/2012,CFADRES30068003,REDACTED UNDER DP ACT,15245.96,ARUNDEL HOUSE,89227,,People Services,Care Spot - Private (3rd),5701,B
18,Devon County Council,19/09/2012,CFADRES30068358,REDACTED UNDER DP ACT,4488.52,ARUNDEL HOUSE,201385,,People Services,Care Spot - Private (3rd),5701,B
18,Devon County Council,05/09/2012,CFADRES30067849,REDACTED UNDER DP ACT,882,ASHCROFT HOUSE LEEDS,280636,,People Services,Care Spot - Private (3rd),5701,B
18,Devon County Council,19/09/2012,CFADRES30068518,REDACTED UNDER DP ACT,882,ASHCROFT HOUSE LEEDS,280636,,People Services,Care Spot - Private (3rd),5701,B
18,Devon County Council,05/09/2012,CFADRES30067855,REDACTED UNDER DP ACT,1600,ASHEBOROUGH HOUSE CARE CENTRE,281379,,People Services,Care Spot - Private (3rd),5701,B
18,Devon County Council,19/09/2012,CFADRES30068524,REDACTED UNDER DP ACT,1600,ASHEBOROUGH HOUSE CARE CENTRE,281379,,People Services,Care Spot - Private (3rd),5701,B
18,Devon County Council,05/09/2012,CFADRES30067630,REDACTED UNDER DP ACT,13241.86,ASHFIELD RESIDENTIAL HOME,173331,,People Services,Care Spot - Private (3rd),5701,B
18,Devon County Council,19/09/2012,CFADRES30068301,REDACTED UNDER DP ACT,13241.86,ASHFIELD RESIDENTIAL HOME,173331,,People Services,Care Spot - Private (3rd),5701,B
18,Devon County Council,05/09/2012,CFADRES30067312,REDACTED UNDER DP ACT,3477.52,ASHLEIGH MANOR,89097,,People Services,Care Spot - Private (3rd),5701,B
18,Devon County Council,19/09/2012,CFADRES30067987,REDACTED UNDER DP ACT,3477.52,ASHLEIGH MANOR,89097,,People Services,Care Spot - Private (3rd),5701,B
18,Devon County Council,05/09/2012,CFADRES30067434,REDACTED UNDER DP ACT,2880.34,ASSISSI COMMUNITY CARE,90460,,People Services,Care Spot - Private (3rd),5701,B
18,Devon County Council,19/09/2012,CFADRES30068107,REDACTED UNDER DP ACT,2880.34,ASSISSI COMMUNITY CARE,90460,,People Services,Care Spot - Private (3rd),5701,B
18,Devon County Council,03/09/2012,CFADDAY30019467,REDACTED UNDER DP ACT,3611,ASSISTED LIVING SOUTH WEST,231671,,People Services,Individualised Support - Private (3rd),5706,B
18,Devon County Council,03/09/2012,CFADDAY30019468,REDACTED UNDER DP ACT,1660,ASSISTED LIVING SOUTH WEST,231671,,People Services,Individualised Support - Private (3rd),5706,B
18,Devon County Council,03/09/2012,CFADDAY30019469,REDACTED UNDER DP ACT,2084,ASSISTED LIVING SOUTH WEST,231671,,People Services,Individualised Support - Private (3rd),5706,B
18,Devon County Council,03/09/2012,CFADDAY30019470,REDACTED UNDER DP ACT,972,ASSISTED LIVING SOUTH WEST,231671,,People Services,Individualised Support - Private (3rd),5706,B
18,Devon County Council,03/09/2012,CFADDAY30019471,REDACTED UNDER DP ACT,972,ASSISTED LIVING SOUTH WEST,231671,,People Services,Individualised Support - Private (3rd),5706,B
18,Devon County Council,03/09/2012,CFADDAY30019472,REDACTED UNDER DP ACT,3650.96,ASSISTED LIVING SOUTH WEST,231671,,People Services,Individualised Support - Private (3rd),5706,B
18,Devon County Council,03/09/2012,CFADDAY30019473,REDACTED UNDER DP ACT,1404,ASSISTED LIVING SOUTH WEST,231671,,People Services,Individualised Support - Private (3rd),5706,B
18,Devon County Council,03/09/2012,CFADDAY30019474,REDACTED UNDER DP ACT,1681,ASSISTED LIVING SOUTH WEST,231671,,People Services,Individualised Support - Private (3rd),5706,B
18,Devon County Council,03/09/2012,CFADDAY30019475,REDACTED UNDER DP ACT,4592,ASSISTED LIVING SOUTH WEST,231671,,People Services,Individualised Support - Private (3rd),5706,B
18,Devon County Council,03/09/2012,CFADDAY30019476,REDACTED UNDER DP ACT,3226.96,ASSISTED LIVING SOUTH WEST,231671,,People Services,Individualised Support - Private (3rd),5706,B
18,Devon County Council,05/09/2012,CFADDAY30019514,REDACTED UNDER DP ACT,3226.96,ASSISTED LIVING SOUTH WEST,231671,,People Services,Individualised Support - Private (3rd),5706,B
18,Devon County Council,05/09/2012,CFADDAY30019515,REDACTED UNDER DP ACT,3226.96,ASSISTED LIVING SOUTH WEST,231671,,People Services,Individualised Support - Private (3rd),5706,B
18,Devon County Council,05/09/2012,CFADDAY30019516,REDACTED UNDER DP ACT,3226.96,ASSISTED LIVING SOUTH WEST,231671,,People Services,Individualised Support - Private (3rd),5706,B
18,Devon County Council,10/09/2012,CFADDAY30019735,REDACTED UNDER DP ACT,1464,ASSISTED LIVING SOUTH WEST,231671,,People Services,Individualised Support - Private (3rd),5706,B
18,Devon County Council,10/09/2012,CFADDAY30019736,REDACTED UNDER DP ACT,2733,ASSISTED LIVING SOUTH WEST,231671,,People Services,Individualised Support - Private (3rd),5706,B
18,Devon County Council,10/09/2012,CFADDAY30019737,REDACTED UNDER DP ACT,2976,ASSISTED LIVING SOUTH WEST,231671,,People Services,Individualised Support - Private (3rd),5706,B
18,Devon County Council,10/09/2012,CFADDAY30019739,REDACTED UNDER DP ACT,3264,ASSISTED LIVING SOUTH WEST,231671,,People Services,Individualised Support - Private (3rd),5706,B
18,Devon County Council,10/09/2012,CFADDAY30019740,REDACTED UNDER DP ACT,3264,ASSISTED LIVING SOUTH WEST,231671,,People Services,Individualised Support - Private (3rd),5706,B
18,Devon County Council,10/09/2012,CFADDAY30019741,REDACTED UNDER DP ACT,3264,ASSISTED LIVING SOUTH WEST,231671,,People Services,Individualised Support - Private (3rd),5706,B
18,Devon County Council,10/09/2012,CFADDAY30019742,REDACTED UNDER DP ACT,1288,ASSISTED LIVING SOUTH WEST,231671,,People Services,Individualised Support - Private (3rd),5706,B
18,Devon County Council,10/09/2012,CFADDAY30019743,REDACTED UNDER DP ACT,1288,ASSISTED LIVING SOUTH WEST,231671,,People Services,Individualised Support - Private (3rd),5706,B
18,Devon County Council,10/09/2012,CFADDAY30019744,REDACTED UNDER DP ACT,2661,ASSISTED LIVING SOUTH WEST,231671,,People Services,Individualised Support - Private (3rd),5706,B
18,Devon County Council,10/09/2012,CFADDAY30019745,REDACTED UNDER DP ACT,2517,ASSISTED LIVING SOUTH WEST,231671,,People Services,Individualised Support - Private (3rd),5706,B
18,Devon County Council,10/09/2012,CFADDAY30019746,REDACTED UNDER DP ACT,2471.56,ASSISTED LIVING SOUTH WEST,231671,,People Services,Individualised Support - Private (3rd),5706,B
18,Devon County Council,12/09/2012,CFADDAY30019995,REDACTED UNDER DP ACT,5565.84,ASSISTED LIVING SOUTH WEST,231671,,People Services,Individualised Support - Private (3rd),5706,B
18,Devon County Council,12/09/2012,CFADDAY30019996,REDACTED UNDER DP ACT,540,ASSISTED LIVING SOUTH WEST,231671,,People Services,Individualised Support - Private (3rd),5706,B
18,Devon County Council,12/09/2012,CFADDAY30019998,REDACTED UNDER DP ACT,1120.5,ASSISTED LIVING SOUTH WEST,231671,,People Services,Individualised Support - Private (3rd),5706,B
18,Devon County Council,19/09/2012,CFADDAY30020327,REDACTED UNDER DP ACT,972,ASSISTED LIVING SOUTH WEST,231671,,People Services,Individualised Support - Private (3rd),5706,B
18,Devon County Council,19/09/2012,CFADDAY30020328,REDACTED UNDER DP ACT,4592,ASSISTED LIVING SOUTH WEST,231671,,People Services,Individualised Support - Private (3rd),5706,B
18,Devon County Council,19/09/2012,CFADDAY30020329,REDACTED UNDER DP ACT,3611,ASSISTED LIVING SOUTH WEST,231671,,People Services,Individualised Support - Private (3rd),5706,B
18,Devon County Council,19/09/2012,CFADDAY30020330,REDACTED UNDER DP ACT,4949,ASSISTED LIVING SOUTH WEST,231671,,People Services,Individualised Support - Private (3rd),5706,B
18,Devon County Council,19/09/2012,CFADDAY30020332,REDACTED UNDER DP ACT,3264,ASSISTED LIVING SOUTH WEST,231671,,People Services,Individualised Support - Private (3rd),5706,B
18,Devon County Council,19/09/2012,CFADDAY30020333,REDACTED UNDER DP ACT,3264,ASSISTED LIVING SOUTH WEST,231671,,People Services,Individualised Support - Private (3rd),5706,B
18,Devon County Council,19/09/2012,CFADDAY30020334,REDACTED UNDER DP ACT,3264,ASSISTED LIVING SOUTH WEST,231671,,People Services,Individualised Support - Private (3rd),5706,B
18,Devon County Council,19/09/2012,CFADDAY30020336,REDACTED UNDER DP ACT,3650.96,ASSISTED LIVING SOUTH WEST,231671,,People Services,Individualised Support - Private (3rd),5706,B
18,Devon County Council,19/09/2012,CFADDAY30020337,REDACTED UNDER DP ACT,7560,ASSISTED LIVING SOUTH WEST,231671,,People Services,Individualised Support - Private (3rd),5706,B
18,Devon County Council,19/09/2012,CFADDAY30020338,REDACTED UNDER DP ACT,1404,ASSISTED LIVING SOUTH WEST,231671,,People Services,Individualised Support - Private (3rd),5706,B
18,Devon County Council,19/09/2012,CFADDAY30020339,REDACTED UNDER DP ACT,1681,ASSISTED LIVING SOUTH WEST,231671,,People Services,Individualised Support - Private (3rd),5706,B
18,Devon County Council,19/09/2012,CFADDAY30020340,REDACTED UNDER DP ACT,3226.96,ASSISTED LIVING SOUTH WEST,231671,,People Services,Individualised Support - Private (3rd),5706,B
18,Devon County Council,24/09/2012,CFADDAY30020508,REDACTED UNDER DP ACT,2084,ASSISTED LIVING SOUTH WEST,231671,,People Services,Individualised Support - Private (3rd),5706,B
18,Devon County Council,24/09/2012,CFADDAY30020509,REDACTED UNDER DP ACT,1660,ASSISTED LIVING SOUTH WEST,231671,,People Services,Individualised Support - Private (3rd),5706,B
18,Devon County Council,26/09/2012,CFADDAY30020600,REDACTED UNDER DP ACT,3226.96,ASSISTED LIVING SOUTH WEST,231671,,People Services,Individualised Support - Private (3rd),5706,B
18,Devon County Council,26/09/2012,CFADDAY30020605,REDACTED UNDER DP ACT,3226.96,ASSISTED LIVING SOUTH WEST,231671,,People Services,Individualised Support - Private (3rd),5706,B
18,Devon County Council,26/09/2012,CFADDAY30020607,REDACTED UNDER DP ACT,3226.96,ASSISTED LIVING SOUTH WEST,231671,,People Services,Individualised Support - Private (3rd),5706,B
18,Devon County Council,03/09/2012,CFADDOM30042367,REDACTED UNDER DP ACT,2268,ASSISTED LIVING SOUTH WEST,231671,,People Services,Care Spot - Private (3rd),5701,B
18,Devon County Council,12/09/2012,CFADDOM30042970,REDACTED UNDER DP ACT,3139,ASSISTED LIVING SOUTH WEST,231671,,People Services,Care Spot - Private (3rd),5701,B
18,Devon County Council,17/09/2012,CFADDOM30043347,REDACTED UNDER DP ACT,756,ASSISTED LIVING SOUTH WEST,231671,,People Services,Care Spot - Private (3rd),5701,B
18,Devon County Council,17/09/2012,CFADDOM30043348,REDACTED UNDER DP ACT,756,ASSISTED LIVING SOUTH WEST,231671,,People Services,Care Spot - Private (3rd),5701,B
18,Devon County Council,17/09/2012,CFADDOM30043349,REDACTED UNDER DP ACT,756,ASSISTED LIVING SOUTH WEST,231671,,People Services,Care Spot - Private (3rd),5701,B
18,Devon County Council,17/09/2012,CFADDOM30043350,REDACTED UNDER DP ACT,756,ASSISTED LIVING SOUTH WEST,231671,,People Services,Care Spot - Private (3rd),5701,B
18,Devon County Council,19/09/2012,CFADDOM30043539,REDACTED UNDER DP ACT,2268,ASSISTED LIVING SOUTH WEST,231671,,People Services,Care Spot - Private (3rd),5701,B
18,Devon County Council,24/09/2012,CFADDOM30043795,REDACTED UNDER DP ACT,756,ASSISTED LIVING SOUTH WEST,231671,,People Services,Care Spot - Private (3rd),5701,B
18,Devon County Council,05/09/2012,CFADRES30067751,REDACTED UNDER DP ACT,1012.8,ASTOR HALL,231831,,People Services,Care Spot - Private (3rd),5701,B
18,Devon County Council,19/09/2012,CFADRES30068423,REDACTED UNDER DP ACT,1012.8,ASTOR HALL,231831,,People Services,Care Spot - Private (3rd),5701,B
18,Devon County Council,10/09/2012,CFADDAY30019725,REDACTED UNDER DP ACT,576,ATLANTIC SUPPORT (DEVON) LTD,202818,,People Services,Individualised Support - Private (3rd),5706,B
18,Devon County Council,12/09/2012,CFADDAY30019977,REDACTED UNDER DP ACT,1092,ATLANTIC SUPPORT (DEVON) LTD,202818,,People Services,Individualised Support - Private (3rd),5706,B
18,Devon County Council,12/09/2012,CFADDAY30019978,REDACTED UNDER DP ACT,910,ATLANTIC SUPPORT (DEVON) LTD,202818,,People Services,Individualised Support - Private (3rd),5706,B
18,Devon County Council,12/09/2012,CFADDAY30019979,REDACTED UNDER DP ACT,1155,ATLANTIC SUPPORT (DEVON) LTD,202818,,People Services,Individualised Support - Private (3rd),5706,B
18,Devon County Council,12/09/2012,CFADDAY30019980,REDACTED UNDER DP ACT,1092,ATLANTIC SUPPORT (DEVON) LTD,202818,,People Services,Individualised Support - Private (3rd),5706,B
18,Devon County Council,12/09/2012,CFADDAY30019981,REDACTED UNDER DP ACT,624,ATLANTIC SUPPORT (DEVON) LTD,202818,,People Services,Individualised Support - Private (3rd),5706,B
18,Devon County Council,12/09/2012,CFADDAY30019982,REDACTED UNDER DP ACT,1092,ATLANTIC SUPPORT (DEVON) LTD,202818,,People Services,Individualised Support - Private (3rd),5706,B
18,Devon County Council,19/09/2012,CFADRES30068134,REDACTED UNDER DP ACT,4687.72,AUSTIN C-UNDER BARLEY CLOSE R HM,90702,,People Services,Care Spot - Private (3rd),5701,B
18,Devon County Council,05/09/2012,CFADRES30067572,REDACTED UNDER DP ACT,689.74,AVELAND COURT,142843,,People Services,Care Spot - Private (3rd),5701,B
18,Devon County Council,19/09/2012,CFADRES30068244,REDACTED UNDER DP ACT,689.74,AVELAND COURT,142843,,People Services,Care Spot - Private (3rd),5701,B
18,Devon County Council,05/09/2012,CFADRES30067548,REDACTED UNDER DP ACT,14619.65,AVENS CARE HOMES LTD,118327,,People Services,Care Spot - Private (3rd),5701,B
18,Devon County Council,19/09/2012,CFADRES30068220,REDACTED UNDER DP ACT,13256.08,AVENS CARE HOMES LTD,118327,,People Services,Care Spot - Private (3rd),5701,B
18,Devon County Council,05/09/2012,CFADRES30067856,REDACTED UNDER DP ACT,750,AVERLEA RESIDENTIAL HOME,282401,,People Services,Care Spot - Private (3rd),5701,B
18,Devon County Council,19/09/2012,CFADRES30068525,REDACTED UNDER DP ACT,750,AVERLEA RESIDENTIAL HOME,282401,,People Services,Care Spot - Private (3rd),5701,B
18,Devon County Council,05/09/2012,CFADRES30067817,REDACTED UNDER DP ACT,952,AVON LEA NURSING HOME,267854,,People Services,Care Spot - Private (3rd),5701,B
18,Devon County Council,19/09/2012,CFADRES30068486,REDACTED UNDER DP ACT,952,AVON LEA NURSING HOME,267854,,People Services,Care Spot - Private (3rd),5701,B
18,Devon County Council,24/09/2012,CFADDOM30043673,REDACTED UNDER DP ACT,26882.12,AXE VALLEY CARE LTD,202776,,People Services,Care Spot - Private (3rd),5701,B
18,Devon County Council,24/09/2012,CFADDOM30043674,REDACTED UNDER DP ACT,21366.61,AXE VALLEY CARE LTD,202776,,People Services,Care Spot - Private (3rd),5701,B
18,Devon County Council,24/09/2012,CFADDOM30043675,REDACTED UNDER DP ACT,18992.65,AXE VALLEY CARE LTD,202776,,People Services,Care Spot - Private (3rd),5701,B
18,Devon County Council,24/09/2012,CFADDOM30043676,REDACTED UNDER DP ACT,7813.08,AXE VALLEY CARE LTD,202776,,People Services,Care Spot - Private (3rd),5701,B
18,Devon County Council,05/09/2012,CFADRES30067425,REDACTED UNDER DP ACT,6532.7,BARCHESTER HEALTHCARE HOMES LTD,90416,,People Services,Care Spot - Private (3rd),5701,B
18,Devon County Council,19/09/2012,CFADRES30068097,REDACTED UNDER DP ACT,13572.17,BARCHESTER HEALTHCARE HOMES LTD,90416,,People Services,Care Spot - Private (3rd),5701,B
18,Devon County Council,19/09/2012,CFADRES30068098,REDACTED UNDER DP ACT,5575.05,BARCHESTER HEALTHCARE HOMES LTD,90416,,People Services,Care Spot - Private (3rd),5701,B
18,Devon County Council,05/09/2012,CFADRES30067282,REDACTED UNDER DP ACT,1282.6,BARCHESTER HEALTHCARE H-RE MANOR,87581,,People Services,Care Spot - Private (3rd),5701,B
18,Devon County Council,19/09/2012,CFADRES30067957,REDACTED UNDER DP ACT,1282.6,BARCHESTER HEALTHCARE H-RE MANOR,87581,,People Services,Care Spot - Private (3rd),5701,B
18,Devon County Council,05/09/2012,CFADRES30067713,REDACTED UNDER DP ACT,812.9,BARHAM HOUSE NURSING HOME,214737,,People Services,Care Spot - Private (3rd),5701,B
18,Devon County Council,19/09/2012,CFADRES30068385,REDACTED UNDER DP ACT,812.9,BARHAM HOUSE NURSING HOME,214737,,People Services,Care Spot - Private (3rd),5701,B
18,Devon County Council,05/09/2012,CFADRES30067320,REDACTED UNDER DP ACT,1986.76,BARKER KI & GM T/A DAWN R C H,89142,,People Services,Care Spot - Private (3rd),5701,B
18,Devon County Council,19/09/2012,CFADRES30067995,REDACTED UNDER DP ACT,1986.76,BARKER KI & GM T/A DAWN R C H,89142,,People Services,Care Spot - Private (3rd),5701,B
18,Devon County Council,05/09/2012,CFADRES30067337,REDACTED UNDER DP ACT,11741.21,BARN PARK RESIDENTIAL HOME,89354,,People Services,Care Spot - Private (3rd),5701,B
18,Devon County Council,19/09/2012,CFADRES30068012,REDACTED UNDER DP ACT,11800.5,BARN PARK RESIDENTIAL HOME,89354,,People Services,Care Spot - Private (3rd),5701,B
18,Devon County Council,05/09/2012,CFADRES30067618,REDACTED UNDER DP ACT,753.82,BARNFIELD HOUSE,168283,,People Services,Care Spot - Private (3rd),5701,B
18,Devon County Council,19/09/2012,CFADRES30068290,REDACTED UNDER DP ACT,753.82,BARNFIELD HOUSE,168283,,People Services,Care Spot - Private (3rd),5701,B
18,Devon County Council,05/09/2012,CFADRES30067275,REDACTED UNDER DP ACT,5175.3,BARNSTAPLE OLD PEOPLES H A HOSTL,87455,,People Services,Care Spot - Private (3rd),5701,B
18,Devon County Council,19/09/2012,CFADRES30067950,REDACTED UNDER DP ACT,5288.02,BARNSTAPLE OLD PEOPLES H A HOSTL,87455,,People Services,Care Spot - Private (3rd),5701,B
18,Devon County Council,05/09/2012,CFADRES30067639,REDACTED UNDER DP ACT,7507.24,BARTON HOUSE RESIDENTIAL HOME,178688,,People Services,Care Spot - Private (3rd),5701,B
18,Devon County Council,19/09/2012,CFADRES30068310,REDACTED UNDER DP ACT,7507.24,BARTON HOUSE RESIDENTIAL HOME,178688,,People Services,Care Spot - Private (3rd),5701,B
18,Devon County Council,05/09/2012,CFADRES30067703,REDACTED UNDER DP ACT,2490,BARTON LODGE RESIDENTIAL HOME,207195,,People Services,Care Spot - Private (3rd),5701,B
18,Devon County Council,19/09/2012,CFADRES30068375,REDACTED UNDER DP ACT,2490,BARTON LODGE RESIDENTIAL HOME,207195,,People Services,Care Spot - Private (3rd),5701,B
18,Devon County Council,05/09/2012,CFADRES30067500,REDACTED UNDER DP ACT,1939.14,BASCOMBE COURT,97577,,People Services,Care Spot - Private (3rd),5701,B
18,Devon County Council,19/09/2012,CFADRES30068173,REDACTED UNDER DP ACT,1682,BASCOMBE COURT,97577,,People Services,Care Spot - Private (3rd),5701,B
18,Devon County Council,05/09/2012,CFADRES30067414,REDACTED UNDER DP ACT,9101.22,BAXENDALE AM/MRS NB TA AMELIA HS,90280,,People Services,Care Spot - Private (3rd),5701,B
18,Devon County Council,19/09/2012,CFADRES30068087,REDACTED UNDER DP ACT,7954.11,BAXENDALE AM/MRS NB TA AMELIA HS,90280,,People Services,Care Spot - Private (3rd),5701,B
18,Devon County Council,24/09/2012,CFADDOM30043825,REDACTED UNDER DP ACT,761.28,BAY CARE GROUP,262868,,People Services,Care Spot - Private (3rd),5701,B
18,Devon County Council,24/09/2012,CFADDOM30043827,REDACTED UNDER DP ACT,607.56,BAY CARE GROUP,262868,,People Services,Care Spot - Private (3rd),5701,B
18,Devon County Council,24/09/2012,CFADDOM30043829,REDACTED UNDER DP ACT,717.36,BAY CARE GROUP,262868,,People Services,Care Spot - Private (3rd),5701,B
18,Devon County Council,24/09/2012,CFADDOM30043833,REDACTED UNDER DP ACT,691.74,BAY CARE GROUP,262868,,People Services,Care Spot - Private (3rd),5701,B
18,Devon County Council,24/09/2012,CFADDOM30043847,REDACTED UNDER DP ACT,607.56,BAY CARE GROUP,262868,,People Services,Care Spot - Private (3rd),5701,B
18,Devon County Council,05/09/2012,CFADRES30067823,REDACTED UNDER DP ACT,952,BAY TREE LODGE,271222,,People Services,Care Spot - Private (3rd),5701,B
18,Devon County Council,19/09/2012,CFADRES30068492,REDACTED UNDER DP ACT,952,BAY TREE LODGE,271222,,People Services,Care Spot - Private (3rd),5701,B
18,Devon County Council,05/09/2012,CFADRES30067527,REDACTED UNDER DP ACT,10375.22,BE SMART SOUTH WEST LTD,105345,,People Services,Care Spot - Private (3rd),5701,B
18,Devon County Council,19/09/2012,CFADRES30068199,REDACTED UNDER DP ACT,10375.22,BE SMART SOUTH WEST LTD,105345,,People Services,Care Spot - Private (3rd),5701,B
18,Devon County Council,05/09/2012,CFADRES30067482,REDACTED UNDER DP ACT,12628.72,BEACON COURT,90958,,People Services,Care Spot - Private (3rd),5701,B
18,Devon County Council,19/09/2012,CFADRES30068155,REDACTED UNDER DP ACT,10016.71,BEACON COURT,90958,,People Services,Care Spot - Private (3rd),5701,B
18,Devon County Council,05/09/2012,CFADRES30067705,REDACTED UNDER DP ACT,525,BEAUMONT COURT,208221,,People Services,Care Respite - Private (3rd),5703,B
18,Devon County Council,05/09/2012,CFADRES30067307,REDACTED UNDER DP ACT,13654.48,BEECH HOUSE(EXETER)LTD,89053,,People Services,Care Spot - Private (3rd),5701,B
18,Devon County Council,19/09/2012,CFADRES30067982,REDACTED UNDER DP ACT,15754.34,BEECH HOUSE(EXETER)LTD,89053,,People Services,Care Spot - Private (3rd),5701,B
18,Devon County Council,05/09/2012,CFADRES30067731,REDACTED UNDER DP ACT,1014.6,BEECH LAWN NURSING & RES HOME,226788,,People Services,Care Spot - Private (3rd),5701,B
18,Devon County Council,19/09/2012,CFADRES30068403,REDACTED UNDER DP ACT,1014.6,BEECH LAWN NURSING & RES HOME,226788,,People Services,Care Spot - Private (3rd),5701,B
18,Devon County Council,05/09/2012,CFADRES30067602,REDACTED UNDER DP ACT,731.84,BEECHCROFT CARE HOME,159338,,People Services,Care Spot - Private (3rd),5701,B
18,Devon County Council,19/09/2012,CFADRES30068273,REDACTED UNDER DP ACT,731.84,BEECHCROFT CARE HOME,159338,,People Services,Care Spot - Private (3rd),5701,B
18,Devon County Council,05/09/2012,CFADRES30067642,REDACTED UNDER DP ACT,2750,BEECHMOUNT RESIDENTIAL HOME LTD,180408,,People Services,Care Spot - Private (3rd),5701,B
18,Devon County Council,19/09/2012,CFADRES30068313,REDACTED UNDER DP ACT,1100,BEECHMOUNT RESIDENTIAL HOME LTD,180408,,People Services,Care Spot - Private (3rd),5701,B
18,Devon County Council,05/09/2012,CFADRES30067706,REDACTED UNDER DP ACT,10381.81,BELMONT GRANGE,208839,,People Services,Care Spot - Private (3rd),5701,B
18,Devon County Council,19/09/2012,CFADRES30068378,REDACTED UNDER DP ACT,9903.49,BELMONT GRANGE,208839,,People Services,Care Spot - Private (3rd),5701,B
18,Devon County Council,05/09/2012,CFADRES30067381,REDACTED UNDER DP ACT,1310.14,BETTERCARE UK LTD,89948,,People Services,Care Spot - Private (3rd),5701,B
18,Devon County Council,19/09/2012,CFADRES30068055,REDACTED UNDER DP ACT,1310.14,BETTERCARE UK LTD,89948,,People Services,Care Spot - Private (3rd),5701,B
18,Devon County Council,05/09/2012,CFADRES30067694,REDACTED UNDER DP ACT,6710.4,BICKLEIGH DOWN CARE HOME,205626,,People Services,Care Spot - Private (3rd),5701,B
18,Devon County Council,19/09/2012,CFADRES30068366,REDACTED UNDER DP ACT,6710.4,BICKLEIGH DOWN CARE HOME,205626,,People Services,Care Spot - Private (3rd),5701,B
18,Devon County Council,05/09/2012,CFADRES30067471,REDACTED UNDER DP ACT,16817.18,BIDNA HOUSE,90844,,People Services,Care Spot - Private (3rd),5701,B
18,Devon County Council,19/09/2012,CFADRES30068144,REDACTED UNDER DP ACT,15060.66,BIDNA HOUSE,90844,,People Services,Care Spot - Private (3rd),5701,B
18,Devon County Council,05/09/2012,CFADRES30067384,REDACTED UNDER DP ACT,10570.4,BINDON CARE LTD,89979,,People Services,Care Spot - Private (3rd),5701,B
18,Devon County Council,19/09/2012,CFADRES30068058,REDACTED UNDER DP ACT,10570.4,BINDON CARE LTD,89979,,People Services,Care Spot - Private (3rd),5701,B
18,Devon County Council,05/09/2012,CFADRES30067810,REDACTED UNDER DP ACT,1180,BIRCHAMS GRANGE,264870,,People Services,Care Spot - Private (3rd),5701,B
18,Devon County Council,19/09/2012,CFADRES30068479,REDACTED UNDER DP ACT,1180,BIRCHAMS GRANGE,264870,,People Services,Care Spot - Private (3rd),5701,B
18,Devon County Council,05/09/2012,CFADRES30067868,REDACTED UNDER DP ACT,1555.58,BLOSSOM FIELDS,285993,,People Services,Care Spot - Private (3rd),5701,B
18,Devon County Council,19/09/2012,CFADRES30068538,REDACTED UNDER DP ACT,1555.58,BLOSSOM FIELDS,285993,,People Services,Care Spot - Private (3rd),5701,B
18,Devon County Council,19/09/2012,CFADDOM30043543,REDACTED UNDER DP ACT,601.64,BLUEBIRD CARE (NEWTON ABBOT),237624,,People Services,Care Spot - Private (3rd),5701,B
18,Devon County Council,19/09/2012,CFADDOM30043548,REDACTED UNDER DP ACT,996.8,BLUEBIRD CARE (NEWTON ABBOT),237624,,People Services,Care Spot - Private (3rd),5701,B
18,Devon County Council,19/09/2012,CFADDOM30043549,REDACTED UNDER DP ACT,996.8,BLUEBIRD CARE (NEWTON ABBOT),237624,,People Services,Care Spot - Private (3rd),5701,B
18,Devon County Council,19/09/2012,CFADDOM30043555,REDACTED UNDER DP ACT,528.36,BLUEBIRD CARE (NEWTON ABBOT),237624,,People Services,Care Spot - Private (3rd),5701,B
18,Devon County Council,19/09/2012,CFADDOM30043558,REDACTED UNDER DP ACT,514.08,BLUEBIRD CARE (NEWTON ABBOT),237624,,People Services,Care Spot - Private (3rd),5701,B
18,Devon County Council,19/09/2012,CFADDOM30043559,REDACTED UNDER DP ACT,802.25,BLUEBIRD CARE (NEWTON ABBOT),237624,,People Services,Care Spot - Private (3rd),5701,B
18,Devon County Council,19/09/2012,CFADDOM30043560,REDACTED UNDER DP ACT,1099.56,BLUEBIRD CARE (NEWTON ABBOT),237624,,People Services,Care Spot - Private (3rd),5701,B
18,Devon County Council,19/09/2012,CFADDOM30043566,REDACTED UNDER DP ACT,503.37,BLUEBIRD CARE (NEWTON ABBOT),237624,,People Services,Care Spot - Private (3rd),5701,B
18,Devon County Council,19/09/2012,CFADDOM30043581,REDACTED UNDER DP ACT,714,BLUEBIRD CARE (NEWTON ABBOT),237624,,People Services,Care Spot - Private (3rd),5701,B
18,Devon County Council,19/09/2012,CFADDOM30043582,REDACTED UNDER DP ACT,799.68,BLUEBIRD CARE (NEWTON ABBOT),237624,,People Services,Care Spot - Private (3rd),5701,B
18,Devon County Council,19/09/2012,CFADDOM30043596,REDACTED UNDER DP ACT,571.2,BLUEBIRD CARE (NEWTON ABBOT),237624,,People Services,Care Spot - Private (3rd),5701,B
18,Devon County Council,19/09/2012,CFADDOM30043598,REDACTED UNDER DP ACT,542.64,BLUEBIRD CARE (NEWTON ABBOT),237624,,People Services,Care Spot - Private (3rd),5701,B
18,Devon County Council,19/09/2012,CFADDOM30043599,REDACTED UNDER DP ACT,1806.42,BLUEBIRD CARE (NEWTON ABBOT),237624,,People Services,Care Spot - Private (3rd),5701,B
18,Devon County Council,19/09/2012,CFADDOM30043602,REDACTED UNDER DP ACT,2410.12,BLUEBIRD CARE (NEWTON ABBOT),237624,,People Services,Care Spot - Private (3rd),5701,B
18,Devon County Council,19/09/2012,CFADDOM30043605,REDACTED UNDER DP ACT,592.62,BLUEBIRD CARE (NEWTON ABBOT),237624,,People Services,Care Spot - Private (3rd),5701,B
18,Devon County Council,19/09/2012,CFADDOM30043613,REDACTED UNDER DP ACT,617.61,BLUEBIRD CARE (NEWTON ABBOT),237624,,People Services,Care Spot - Private (3rd),5701,B
18,Devon County Council,05/09/2012,CFADRES30067835,REDACTED UNDER DP ACT,12646.18,BODMEYRICK RESIDENTIAL HOME,277062,,People Services,Care Spot - Private (3rd),5701,B
18,Devon County Council,19/09/2012,CFADRES30068504,REDACTED UNDER DP ACT,12646.18,BODMEYRICK RESIDENTIAL HOME,277062,,People Services,Care Spot - Private (3rd),5701,B
18,Devon County Council,19/09/2012,CFADRES30068100,REDACTED UNDER DP ACT,19803,BOLEALLER HOUSE LTD,90433,,People Services,Care Spot - Private (3rd),5701,B
18,Devon County Council,05/09/2012,CFADRES30067870,REDACTED UNDER DP ACT,1000,BOSWORTH CARE HOME,286381,,People Services,Care Spot - Private (3rd),5701,B
18,Devon County Council,19/09/2012,CFADRES30068540,REDACTED UNDER DP ACT,1000,BOSWORTH CARE HOME,286381,,People Services,Care Spot - Private (3rd),5701,B
18,Devon County Council,05/09/2012,CFADRES30067715,REDACTED UNDER DP ACT,8886.28,BRACKEN TOR HOUSE,215900,,People Services,Care Spot - Private (3rd),5701,B
18,Devon County Council,19/09/2012,CFADRES30068387,REDACTED UNDER DP ACT,2941.24,BRACKEN TOR HOUSE,215900,,People Services,Care Spot - Private (3rd),5701,B
18,Devon County Council,05/09/2012,CFADRES30067601,REDACTED UNDER DP ACT,2025.36,BRAEMAR HOUSE,157418,,People Services,Care Spot - Private (3rd),5701,B
18,Devon County Council,19/09/2012,CFADRES30068272,REDACTED UNDER DP ACT,2025.36,BRAEMAR HOUSE,157418,,People Services,Care Spot - Private (3rd),5701,B
18,Devon County Council,05/09/2012,CFADRES30067590,REDACTED UNDER DP ACT,6220.64,BRAMBLE DOWN NURSING HOME,154485,,People Services,Care Spot - Private (3rd),5701,B
18,Devon County Council,05/09/2012,CFADRES30067339,REDACTED UNDER DP ACT,3412.58,BRANDON RESIDENTIAL CARE HOME,89375,,People Services,Care Spot - Private (3rd),5701,B
18,Devon County Council,19/09/2012,CFADRES30068014,REDACTED UNDER DP ACT,3412.58,BRANDON RESIDENTIAL CARE HOME,89375,,People Services,Care Spot - Private (3rd),5701,B
18,Devon County Council,18/09/2012,FINSSCW30457841,1864,830,BRANDON RESIDENTIAL CARE HOME,89375,,People Services,Care Spot - Private (3rd),5701,B
18,Devon County Council,12/09/2012,CFADDOM30042980,REDACTED UNDER DP ACT,1728.72,BRAUNTON CARE LTD,262416,,People Services,Care Spot - Private (3rd),5701,B
18,Devon County Council,12/09/2012,CFADDOM30042981,REDACTED UNDER DP ACT,507.64,BRAUNTON CARE LTD,262416,,People Services,Care Spot - Private (3rd),5701,B
18,Devon County Council,12/09/2012,CFADDOM30042983,REDACTED UNDER DP ACT,658.56,BRAUNTON CARE LTD,262416,,People Services,Care Spot - Private (3rd),5701,B
18,Devon County Council,12/09/2012,CFADDOM30042984,REDACTED UNDER DP ACT,1865.92,BRAUNTON CARE LTD,262416,,People Services,Care Spot - Private (3rd),5701,B
18,Devon County Council,12/09/2012,CFADDOM30042985,REDACTED UNDER DP ACT,2222.64,BRAUNTON CARE LTD,262416,,People Services,Care Spot - Private (3rd),5701,B
18,Devon County Council,12/09/2012,CFADDOM30042994,REDACTED UNDER DP ACT,768.32,BRAUNTON CARE LTD,262416,,People Services,Care Spot - Private (3rd),5701,B
18,Devon County Council,12/09/2012,CFADDOM30042995,REDACTED UNDER DP ACT,1426.88,BRAUNTON CARE LTD,262416,,People Services,Care Spot - Private (3rd),5701,B
18,Devon County Council,12/09/2012,CFADDOM30042996,REDACTED UNDER DP ACT,2250.08,BRAUNTON CARE LTD,262416,,People Services,Care Spot - Private (3rd),5701,B
18,Devon County Council,12/09/2012,CFADDOM30042997,REDACTED UNDER DP ACT,1344.56,BRAUNTON CARE LTD,262416,,People Services,Care Spot - Private (3rd),5701,B
18,Devon County Council,12/09/2012,CFADDOM30042998,REDACTED UNDER DP ACT,1245.09,BRAUNTON CARE LTD,262416,,People Services,Care Spot - Private (3rd),5701,B
18,Devon County Council,12/09/2012,CFADDOM30043000,REDACTED UNDER DP ACT,1598.38,BRAUNTON CARE LTD,262416,,People Services,Care Spot - Private (3rd),5701,B
18,Devon County Council,05/09/2012,CFADRES30067440,REDACTED UNDER DP ACT,7857.31,BRIARCROFT,90534,,People Services,Care Spot - Private (3rd),5701,B
18,Devon County Council,19/09/2012,CFADRES30068113,REDACTED UNDER DP ACT,6730.88,BRIARCROFT,90534,,People Services,Care Spot - Private (3rd),5701,B
18,Devon County Council,05/09/2012,CFADRES30067266,REDACTED UNDER DP ACT,2680.71,BROADREACH HOUSE,87099,,People Services,Care Spot - Private (3rd),5701,B
18,Devon County Council,19/09/2012,CFADRES30067941,REDACTED UNDER DP ACT,2780,BROADREACH HOUSE,87099,,People Services,Care Spot - Private (3rd),5701,B
18,Devon County Council,05/09/2012,CFADRES30067357,REDACTED UNDER DP ACT,9850.68,BRONTE RESIDENTIAL CARE HOME,89647,,People Services,Care Spot - Private (3rd),5701,B
18,Devon County Council,19/09/2012,CFADRES30068032,REDACTED UNDER DP ACT,8820.68,BRONTE RESIDENTIAL CARE HOME,89647,,People Services,Care Spot - Private (3rd),5701,B
18,Devon County Council,05/09/2012,CFADRES30067651,REDACTED UNDER DP ACT,2862,BROOK LODGE,186523,,People Services,Care Spot - Private (3rd),5701,B
18,Devon County Council,19/09/2012,CFADRES30068322,REDACTED UNDER DP ACT,2862,BROOK LODGE,186523,,People Services,Care Spot - Private (3rd),5701,B
18,Devon County Council,05/09/2012,CFADRES30067613,REDACTED UNDER DP ACT,4971.44,BRYNSWORTHY,162514,,People Services,Care Spot - Private (3rd),5701,B
18,Devon County Council,05/09/2012,CFADRES30067518,REDACTED UNDER DP ACT,1536.6,BUPA CARE HOMES LTD/AYLESHAM CRT,102126,,People Services,Care Spot - Private (3rd),5701,B
18,Devon County Council,19/09/2012,CFADRES30068190,REDACTED UNDER DP ACT,1536.6,BUPA CARE HOMES LTD/AYLESHAM CRT,102126,,People Services,Care Spot - Private (3rd),5701,B
18,Devon County Council,10/09/2012,CFADDAY30019727,REDACTED UNDER DP ACT,650.88,BURDON GRANGE,203246,,People Services,Care Spot - Private (3rd),5701,B
18,Devon County Council,10/09/2012,CFADDOM30042857,REDACTED UNDER DP ACT,1591.52,BURDON GRANGE,203246,,People Services,Care Spot - Private (3rd),5701,B
18,Devon County Council,10/09/2012,CFADDOM30042860,REDACTED UNDER DP ACT,576.24,BURDON GRANGE,203246,,People Services,Care Spot - Private (3rd),5701,B
18,Devon County Council,10/09/2012,CFADDOM30042861,REDACTED UNDER DP ACT,2304.96,BURDON GRANGE,203246,,People Services,Care Spot - Private (3rd),5701,B
18,Devon County Council,10/09/2012,CFADDOM30042863,REDACTED UNDER DP ACT,1056.44,BURDON GRANGE,203246,,People Services,Care Spot - Private (3rd),5701,B
18,Devon County Council,10/09/2012,CFADDOM30042864,REDACTED UNDER DP ACT,2195.2,BURDON GRANGE,203246,,People Services,Care Spot - Private (3rd),5701,B
18,Devon County Council,10/09/2012,CFADDOM30042865,REDACTED UNDER DP ACT,1152.48,BURDON GRANGE,203246,,People Services,Care Spot - Private (3rd),5701,B
18,Devon County Council,10/09/2012,CFADDOM30042867,REDACTED UNDER DP ACT,1152.48,BURDON GRANGE,203246,,People Services,Care Spot - Private (3rd),5701,B
18,Devon County Council,10/09/2012,CFADDOM30042870,REDACTED UNDER DP ACT,500.78,BURDON GRANGE,203246,,People Services,Care Spot - Private (3rd),5701,B
18,Devon County Council,10/09/2012,CFADDOM30042871,REDACTED UNDER DP ACT,864.36,BURDON GRANGE,203246,,People Services,Care Spot - Private (3rd),5701,B
18,Devon County Council,10/09/2012,CFADDOM30042872,REDACTED UNDER DP ACT,2497.04,BURDON GRANGE,203246,,People Services,Care Spot - Private (3rd),5701,B
18,Devon County Council,12/09/2012,CFADDAY30019937,REDACTED UNDER DP ACT,730.56,BURLINGTON CARE,160108,,People Services,Individualised Support - Private (3rd),5706,B
18,Devon County Council,05/09/2012,CFADRES30067609,REDACTED UNDER DP ACT,3427.4,BURLINGTON CARE,160108,,People Services,Care Spot - Private (3rd),5701,B
18,Devon County Council,19/09/2012,CFADRES30068280,REDACTED UNDER DP ACT,3427.4,BURLINGTON CARE,160108,,People Services,Care Spot - Private (3rd),5701,B
18,Devon County Council,05/09/2012,CFADRES30067614,REDACTED UNDER DP ACT,874.92,BURNHAM NURSING & RESIDNTL CENTR,164760,,People Services,Care Spot - Private (3rd),5701,B
18,Devon County Council,19/09/2012,CFADRES30068286,REDACTED UNDER DP ACT,874.92,BURNHAM NURSING & RESIDNTL CENTR,164760,,People Services,Care Spot - Private (3rd),5701,B
18,Devon County Council,05/09/2012,CFADRES30067273,REDACTED UNDER DP ACT,7005.22,BURROW DOWN SUPPORT SERVICES LTD,87371,,People Services,Care Spot - Private (3rd),5701,B
18,Devon County Council,19/09/2012,CFADRES30067948,REDACTED UNDER DP ACT,7787.76,BURROW DOWN SUPPORT SERVICES LTD,87371,,People Services,Care Spot - Private (3rd),5701,B
18,Devon County Council,05/09/2012,CFADRES30067377,REDACTED UNDER DP ACT,5855.21,C0MMUNITY PROJECTS NORTH DEVON,89902,,People Services,Care Spot - Private (3rd),5701,B
18,Devon County Council,19/09/2012,CFADRES30068051,REDACTED UNDER DP ACT,5595.41,C0MMUNITY PROJECTS NORTH DEVON,89902,,People Services,Care Spot - Private (3rd),5701,B
18,Devon County Council,05/09/2012,CFADRES30067737,REDACTED UNDER DP ACT,2020.2,CAMBERLEY COTTAGE,229198,,People Services,Care Spot - Private (3rd),5701,B
18,Devon County Council,19/09/2012,CFADRES30068409,REDACTED UNDER DP ACT,2020.2,CAMBERLEY COTTAGE,229198,,People Services,Care Spot - Private (3rd),5701,B
18,Devon County Council,05/09/2012,CFADRES30067577,REDACTED UNDER DP ACT,9036.88,CAMELOT HOUSE EMI NURSING HOME,144364,,People Services,Care Spot - Private (3rd),5701,B
18,Devon County Council,19/09/2012,CFADRES30068249,REDACTED UNDER DP ACT,3924.16,CAMELOT HOUSE EMI NURSING HOME,144364,,People Services,Care Spot - Private (3rd),5701,B
18,Devon County Council,03/09/2012,CFADDAY30019395,REDACTED UNDER DP ACT,612,CAMPHILL DEVON COMMUNITY LTD,105994,,People Services,Individualised Support - Private (3rd),5706,B
18,Devon County Council,03/09/2012,CFADDAY30019396,REDACTED UNDER DP ACT,634.08,CAMPHILL DEVON COMMUNITY LTD,105994,,People Services,Individualised Support - Private (3rd),5706,B
18,Devon County Council,26/09/2012,CFADDAY30020554,REDACTED UNDER DP ACT,612,CAMPHILL DEVON COMMUNITY LTD,105994,,People Services,Individualised Support - Private (3rd),5706,B
18,Devon County Council,26/09/2012,CFADDAY30020555,REDACTED UNDER DP ACT,634.08,CAMPHILL DEVON COMMUNITY LTD,105994,,People Services,Individualised Support - Private (3rd),5706,B
18,Devon County Council,05/09/2012,CFADRES30067531,REDACTED UNDER DP ACT,16981.02,CAMPHILL DEVON COMMUNITY LTD,105994,,People Services,Care Spot - Private (3rd),5701,B
18,Devon County Council,19/09/2012,CFADRES30068202,REDACTED UNDER DP ACT,16981.02,CAMPHILL DEVON COMMUNITY LTD,105994,,People Services,Care Spot - Private (3rd),5701,B
18,Devon County Council,19/09/2012,CFADRES30068567,REDACTED UNDER DP ACT,11746.43,CANFORD CLIFFS REST HOME,292349,,People Services,Care Spot - Private (3rd),5701,B
18,Devon County Council,10/09/2012,CFADDOM30042873,REDACTED UNDER DP ACT,675.84,CARE COMPANY(SW)LTD,209342,,People Services,Care Spot - Private (3rd),5701,B
18,Devon County Council,19/09/2012,CFADDOM30043517,REDACTED UNDER DP ACT,1140.7,CARE COMPANY(SW)LTD,209342,,People Services,Care Spot - Private (3rd),5701,B
18,Devon County Council,19/09/2012,CFADDOM30043522,REDACTED UNDER DP ACT,1884.96,CARE COMPANY(SW)LTD,209342,,People Services,Care Spot - Private (3rd),5701,B
18,Devon County Council,19/09/2012,CFADDOM30043525,REDACTED UNDER DP ACT,557.26,CARE COMPANY(SW)LTD,209342,,People Services,Care Spot - Private (3rd),5701,B
18,Devon County Council,19/09/2012,CFADDOM30043531,REDACTED UNDER DP ACT,561,CARE COMPANY(SW)LTD,209342,,People Services,Care Spot - Private (3rd),5701,B
18,Devon County Council,19/09/2012,CFADDOM30043532,REDACTED UNDER DP ACT,1510.96,CARE COMPANY(SW)LTD,209342,,People Services,Care Spot - Private (3rd),5701,B
18,Devon County Council,19/09/2012,CFADDOM30043535,REDACTED UNDER DP ACT,508.64,CARE COMPANY(SW)LTD,209342,,People Services,Care Spot - Private (3rd),5701,B
18,Devon County Council,19/09/2012,CFADDOM30043537,REDACTED UNDER DP ACT,643.28,CARE COMPANY(SW)LTD,209342,,People Services,Care Spot - Private (3rd),5701,B
18,Devon County Council,24/09/2012,CFADDOM30043779,REDACTED UNDER DP ACT,538.56,CARE COMPANY(SW)LTD,209342,,People Services,Care Spot - Private (3rd),5701,B
18,Devon County Council,24/09/2012,CFADDOM30043781,REDACTED UNDER DP ACT,538.56,CARE COMPANY(SW)LTD,209342,,People Services,Care Spot - Private (3rd),5701,B
18,Devon County Council,24/09/2012,CFADDOM30043679,REDACTED UNDER DP ACT,17899.6,CARETIME SERVICES LIMITED,210505,,People Services,Care Spot - Private (3rd),5701,B
18,Devon County Council,24/09/2012,CFADDOM30043680,REDACTED UNDER DP ACT,21819.7,CARETIME SERVICES LIMITED,210505,,People Services,Care Spot - Private (3rd),5701,B
18,Devon County Council,24/09/2012,CFADDOM30043681,REDACTED UNDER DP ACT,19997.96,CARETIME SERVICES LIMITED,210505,,People Services,Care Spot - Private (3rd),5701,B
18,Devon County Council,24/09/2012,CFADDOM30043682,REDACTED UNDER DP ACT,8091.74,CARETIME SERVICES LIMITED,210505,,People Services,Care Spot - Private (3rd),5701,B
18,Devon County Council,05/09/2012,CFADRES30067768,REDACTED UNDER DP ACT,914.12,CARRINGTON HOUSE,240422,,People Services,Care Spot - Private (3rd),5701,B
18,Devon County Council,19/09/2012,CFADRES30068439,REDACTED UNDER DP ACT,914.12,CARRINGTON HOUSE,240422,,People Services,Care Spot - Private (3rd),5701,B
18,Devon County Council,05/09/2012,CFADRES30067406,REDACTED UNDER DP ACT,15792.62,CASH DE,90200,,People Services,Care Spot - Private (3rd),5701,B
18,Devon County Council,19/09/2012,CFADRES30068079,REDACTED UNDER DP ACT,15792.62,CASH DE,90200,,People Services,Care Spot - Private (3rd),5701,B
18,Devon County Council,05/09/2012,CFADRES30067364,REDACTED UNDER DP ACT,1858.12,CASTEL FROMA,89760,,People Services,Care Spot - Private (3rd),5701,B
18,Devon County Council,19/09/2012,CFADRES30068039,REDACTED UNDER DP ACT,1858.12,CASTEL FROMA,89760,,People Services,Care Spot - Private (3rd),5701,B
18,Devon County Council,19/09/2012,CFADRES30068395,REDACTED UNDER DP ACT,13527.61,CASTLE HOUSE NURSING HOME,220448,,People Services,Care Spot - Private (3rd),5701,B
18,Devon County Council,05/09/2012,CFADRES30067430,REDACTED UNDER DP ACT,1549.36,CASTLE ROAD RENT A/C,90446,,People Services,Care Spot - Private (3rd),5701,B
18,Devon County Council,19/09/2012,CFADRES30068103,REDACTED UNDER DP ACT,1549.36,CASTLE ROAD RENT A/C,90446,,People Services,Care Spot - Private (3rd),5701,B
18,Devon County Council,05/09/2012,CFADRES30067910,REDACTED UNDER DP ACT,60892.86,CASTLEBECK CARE(TEESDALE)WILLOW,294537,,People Services,Care Spot - Private (3rd),5701,B
18,Devon County Council,19/09/2012,CFADRES30068580,REDACTED UNDER DP ACT,5500,CASTLEBECK CARE(TEESDALE)WILLOW,294537,,People Services,Care Spot - Private (3rd),5701,B
18,Devon County Council,05/09/2012,CFADRES30067789,REDACTED UNDER DP ACT,2036.2,CATHERINE HOUSE,251903,,People Services,Care Spot - Private (3rd),5701,B
18,Devon County Council,19/09/2012,CFADRES30068460,REDACTED UNDER DP ACT,2036.2,CATHERINE HOUSE,251903,,People Services,Care Spot - Private (3rd),5701,B
18,Devon County Council,05/09/2012,CFADRES30067753,REDACTED UNDER DP ACT,2664,CEDAR GRANGE,232408,,People Services,Care Spot - Private (3rd),5701,B
18,Devon County Council,19/09/2012,CFADRES30068425,REDACTED UNDER DP ACT,2664,CEDAR GRANGE,232408,,People Services,Care Spot - Private (3rd),5701,B
18,Devon County Council,05/09/2012,CFADRES30067829,REDACTED UNDER DP ACT,1100,CERNE ABBAS,275155,,People Services,Care Spot - Private (3rd),5701,B
18,Devon County Council,19/09/2012,CFADRES30068498,REDACTED UNDER DP ACT,1100,CERNE ABBAS,275155,,People Services,Care Spot - Private (3rd),5701,B
18,Devon County Council,12/09/2012,CFADDAY30020019,REDACTED UNDER DP ACT,1361.91,CHAPTER 1,256621,,People Services,Individualised Support - Private (3rd),5706,B
18,Devon County Council,12/09/2012,CFADDAY30020020,REDACTED UNDER DP ACT,680.95,CHAPTER 1,256621,,People Services,Individualised Support - Private (3rd),5706,B
18,Devon County Council,12/09/2012,CFADDAY30020022,REDACTED UNDER DP ACT,680.96,CHAPTER 1,256621,,People Services,Individualised Support - Private (3rd),5706,B
18,Devon County Council,12/09/2012,CFADDAY30020024,REDACTED UNDER DP ACT,1358.46,CHAPTER 1,256621,,People Services,Individualised Support - Private (3rd),5706,B
18,Devon County Council,12/09/2012,CFADDAY30020026,REDACTED UNDER DP ACT,680.95,CHAPTER 1,256621,,People Services,Individualised Support - Private (3rd),5706,B
18,Devon County Council,12/09/2012,CFADDAY30020027,REDACTED UNDER DP ACT,508.6,CHAPTER 1,256621,,People Services,Individualised Support - Private (3rd),5706,B
18,Devon County Council,12/09/2012,CFADDAY30020028,REDACTED UNDER DP ACT,641.33,CHAPTER 1,256621,,People Services,Individualised Support - Private (3rd),5706,B
18,Devon County Council,12/09/2012,CFADDAY30020029,REDACTED UNDER DP ACT,641.33,CHAPTER 1,256621,,People Services,Individualised Support - Private (3rd),5706,B
18,Devon County Council,03/09/2012,CFADDOM30042317,REDACTED UNDER DP ACT,1288,CHAPTER CARE(NORTH DEVON)LTD,230988,911614553,People Services,Care Spot - Private (3rd),5701,B
18,Devon County Council,03/09/2012,CFADDOM30042320,REDACTED UNDER DP ACT,1995,CHAPTER CARE(NORTH DEVON)LTD,230988,911614553,People Services,Care Spot - Private (3rd),5701,B
18,Devon County Council,03/09/2012,CFADDOM30042323,REDACTED UNDER DP ACT,966,CHAPTER CARE(NORTH DEVON)LTD,230988,911614553,People Services,Care Spot - Private (3rd),5701,B
18,Devon County Council,03/09/2012,CFADDOM30042326,REDACTED UNDER DP ACT,1036,CHAPTER CARE(NORTH DEVON)LTD,230988,911614553,People Services,Care Spot - Private (3rd),5701,B
18,Devon County Council,03/09/2012,CFADDOM30042338,REDACTED UNDER DP ACT,616,CHAPTER CARE(NORTH DEVON)LTD,230988,911614553,People Services,Care Spot - Private (3rd),5701,B
18,Devon County Council,03/09/2012,CFADDOM30042340,REDACTED UNDER DP ACT,1568,CHAPTER CARE(NORTH DEVON)LTD,230988,911614553,People Services,Care Spot - Private (3rd),5701,B
18,Devon County Council,03/09/2012,CFADDOM30042341,REDACTED UNDER DP ACT,1697.5,CHAPTER CARE(NORTH DEVON)LTD,230988,911614553,People Services,Care Spot - Private (3rd),5701,B
18,Devon County Council,03/09/2012,CFADDOM30042342,REDACTED UNDER DP ACT,1302,CHAPTER CARE(NORTH DEVON)LTD,230988,911614553,People Services,Care Spot - Private (3rd),5701,B
18,Devon County Council,03/09/2012,CFADDOM30042343,REDACTED UNDER DP ACT,588,CHAPTER CARE(NORTH DEVON)LTD,230988,911614553,People Services,Care Spot - Private (3rd),5701,B
18,Devon County Council,03/09/2012,CFADDOM30042345,REDACTED UNDER DP ACT,1533,CHAPTER CARE(NORTH DEVON)LTD,230988,911614553,People Services,Care Spot - Private (3rd),5701,B
18,Devon County Council,03/09/2012,CFADDOM30042355,REDACTED UNDER DP ACT,784,CHAPTER CARE(NORTH DEVON)LTD,230988,911614553,People Services,Care Spot - Private (3rd),5701,B
18,Devon County Council,03/09/2012,CFADDOM30042360,REDACTED UNDER DP ACT,616,CHAPTER CARE(NORTH DEVON)LTD,230988,911614553,People Services,Care Spot - Private (3rd),5701,B
18,Devon County Council,03/09/2012,CFADDOM30042362,REDACTED UNDER DP ACT,2107,CHAPTER CARE(NORTH DEVON)LTD,230988,911614553,People Services,Care Spot - Private (3rd),5701,B
18,Devon County Council,03/09/2012,CFADDOM30042365,REDACTED UNDER DP ACT,588,CHAPTER CARE(NORTH DEVON)LTD,230988,911614553,People Services,Care Spot - Private (3rd),5701,B
18,Devon County Council,05/09/2012,CFADRES30067385,REDACTED UNDER DP ACT,782,CHARLTON HOUSE R HME,89999,,People Services,Care Spot - Private (3rd),5701,B
18,Devon County Council,19/09/2012,CFADRES30068059,REDACTED UNDER DP ACT,782,CHARLTON HOUSE R HME,89999,,People Services,Care Spot - Private (3rd),5701,B
18,Devon County Council,05/09/2012,CFADRES30067579,REDACTED UNDER DP ACT,6037.18,CHARTERHOUSE RESIDENTIAL HOME,146731,,People Services,Care Spot - Private (3rd),5701,B
18,Devon County Council,19/09/2012,CFADRES30068251,REDACTED UNDER DP ACT,5918.6,CHARTERHOUSE RESIDENTIAL HOME,146731,,People Services,Care Spot - Private (3rd),5701,B
18,Devon County Council,05/09/2012,CFADRES30067846,REDACTED UNDER DP ACT,970,CHASTON HOUSE LTD/MRS P LEATHAM,279695,,People Services,Care Spot - Private (3rd),5701,B
18,Devon County Council,19/09/2012,CFADRES30068515,REDACTED UNDER DP ACT,970,CHASTON HOUSE LTD/MRS P LEATHAM,279695,,People Services,Care Spot - Private (3rd),5701,B
18,Devon County Council,05/09/2012,CFADRES30067624,REDACTED UNDER DP ACT,16030.46,CHELFHAM HOUSE RESIDENTIAL HOME,170833,,People Services,Care Spot - Private (3rd),5701,B
18,Devon County Council,19/09/2012,CFADRES30068295,REDACTED UNDER DP ACT,14548.32,CHELFHAM HOUSE RESIDENTIAL HOME,170833,,People Services,Care Spot - Private (3rd),5701,B
18,Devon County Council,05/09/2012,CFADRES30067280,REDACTED UNDER DP ACT,2630.84,CHELSTON PARK NURSING & RES HOME,87556,,People Services,Care Spot - Private (3rd),5701,B
18,Devon County Council,19/09/2012,CFADRES30067955,REDACTED UNDER DP ACT,2630.84,CHELSTON PARK NURSING & RES HOME,87556,,People Services,Care Spot - Private (3rd),5701,B
18,Devon County Council,05/09/2012,CFADRES30067736,REDACTED UNDER DP ACT,565.02,CHERITON RESIDENTIAL & CARE HOME,229197,,People Services,Care Spot - Private (3rd),5701,B
18,Devon County Council,19/09/2012,CFADRES30068408,REDACTED UNDER DP ACT,565.02,CHERITON RESIDENTIAL & CARE HOME,229197,,People Services,Care Spot - Private (3rd),5701,B
18,Devon County Council,05/09/2012,CFADRES30067264,REDACTED UNDER DP ACT,4940.84,CHIMES THE,87062,,People Services,Care Spot - Private (3rd),5701,B
18,Devon County Council,19/09/2012,CFADRES30067939,REDACTED UNDER DP ACT,4940.84,CHIMES THE,87062,,People Services,Care Spot - Private (3rd),5701,B
18,Devon County Council,05/09/2012,CFADRES30067270,REDACTED UNDER DP ACT,919.7,CHOICE CARE HOME,87299,,People Services,Care Spot - Private (3rd),5701,B
18,Devon County Council,19/09/2012,CFADRES30067945,REDACTED UNDER DP ACT,919.7,CHOICE CARE HOME,87299,,People Services,Care Spot - Private (3rd),5701,B
18,Devon County Council,05/09/2012,CFSUPP30170974,REDACTED UNDER DP ACT,19252.62,CHRISTIAN ALLIANCE H A(SP PMTS),120564,,People Services,Accomodation Based Services (3rd),5707,B
18,Devon County Council,13/09/2012,FINMH30444999,0349,11201.66,CHRISTIAN ALLIANCE H A(SP PMTS),120564,,People Services,Care Block - Private (3rd),5702,B
18,Devon County Council,13/09/2012,FINMH30444966,0189,1361.95,CHRISTIAN ALLIANCE HOUSING ASSOC,160070,749563487,People Services,Individualised Support - Private (3rd),5706,B
18,Devon County Council,05/09/2012,CFADRES30067778,REDACTED UNDER DP ACT,744.1,COACH HOUSE RESIDENTIAL HOME,246276,,People Services,Care Spot - Private (3rd),5701,B
18,Devon County Council,19/09/2012,CFADRES30068449,REDACTED UNDER DP ACT,744.1,COACH HOUSE RESIDENTIAL HOME,246276,,People Services,Care Spot - Private (3rd),5701,B
18,Devon County Council,05/09/2012,CFADRES30067888,REDACTED UNDER DP ACT,1100,COLLYCARE / B&M TA ST LUKES/OAKS,290845,,People Services,Care Spot - Private (3rd),5701,B
18,Devon County Council,05/09/2012,CFADRES30067514,REDACTED UNDER DP ACT,1352.08,COLOMBINI E,101115,,People Services,Care Spot - Private (3rd),5701,B
18,Devon County Council,19/09/2012,CFADRES30068186,REDACTED UNDER DP ACT,1352.08,COLOMBINI E,101115,,People Services,Care Spot - Private (3rd),5701,B
18,Devon County Council,19/09/2012,CFADDAY30020188,REDACTED UNDER DP ACT,630,COMMUNITY CARE TRUST S DEVON LTD,87475,,People Services,Individualised Support - Private (3rd),5706,B
18,Devon County Council,14/09/2012,FINMH30444968,CCT-PA-018,855,COMMUNITY CARE TRUST S DEVON LTD,87475,,People Services,Care Spot - Private (3rd),5701,B
18,Devon County Council,14/09/2012,FINMH30444970,CCT-PA-014,2045.6,COMMUNITY CARE TRUST S DEVON LTD,87475,,People Services,Care Spot - Private (3rd),5701,B
18,Devon County Council,11/09/2012,FINMH30444982,CCT-PA-007,5000,COMMUNITY CARE TRUST S DEVON LTD,87475,,People Services,Care Spot - Private (3rd),5701,B
18,Devon County Council,14/09/2012,FINMH30444983,CCT-PA-015,6789.15,COMMUNITY CARE TRUST S DEVON LTD,87475,,People Services,Care Spot - Private (3rd),5701,B
18,Devon County Council,13/09/2012,FINMH30445012,CCT-PA-013,1640.75,COMMUNITY CARE TRUST S DEVON LTD,87475,,People Services,Care Spot - Private (3rd),5701,B
18,Devon County Council,05/09/2012,CFADRES30067279,REDACTED UNDER DP ACT,14568.7,COOMBESWOOD HOUSE,87540,,People Services,Care Spot - Private (3rd),5701,B
18,Devon County Council,19/09/2012,CFADRES30067954,REDACTED UNDER DP ACT,14568.7,COOMBESWOOD HOUSE,87540,,People Services,Care Spot - Private (3rd),5701,B
18,Devon County Council,19/09/2012,CFADRES30066880,REDACTED UNDER DP ACT,953.22,COPPER BEECHES CARE HOME,121229,,People Services,Care Spot - Private (3rd),5701,B
18,Devon County Council,19/09/2012,CFADRES30067555,REDACTED UNDER DP ACT,953.22,COPPER BEECHES CARE HOME,121229,,People Services,Care Spot - Private (3rd),5701,B
18,Devon County Council,19/09/2012,CFADRES30068227,REDACTED UNDER DP ACT,3498.93,COPPER BEECHES CARE HOME,121229,,People Services,Care Spot - Private (3rd),5701,B
18,Devon County Council,19/09/2012,CFADRES17332307,REDACTED UNDER DP ACT,-4140.71,COPPER BEECHES CARE HOME,121229,,People Services,Care Spot - Private (3rd),5701,B
18,Devon County Council,05/09/2012,CFADRES30067780,REDACTED UNDER DP ACT,1687.4,COPPICE LEA,247059,,People Services,Care Spot - Private (3rd),5701,B
18,Devon County Council,19/09/2012,CFADRES30068451,REDACTED UNDER DP ACT,1687.4,COPPICE LEA,247059,,People Services,Care Spot - Private (3rd),5701,B
18,Devon County Council,05/09/2012,CFADRES30067843,REDACTED UNDER DP ACT,1595.58,CORNERWAYS CARE HOME,278868,,People Services,Care Spot - Private (3rd),5701,B
18,Devon County Council,19/09/2012,CFADRES30068512,REDACTED UNDER DP ACT,1595.58,CORNERWAYS CARE HOME,278868,,People Services,Care Spot - Private (3rd),5701,B
18,Devon County Council,05/09/2012,CFADRES30067319,REDACTED UNDER DP ACT,8778.4,COURT HEALTHCARE LTD,89123,,People Services,Care Spot - Private (3rd),5701,B
18,Devon County Council,19/09/2012,CFADRES30067994,REDACTED UNDER DP ACT,8778.4,COURT HEALTHCARE LTD,89123,,People Services,Care Spot - Private (3rd),5701,B
18,Devon County Council,05/09/2012,CFADRES30067289,REDACTED UNDER DP ACT,3427.22,COURT HOUSE RESIDENTIAL HOME,88684,,People Services,Care Spot - Private (3rd),5701,B
18,Devon County Council,19/09/2012,CFADRES30067964,REDACTED UNDER DP ACT,3427.22,COURT HOUSE RESIDENTIAL HOME,88684,,People Services,Care Spot - Private (3rd),5701,B
18,Devon County Council,05/09/2012,CFADRES30067551,REDACTED UNDER DP ACT,6591.67,COURT RETIREMENT RESIDENCE,119163,,People Services,Care Spot - Private (3rd),5701,B
18,Devon County Council,19/09/2012,CFADRES30068223,REDACTED UNDER DP ACT,7725.1,COURT RETIREMENT RESIDENCE,119163,,People Services,Care Spot - Private (3rd),5701,B
18,Devon County Council,12/09/2012,CFADDAY30019838,REDACTED UNDER DP ACT,682,CRAEGMOOR HEALTHCARE,89875,,People Services,Individualised Support - Private (3rd),5706,B
18,Devon County Council,12/09/2012,CFADDAY30019839,REDACTED UNDER DP ACT,1388.4,CRAEGMOOR HEALTHCARE,89875,,People Services,Individualised Support - Private (3rd),5706,B
18,Devon County Council,24/09/2012,CFADDAY30020383,REDACTED UNDER DP ACT,5220,CRAEGMOOR HEALTHCARE,89875,,People Services,Individualised Support - Private (3rd),5706,B
18,Devon County Council,05/09/2012,CFADRES30067330,REDACTED UNDER DP ACT,4462.52,CRANE AC & EL/HARRIS MBC & DR AJ,89244,,People Services,Care Spot - Private (3rd),5701,B
18,Devon County Council,19/09/2012,CFADRES30068005,REDACTED UNDER DP ACT,4462.52,CRANE AC & EL/HARRIS MBC & DR AJ,89244,,People Services,Care Spot - Private (3rd),5701,B
18,Devon County Council,05/09/2012,CFADRES30067866,REDACTED UNDER DP ACT,900,CRANTOCK LODGE (NEW OWNERS),285672,,People Services,Care Spot - Private (3rd),5701,B
18,Devon County Council,19/09/2012,CFADRES30068536,REDACTED UNDER DP ACT,900,CRANTOCK LODGE (NEW OWNERS),285672,,People Services,Care Spot - Private (3rd),5701,B
18,Devon County Council,05/09/2012,CFADRES30067263,REDACTED UNDER DP ACT,4820.67,CREDENCE HOUSE,87058,,People Services,Care Spot - Private (3rd),5701,B
18,Devon County Council,19/09/2012,CFADRES30067938,REDACTED UNDER DP ACT,4516.35,CREDENCE HOUSE,87058,,People Services,Care Spot - Private (3rd),5701,B
18,Devon County Council,05/09/2012,CFADRES30067405,REDACTED UNDER DP ACT,9505.48,CREDITON CARE & SUPPORT HOMES LT,90198,,People Services,Care Spot - Private (3rd),5701,B
18,Devon County Council,05/09/2012,CFADRES30067899,REDACTED UNDER DP ACT,9132.04,CRELAKE CARE LTD T/A CRELAKE HSE,292598,,People Services,Care Spot - Private (3rd),5701,B
18,Devon County Council,19/09/2012,CFADRES30068569,REDACTED UNDER DP ACT,6049.19,CRELAKE CARE LTD T/A CRELAKE HSE,292598,,People Services,Care Spot - Private (3rd),5701,B
18,Devon County Council,05/09/2012,CFADRES30067787,REDACTED UNDER DP ACT,7044.71,CROFT LODGE (NEW OWNERS),250761,,People Services,Care Spot - Private (3rd),5701,B
18,Devon County Council,19/09/2012,CFADRES30068458,REDACTED UNDER DP ACT,4160,CROFT LODGE (NEW OWNERS),250761,,People Services,Care Spot - Private (3rd),5701,B
18,Devon County Council,05/09/2012,CFADRES30067543,REDACTED UNDER DP ACT,7568.96,CROOK M T/A SOUTHERNHAY RES HOME,115824,,People Services,Care Spot - Private (3rd),5701,B
18,Devon County Council,19/09/2012,CFADRES30068215,REDACTED UNDER DP ACT,7213.25,CROOK M T/A SOUTHERNHAY RES HOME,115824,,People Services,Care Spot - Private (3rd),5701,B
18,Devon County Council,05/09/2012,CFADRES30067253,REDACTED UNDER DP ACT,2259.32,CROSS PARK HOUSE,86782,,People Services,Care Spot - Private (3rd),5701,B
18,Devon County Council,19/09/2012,CFADRES30067928,REDACTED UNDER DP ACT,2259.32,CROSS PARK HOUSE,86782,,People Services,Care Spot - Private (3rd),5701,B
18,Devon County Council,05/09/2012,CFADRES30067382,REDACTED UNDER DP ACT,8692,CROWE GF,89970,945640606,People Services,Care Spot - Private (3rd),5701,B
18,Devon County Council,19/09/2012,CFADRES30068056,REDACTED UNDER DP ACT,8692,CROWE GF,89970,945640606,People Services,Care Spot - Private (3rd),5701,B
18,Devon County Council,05/09/2012,CFADRES30067549,REDACTED UNDER DP ACT,11852.77,CULM VALLEY CARE CENTRE,118328,,People Services,Care Spot - Private (3rd),5701,B
18,Devon County Council,18/09/2012,FINSSCW30457640,35: 6/12,1517.29,CULM VALLEY CARE CENTRE,118328,,People Services,Care Spot - Private (3rd),5701,B
18,Devon County Council,18/09/2012,FINSSCW30457641,35; 7/12,2475.57,CULM VALLEY CARE CENTRE,118328,,People Services,Care Spot - Private (3rd),5701,B
18,Devon County Council,05/09/2012,CFADRES30067316,REDACTED UNDER DP ACT,3528.68,DAVIES JL & PJ,89115,,People Services,Care Spot - Private (3rd),5701,B
18,Devon County Council,19/09/2012,CFADRES30067991,REDACTED UNDER DP ACT,3528.68,DAVIES JL & PJ,89115,,People Services,Care Spot - Private (3rd),5701,B
18,Devon County Council,05/09/2012,CFADRES30067305,REDACTED UNDER DP ACT,3697.48,DAY SUSAN OLD PEOPLES HOME,89018,,People Services,Care Spot - Private (3rd),5701,B
18,Devon County Council,19/09/2012,CFADRES30067980,REDACTED UNDER DP ACT,3028.25,DAY SUSAN OLD PEOPLES HOME,89018,,People Services,Residential Income,9365,B
18,Devon County Council,17/09/2012,CFADDOM30043418,REDACTED UNDER DP ACT,2332.4,DEER PARK RESIDENTIAL HOME,277063,,People Services,Care Spot - Private (3rd),5701,B
18,Devon County Council,19/09/2012,CFADRES30068505,REDACTED UNDER DP ACT,10657.98,DEER PARK RESIDENTIAL HOME,277063,,People Services,Care Spot - Private (3rd),5701,B
18,Devon County Council,05/09/2012,CFADRES30067857,REDACTED UNDER DP ACT,19340.9,DENE COURT RESIDENTIAL HOME,282520,,People Services,Care Spot - Private (3rd),5701,B
18,Devon County Council,19/09/2012,CFADRES30068526,REDACTED UNDER DP ACT,19340.9,DENE COURT RESIDENTIAL HOME,282520,,People Services,Care Spot - Private (3rd),5701,B
18,Devon County Council,05/09/2012,CFADRES30067480,REDACTED UNDER DP ACT,3542.68,DEVON & CORNWALL AUTISTIC,90937,,People Services,Care Spot - Private (3rd),5701,B
18,Devon County Council,19/09/2012,CFADRES30068153,REDACTED UNDER DP ACT,3542.68,DEVON & CORNWALL AUTISTIC,90937,,People Services,Care Spot - Private (3rd),5701,B
18,Devon County Council,03/09/2012,CFADDAY30019352,REDACTED UNDER DP ACT,1720.04,DEVON & CORNWALL AUTISTIC COMM T,88854,,People Services,Care Spot - Private (3rd),5701,B
18,Devon County Council,26/09/2012,CFADDAY30020529,REDACTED UNDER DP ACT,1720.04,DEVON & CORNWALL AUTISTIC COMM T,88854,,People Services,Care Spot - Private (3rd),5701,B
18,Devon County Council,05/09/2012,CFADRES30067299,REDACTED UNDER DP ACT,1365.82,DEVON & CORNWALL AUTISTIC COMM T,88854,,People Services,Care Spot - Private (3rd),5701,B
18,Devon County Council,19/09/2012,CFADRES30067974,REDACTED UNDER DP ACT,1365.82,DEVON & CORNWALL AUTISTIC COMM T,88854,,People Services,Care Spot - Private (3rd),5701,B
18,Devon County Council,24/09/2012,CFADDOM30043628,REDACTED UNDER DP ACT,15782.49,DEVON & CORNWALL CARE SERVICES,89806,,People Services,Care Block - Private (3rd),5702,B
18,Devon County Council,24/09/2012,CFADDOM30043629,REDACTED UNDER DP ACT,3132.37,DEVON & CORNWALL CARE SERVICES,89806,,People Services,Care Spot - Private (3rd),5701,B
18,Devon County Council,05/09/2012,CFADRES30067411,REDACTED UNDER DP ACT,20703.5,DEVON SHELTERED HOMES TRUST,90260,,People Services,Care Spot - Private (3rd),5701,B
18,Devon County Council,19/09/2012,CFADRES30068084,REDACTED UNDER DP ACT,20703.5,DEVON SHELTERED HOMES TRUST,90260,,People Services,Care Spot - Private (3rd),5701,B
18,Devon County Council,05/09/2012,CFADRES30067288,REDACTED UNDER DP ACT,2549.02,DIAMOND CARE 2000 LTD,88681,,People Services,Care Spot - Private (3rd),5701,B
18,Devon County Council,19/09/2012,CFADRES30067963,REDACTED UNDER DP ACT,2549.02,DIAMOND CARE 2000 LTD,88681,,People Services,Care Spot - Private (3rd),5701,B
18,Devon County Council,05/09/2012,CFADRES30067891,REDACTED UNDER DP ACT,13372.72,DIAMOND CARE(2000)LD/THE CHANTRY,291234,,People Services,Care Spot - Private (3rd),5701,B
18,Devon County Council,19/09/2012,CFADRES30068560,REDACTED UNDER DP ACT,13372.72,DIAMOND CARE(2000)LD/THE CHANTRY,291234,,People Services,Care Spot - Private (3rd),5701,B
18,Devon County Council,05/09/2012,CFADRES30067504,REDACTED UNDER DP ACT,8205.2,DODGE C T/A WESTCLIFFE HOUSE,99246,,People Services,Care Spot - Private (3rd),5701,B
18,Devon County Council,19/09/2012,CFADRES30068177,REDACTED UNDER DP ACT,10890.91,DODGE C T/A WESTCLIFFE HOUSE,99246,,People Services,Care Spot - Private (3rd),5701,B
18,Devon County Council,05/09/2012,CFADRES30067341,REDACTED UNDER DP ACT,11138.9,DODGE T/A WESTCLIFFE HOUSE,89387,,People Services,Care Spot - Private (3rd),5701,B
18,Devon County Council,19/09/2012,CFADRES30068016,REDACTED UNDER DP ACT,11138.9,DODGE T/A WESTCLIFFE HOUSE,89387,,People Services,Care Spot - Private (3rd),5701,B
18,Devon County Council,05/09/2012,CFADRES30067361,REDACTED UNDER DP ACT,12921.5,DONNESS NURSING HOME,89728,,People Services,Care Spot - Private (3rd),5701,B
18,Devon County Council,12/09/2012,FINNDAD30450051,S WILLCOX,3264,DONNESS NURSING HOME,89728,,People Services,Care Spot - Private (3rd),5701,B
18,Devon County Council,05/09/2012,CFADRES30067597,REDACTED UNDER DP ACT,13906.55,DONNINGTON HOUSE,156587,,People Services,Care Spot - Private (3rd),5701,B
18,Devon County Council,19/09/2012,CFADRES30068268,REDACTED UNDER DP ACT,13292.26,DONNINGTON HOUSE,156587,,People Services,Care Spot - Private (3rd),5701,B
18,Devon County Council,05/09/2012,CFADRES30067516,REDACTED UNDER DP ACT,10130.3,DOVELEIGH CARE LTD T/A DOVE CRT,101741,,People Services,Care Spot - Private (3rd),5701,B
18,Devon County Council,19/09/2012,CFADRES30068188,REDACTED UNDER DP ACT,10130.3,DOVELEIGH CARE LTD T/A DOVE CRT,101741,,People Services,Care Spot - Private (3rd),5701,B
18,Devon County Council,05/09/2012,CFADRES30067525,REDACTED UNDER DP ACT,888,DRAKE NURSING HOME,104889,,People Services,Care Spot - Private (3rd),5701,B
18,Devon County Council,19/09/2012,CFADRES30068197,REDACTED UNDER DP ACT,888,DRAKE NURSING HOME,104889,,People Services,Care Spot - Private (3rd),5701,B
18,Devon County Council,05/09/2012,CFADRES30067502,REDACTED UNDER DP ACT,7843.46,DUNMORE RESIDENTIAL CARE HOME,98047,,People Services,Care Spot - Private (3rd),5701,B
18,Devon County Council,19/09/2012,CFADRES30068175,REDACTED UNDER DP ACT,8275.9,DUNMORE RESIDENTIAL CARE HOME,98047,,People Services,Care Spot - Private (3rd),5701,B
18,Devon County Council,05/09/2012,CFADRES30067591,REDACTED UNDER DP ACT,841.98,DURNSFORD LODGE RESIDENTIAL HOME,155801,,People Services,Care Spot - Private (3rd),5701,B
18,Devon County Council,19/09/2012,CFADRES30068262,REDACTED UNDER DP ACT,841.98,DURNSFORD LODGE RESIDENTIAL HOME,155801,,People Services,Care Spot - Private (3rd),5701,B
18,Devon County Council,05/09/2012,CFADRES30067710,REDACTED UNDER DP ACT,668.42,EARLFIELD LODGE,209895,,People Services,Care Spot - Private (3rd),5701,B
18,Devon County Council,19/09/2012,CFADRES30068382,REDACTED UNDER DP ACT,668.42,EARLFIELD LODGE,209895,,People Services,Care Spot - Private (3rd),5701,B
18,Devon County Council,05/09/2012,CFADRES30067367,REDACTED UNDER DP ACT,21423.36,EASTLEIGH CARE HOMES,89795,,People Services,Care Spot - Private (3rd),5701,B
18,Devon County Council,05/09/2012,CFADRES30067368,REDACTED UNDER DP ACT,2679.09,EASTLEIGH CARE HOMES,89795,,People Services,Care Spot - Private (3rd),5701,B
18,Devon County Council,03/09/2012,FINNDAD30449818,4785,1088,EASTLEIGH CARE HOMES,89795,,People Services,Care Spot - Private (3rd),5701,B
18,Devon County Council,05/09/2012,CFADRES30067557,REDACTED UNDER DP ACT,2962.36,EASTLEIGH HOUSE,121646,,People Services,Care Spot - Private (3rd),5701,B
18,Devon County Council,19/09/2012,CFADRES30068229,REDACTED UNDER DP ACT,2962.36,EASTLEIGH HOUSE,121646,,People Services,Care Spot - Private (3rd),5701,B
18,Devon County Council,05/09/2012,CFADRES30067369,REDACTED UNDER DP ACT,5747.25,EBBERLY HOUSE,89798,,People Services,Care Spot - Private (3rd),5701,B
18,Devon County Council,19/09/2012,CFADRES30068043,REDACTED UNDER DP ACT,12601.68,EBBERLY HOUSE,89798,,People Services,Care Spot - Private (3rd),5701,B
18,Devon County Council,05/09/2012,CFADRES30067908,REDACTED UNDER DP ACT,1000,EDGECUMBE LODGE CARE HOME,294314,,People Services,Care Spot - Private (3rd),5701,B
18,Devon County Council,19/09/2012,CFADRES30068578,REDACTED UNDER DP ACT,1000,EDGECUMBE LODGE CARE HOME,294314,,People Services,Care Spot - Private (3rd),5701,B
18,Devon County Council,05/09/2012,CFADRES30067622,REDACTED UNDER DP ACT,2863.9,ELM TREE HOUSE RESIDENTIAL HOME,169721,,People Services,Care Spot - Private (3rd),5701,B
18,Devon County Council,19/09/2012,CFADRES30068294,REDACTED UNDER DP ACT,2863.9,ELM TREE HOUSE RESIDENTIAL HOME,169721,,People Services,Care Spot - Private (3rd),5701,B
18,Devon County Council,05/09/2012,CFADRES30067808,REDACTED UNDER DP ACT,1866,ELMBRIDGE RESIDENTIAL CARE HOME,263849,,People Services,Care Spot - Private (3rd),5701,B
18,Devon County Council,19/09/2012,CFADRES30068477,REDACTED UNDER DP ACT,1866,ELMBRIDGE RESIDENTIAL CARE HOME,263849,,People Services,Care Spot - Private (3rd),5701,B
18,Devon County Council,05/09/2012,CFADRES30067386,REDACTED UNDER DP ACT,7994.6,ELMWOOD RESIDENTIAL HOME,90030,,People Services,Care Spot - Private (3rd),5701,B
18,Devon County Council,19/09/2012,CFADRES30068060,REDACTED UNDER DP ACT,7994.6,ELMWOOD RESIDENTIAL HOME,90030,,People Services,Care Spot - Private (3rd),5701,B
18,Devon County Council,05/09/2012,CFADRES30067769,REDACTED UNDER DP ACT,1057.06,ELSTREE LAWNS NURSING HOME,240551,,People Services,Care Spot - Private (3rd),5701,B
18,Devon County Council,19/09/2012,CFADRES30068440,REDACTED UNDER DP ACT,1057.06,ELSTREE LAWNS NURSING HOME,240551,,People Services,Care Spot - Private (3rd),5701,B
18,Devon County Council,05/09/2012,CFADRES30067390,REDACTED UNDER DP ACT,1837.92,EMERY PD & ED,90047,,People Services,Care Spot - Private (3rd),5701,B
18,Devon County Council,19/09/2012,CFADRES30068063,REDACTED UNDER DP ACT,1837.92,EMERY PD & ED,90047,,People Services,Care Spot - Private (3rd),5701,B
18,Devon County Council,10/09/2012,CFADDAY30019750,REDACTED UNDER DP ACT,2110,EMPOWERING LIVES,248207,,People Services,Individualised Support - Private (3rd),5706,B
18,Devon County Council,10/09/2012,CFADDAY30019751,REDACTED UNDER DP ACT,714,EMPOWERING LIVES,248207,,People Services,Individualised Support - Private (3rd),5706,B
18,Devon County Council,10/09/2012,CFADDAY30019752,REDACTED UNDER DP ACT,1554,EMPOWERING LIVES,248207,,People Services,Individualised Support - Private (3rd),5706,B
18,Devon County Council,10/09/2012,CFADDAY30019753,REDACTED UNDER DP ACT,1554,EMPOWERING LIVES,248207,,People Services,Individualised Support - Private (3rd),5706,B
18,Devon County Council,10/09/2012,CFADDAY30019754,REDACTED UNDER DP ACT,2932,EMPOWERING LIVES,248207,,People Services,Individualised Support - Private (3rd),5706,B
18,Devon County Council,19/09/2012,CFADDAY30020324,REDACTED UNDER DP ACT,3136,EMTILL PROJECTS LTD**DO NOT EXCL,209609,,People Services,Individualised Support - Private (3rd),5706,B
18,Devon County Council,19/09/2012,CFADDAY30020325,REDACTED UNDER DP ACT,3190,EMTILL PROJECTS LTD**DO NOT EXCL,209609,,People Services,Individualised Support - Private (3rd),5706,B
18,Devon County Council,26/09/2012,CFADDAY30020599,REDACTED UNDER DP ACT,6930,EMTILL PROJECTS LTD**DO NOT EXCL,209609,,People Services,Individualised Support - Private (3rd),5706,B
18,Devon County Council,03/09/2012,CFADDAY30019457,REDACTED UNDER DP ACT,600,ENIGMA CARE LTD,206089,,People Services,Care Spot - Private (3rd),5701,B
18,Devon County Council,03/09/2012,CFADDAY30019458,REDACTED UNDER DP ACT,1441.96,ENIGMA CARE LTD,206089,,People Services,Individualised Support - Private (3rd),5706,B
18,Devon County Council,10/09/2012,CFADDAY30019728,REDACTED UNDER DP ACT,5000,ENIGMA CARE LTD,206089,,People Services,Individualised Support - Private (3rd),5706,B
18,Devon County Council,10/09/2012,CFADDAY30019729,REDACTED UNDER DP ACT,4836,ENIGMA CARE LTD,206089,,People Services,Individualised Support - Private (3rd),5706,B
18,Devon County Council,10/09/2012,CFADDAY30019730,REDACTED UNDER DP ACT,3034,ENIGMA CARE LTD,206089,,People Services,Individualised Support - Private (3rd),5706,B
18,Devon County Council,10/09/2012,CFADDAY30019731,REDACTED UNDER DP ACT,3076,ENIGMA CARE LTD,206089,,People Services,Individualised Support - Private (3rd),5706,B
18,Devon County Council,12/09/2012,CFADDAY30019985,REDACTED UNDER DP ACT,1600,ENIGMA CARE LTD,206089,,People Services,Individualised Support - Private (3rd),5706,B
18,Devon County Council,19/09/2012,CFADDAY30020320,REDACTED UNDER DP ACT,3034,ENIGMA CARE LTD,206089,,People Services,Individualised Support - Private (3rd),5706,B
18,Devon County Council,19/09/2012,CFADDAY30020321,REDACTED UNDER DP ACT,3076,ENIGMA CARE LTD,206089,,People Services,Individualised Support - Private (3rd),5706,B
18,Devon County Council,05/09/2012,CFADRES30067696,REDACTED UNDER DP ACT,11649.76,ENIGMA CARE LTD,206089,,People Services,Care Spot - Private (3rd),5701,B
18,Devon County Council,19/09/2012,CFADRES30068368,REDACTED UNDER DP ACT,11949.76,ENIGMA CARE LTD,206089,,People Services,Care Spot - Private (3rd),5701,B
18,Devon County Council,05/09/2012,CFADRES30067383,REDACTED UNDER DP ACT,16586,FARRINGTON RAB & MRS LH,89976,,People Services,Care Spot - Private (3rd),5701,B
18,Devon County Council,19/09/2012,CFADRES30068057,REDACTED UNDER DP ACT,16586,FARRINGTON RAB & MRS LH,89976,,People Services,Care Spot - Private (3rd),5701,B
18,Devon County Council,05/09/2012,CFADRES30067895,REDACTED UNDER DP ACT,1082.72,FERFOOT LTD T/A FERFOOT CARE HME,291809,,People Services,Care Spot - Private (3rd),5701,B
18,Devon County Council,19/09/2012,CFADRES30068564,REDACTED UNDER DP ACT,1082.72,FERFOOT LTD T/A FERFOOT CARE HME,291809,,People Services,Care Spot - Private (3rd),5701,B
18,Devon County Council,05/09/2012,CFADRES30067493,REDACTED UNDER DP ACT,4430.14,FERNBANK RESIDENTIAL HOME,92871,,People Services,Care Spot - Private (3rd),5701,B
18,Devon County Council,19/09/2012,CFADRES30068166,REDACTED UNDER DP ACT,755.6,FERNBANK RESIDENTIAL HOME,92871,,People Services,Care Spot - Private (3rd),5701,B
18,Devon County Council,05/09/2012,CFADRES30067444,REDACTED UNDER DP ACT,12837.37,FIRS RESIDENTIAL HOTEL THE,90589,,People Services,Care Spot - Private (3rd),5701,B
18,Devon County Council,19/09/2012,CFADRES30068117,REDACTED UNDER DP ACT,12965.94,FIRS RESIDENTIAL HOTEL THE,90589,,People Services,Care Spot - Private (3rd),5701,B
18,Devon County Council,05/09/2012,CFADRES30067665,REDACTED UNDER DP ACT,10439.84,FIRS THE,190976,,People Services,Care Spot - Private (3rd),5701,B
18,Devon County Council,19/09/2012,CFADRES30068337,REDACTED UNDER DP ACT,10439.84,FIRS THE,190976,,People Services,Care Spot - Private (3rd),5701,B
18,Devon County Council,05/09/2012,CFADRES30067739,REDACTED UNDER DP ACT,587.76,FIRS THE (TAUNTON),229805,,People Services,Care Spot - Private (3rd),5701,B
18,Devon County Council,19/09/2012,CFADRES30068411,REDACTED UNDER DP ACT,587.76,FIRS THE (TAUNTON),229805,,People Services,Care Spot - Private (3rd),5701,B
18,Devon County Council,05/09/2012,CFADRES30067687,REDACTED UNDER DP ACT,5163.96,FORGE HOUSE,202469,,People Services,Care Spot - Private (3rd),5701,B
18,Devon County Council,19/09/2012,CFADRES30068359,REDACTED UNDER DP ACT,5163.96,FORGE HOUSE,202469,,People Services,Care Spot - Private (3rd),5701,B
18,Devon County Council,05/09/2012,CFADRES30067811,REDACTED UNDER DP ACT,784.88,FOUNTAINS THE,265007,,People Services,Care Spot - Private (3rd),5701,B
18,Devon County Council,19/09/2012,CFADRES30068480,REDACTED UNDER DP ACT,784.88,FOUNTAINS THE,265007,,People Services,Care Spot - Private (3rd),5701,B
18,Devon County Council,05/09/2012,CFADRES30067238,REDACTED UNDER DP ACT,4757.98,FREMINGTON MANOR NURSING HOME,28212,,People Services,Care Spot - Private (3rd),5701,B
18,Devon County Council,19/09/2012,CFADRES30067913,REDACTED UNDER DP ACT,2265.06,FREMINGTON MANOR NURSING HOME,28212,,People Services,Care Spot - Private (3rd),5701,B
18,Devon County Council,05/09/2012,CFADRES30067777,REDACTED UNDER DP ACT,694.12,FRIENDS OF THE ELDERLY/THE LAWN,245844,,People Services,Care Spot - Private (3rd),5701,B
18,Devon County Council,19/09/2012,CFADRES30068448,REDACTED UNDER DP ACT,694.12,FRIENDS OF THE ELDERLY/THE LAWN,245844,,People Services,Care Spot - Private (3rd),5701,B
18,Devon County Council,05/09/2012,CFADRES30067539,REDACTED UNDER DP ACT,1008.9,FURZEHAM LODGE RESIDENTIAL HOME,111261,,People Services,Care Spot - Private (3rd),5701,B
18,Devon County Council,19/09/2012,CFADRES30068211,REDACTED UNDER DP ACT,1587.47,FURZEHAM LODGE RESIDENTIAL HOME,111261,,People Services,Care Spot - Private (3rd),5701,B
18,Devon County Council,05/09/2012,CFADRES30067274,REDACTED UNDER DP ACT,4920.68,GITTISHAM CARE LTD,87428,,People Services,Care Spot - Private (3rd),5701,B
18,Devon County Council,19/09/2012,CFADRES30067949,REDACTED UNDER DP ACT,4920.68,GITTISHAM CARE LTD,87428,,People Services,Care Spot - Private (3rd),5701,B
18,Devon County Council,05/09/2012,CFADRES30067345,REDACTED UNDER DP ACT,8136.64,GLENDALE COURT CARE HOME,89472,,People Services,Care Spot - Private (3rd),5701,B
18,Devon County Council,19/09/2012,CFADRES30068020,REDACTED UNDER DP ACT,8136.64,GLENDALE COURT CARE HOME,89472,,People Services,Care Spot - Private (3rd),5701,B
18,Devon County Council,17/09/2012,CFADDOM30043316,REDACTED UNDER DP ACT,599.76,GLENKEALEY RESIDENTIAL HOME,214184,,People Services,Care Spot - Private (3rd),5701,B
18,Devon County Council,17/09/2012,CFADDOM30043319,REDACTED UNDER DP ACT,599.76,GLENKEALEY RESIDENTIAL HOME,214184,,People Services,Care Spot - Private (3rd),5701,B
18,Devon County Council,17/09/2012,CFADDOM30043327,REDACTED UNDER DP ACT,599.76,GLENKEALEY RESIDENTIAL HOME,214184,,People Services,Care Spot - Private (3rd),5701,B
18,Devon County Council,17/09/2012,CFADDOM30043328,REDACTED UNDER DP ACT,1399.44,GLENKEALEY RESIDENTIAL HOME,214184,,People Services,Care Spot - Private (3rd),5701,B
18,Devon County Council,17/09/2012,CFADDOM30043331,REDACTED UNDER DP ACT,1799.28,GLENKEALEY RESIDENTIAL HOME,214184,,People Services,Care Spot - Private (3rd),5701,B
18,Devon County Council,17/09/2012,CFADDOM30043336,REDACTED UNDER DP ACT,767.55,GLENKEALEY RESIDENTIAL HOME,214184,,People Services,Care Spot - Private (3rd),5701,B
18,Devon County Council,17/09/2012,CFADDOM30043338,REDACTED UNDER DP ACT,1399.44,GLENKEALEY RESIDENTIAL HOME,214184,,People Services,Care Spot - Private (3rd),5701,B
18,Devon County Council,05/09/2012,CFADRES30067712,REDACTED UNDER DP ACT,6846.55,GLENKEALEY RESIDENTIAL HOME,214184,,People Services,Care Spot - Private (3rd),5701,B
18,Devon County Council,19/09/2012,CFADRES30068384,REDACTED UNDER DP ACT,6683.26,GLENKEALEY RESIDENTIAL HOME,214184,,People Services,Care Spot - Private (3rd),5701,B
18,Devon County Council,05/09/2012,CFADRES30067800,REDACTED UNDER DP ACT,2750,GLYNDERWEN HOUSE,258539,,People Services,Care Spot - Private (3rd),5701,B
18,Devon County Council,19/09/2012,CFADRES30068470,REDACTED UNDER DP ACT,2750,GLYNDERWEN HOUSE,258539,,People Services,Care Spot - Private (3rd),5701,B
18,Devon County Council,05/09/2012,CFADRES30067894,REDACTED UNDER DP ACT,6833.08,GOLDEN SANDS,291595,,People Services,Care Spot - Private (3rd),5701,B
18,Devon County Council,19/09/2012,CFADRES30068563,REDACTED UNDER DP ACT,6833.08,GOLDEN SANDS,291595,,People Services,Care Spot - Private (3rd),5701,B
18,Devon County Council,05/09/2012,CFADRES30067522,REDACTED UNDER DP ACT,1484.56,GOLP S C,102921,,People Services,Care Spot - Private (3rd),5701,B
18,Devon County Council,19/09/2012,CFADRES30068194,REDACTED UNDER DP ACT,1484.56,GOLP S C,102921,,People Services,Care Spot - Private (3rd),5701,B
18,Devon County Council,05/09/2012,CFADRES30067625,REDACTED UNDER DP ACT,1971.5,GRANARY THE,171058,,People Services,Care Spot - Private (3rd),5701,B
18,Devon County Council,19/09/2012,CFADRES30068296,REDACTED UNDER DP ACT,1971.5,GRANARY THE,171058,,People Services,Care Spot - Private (3rd),5701,B
18,Devon County Council,05/09/2012,CFADRES30067261,REDACTED UNDER DP ACT,688,GRANGE LEA,87031,,People Services,Care Spot - Private (3rd),5701,B
18,Devon County Council,19/09/2012,CFADRES30067936,REDACTED UNDER DP ACT,688,GRANGE LEA,87031,,People Services,Care Spot - Private (3rd),5701,B
18,Devon County Council,05/09/2012,CFADRES30067864,REDACTED UNDER DP ACT,2237.8,GREEN LIGHT PBS LTD,285469,,People Services,Care Spot - Private (3rd),5701,B
18,Devon County Council,19/09/2012,CFADRES30068534,REDACTED UNDER DP ACT,2237.8,GREEN LIGHT PBS LTD,285469,,People Services,Care Spot - Private (3rd),5701,B
18,Devon County Council,05/09/2012,CFADRES30067486,REDACTED UNDER DP ACT,4667.74,GREENACRE FARM COMMUNITIES LTD,90975,,People Services,Care Spot - Private (3rd),5701,B
18,Devon County Council,19/09/2012,CFADRES30068159,REDACTED UNDER DP ACT,4667.74,GREENACRE FARM COMMUNITIES LTD,90975,,People Services,Care Spot - Private (3rd),5701,B
18,Devon County Council,05/09/2012,CFADDAY30019495,REDACTED UNDER DP ACT,10072.16,GUINNESS CARE & SUPPORT,89630,,People Services,Care Spot - Private (3rd),5701,B
18,Devon County Council,05/09/2012,CFADDAY30019497,REDACTED UNDER DP ACT,9814.2,GUINNESS CARE & SUPPORT,89630,,People Services,Care Spot - Private (3rd),5701,B
18,Devon County Council,05/09/2012,CFADDAY30019499,REDACTED UNDER DP ACT,1661.4,GUINNESS CARE & SUPPORT,89630,,People Services,Care Spot - Private (3rd),5701,B
18,Devon County Council,05/09/2012,CFADRES30067353,REDACTED UNDER DP ACT,47371.7,GUINNESS CARE & SUPPORT,89630,,People Services,Care Spot - Private (3rd),5701,B
18,Devon County Council,05/09/2012,CFADRES30067354,REDACTED UNDER DP ACT,50464.02,GUINNESS CARE & SUPPORT,89630,,People Services,Care Spot - Private (3rd),5701,B
18,Devon County Council,05/09/2012,CFADRES30067355,REDACTED UNDER DP ACT,19907.26,GUINNESS CARE & SUPPORT,89630,,People Services,Care Spot - Private (3rd),5701,B
18,Devon County Council,19/09/2012,CFADRES30068028,REDACTED UNDER DP ACT,44570.48,GUINNESS CARE & SUPPORT,89630,,People Services,Care Spot - Private (3rd),5701,B
18,Devon County Council,19/09/2012,CFADRES30068029,REDACTED UNDER DP ACT,49723.14,GUINNESS CARE & SUPPORT,89630,,People Services,Care Spot - Private (3rd),5701,B
18,Devon County Council,19/09/2012,CFADRES30068030,REDACTED UNDER DP ACT,24201.71,GUINNESS CARE & SUPPORT,89630,,People Services,Care Spot - Private (3rd),5701,B
18,Devon County Council,05/09/2012,CFADRES17332315,REDACTED UNDER DP ACT,-3046.7,GUINNESS CARE & SUPPORT,89630,,People Services,Residential Income,9365,B
18,Devon County Council,19/09/2012,CFADRES17332322,REDACTED UNDER DP ACT,-2714.84,GUINNESS CARE & SUPPORT,89630,,People Services,Residential Income,9365,B
18,Devon County Council,10/09/2012,CFADDOM30042677,REDACTED UNDER DP ACT,709.8,H F TRUST LTD,106688,,People Services,Care Spot - Private (3rd),5701,B
18,Devon County Council,10/09/2012,CFADDOM30042678,REDACTED UNDER DP ACT,709.8,H F TRUST LTD,106688,,People Services,Care Spot - Private (3rd),5701,B
18,Devon County Council,10/09/2012,CFADDOM30042679,REDACTED UNDER DP ACT,567.84,H F TRUST LTD,106688,,People Services,Care Spot - Private (3rd),5701,B
18,Devon County Council,10/09/2012,CFADDOM30042683,REDACTED UNDER DP ACT,946.4,H F TRUST LTD,106688,,People Services,Care Spot - Private (3rd),5701,B
18,Devon County Council,10/09/2012,CFADDOM30042685,REDACTED UNDER DP ACT,567.84,H F TRUST LTD,106688,,People Services,Care Spot - Private (3rd),5701,B
18,Devon County Council,10/09/2012,CFADDOM30042687,REDACTED UNDER DP ACT,638.82,H F TRUST LTD,106688,,People Services,Care Spot - Private (3rd),5701,B
18,Devon County Council,12/09/2012,CFADDOM30042947,REDACTED UNDER DP ACT,540.8,H F TRUST LTD,106688,,People Services,Care Spot - Private (3rd),5701,B
18,Devon County Council,05/09/2012,CFADRES30067532,REDACTED UNDER DP ACT,1931.2,H F TRUST LTD,106688,,People Services,Care Spot - Private (3rd),5701,B
18,Devon County Council,19/09/2012,CFADRES30068203,REDACTED UNDER DP ACT,1931.2,H F TRUST LTD,106688,,People Services,Care Spot - Private (3rd),5701,B
18,Devon County Council,05/09/2012,CFADRES30067883,REDACTED UNDER DP ACT,708,HALLMARK CARE HOME/TA CWRT ENFYS,289100,,People Services,Care Spot - Private (3rd),5701,B
18,Devon County Council,19/09/2012,CFADRES30068553,REDACTED UNDER DP ACT,708,HALLMARK CARE HOME/TA CWRT ENFYS,289100,,People Services,Care Spot - Private (3rd),5701,B
18,Devon County Council,05/09/2012,CFADRES30067861,REDACTED UNDER DP ACT,1194,HALSEY HOUSE,285354,,People Services,Care Spot - Private (3rd),5701,B
18,Devon County Council,19/09/2012,CFADRES30068531,REDACTED UNDER DP ACT,1194,HALSEY HOUSE,285354,,People Services,Care Spot - Private (3rd),5701,B
18,Devon County Council,10/09/2012,CFADDAY30019747,REDACTED UNDER DP ACT,2460,HARDY RACHEL,233033,,People Services,Individualised Support - Private (3rd),5706,B
18,Devon County Council,10/09/2012,CFADDAY30019748,REDACTED UNDER DP ACT,1944,HARDY RACHEL,233033,,People Services,Individualised Support - Private (3rd),5706,B
18,Devon County Council,10/09/2012,CFADDAY30019749,REDACTED UNDER DP ACT,1740,HARDY RACHEL,233033,,People Services,Individualised Support - Private (3rd),5706,B
18,Devon County Council,12/09/2012,CFADDAY30020004,REDACTED UNDER DP ACT,1788,HARDY RACHEL,233033,,People Services,Individualised Support - Private (3rd),5706,B
18,Devon County Council,19/09/2012,CFADDAY30020341,REDACTED UNDER DP ACT,1900,HARDY RACHEL,233033,,People Services,Individualised Support - Private (3rd),5706,B
18,Devon County Council,19/09/2012,CFADDAY30020342,REDACTED UNDER DP ACT,1892,HARDY RACHEL,233033,,People Services,Individualised Support - Private (3rd),5706,B
18,Devon County Council,19/09/2012,CFADDAY30020343,REDACTED UNDER DP ACT,2000.04,HARDY RACHEL,233033,,People Services,Individualised Support - Private (3rd),5706,B
18,Devon County Council,19/09/2012,CFADDAY30020344,REDACTED UNDER DP ACT,1695,HARDY RACHEL,233033,,People Services,Individualised Support - Private (3rd),5706,B
18,Devon County Council,24/09/2012,CFADDAY30020510,REDACTED UNDER DP ACT,1788,HARDY RACHEL,233033,,People Services,Individualised Support - Private (3rd),5706,B
18,Devon County Council,26/09/2012,CFADDAY30020615,REDACTED UNDER DP ACT,1971,HARDY RACHEL,233033,,People Services,Individualised Support - Private (3rd),5706,B
18,Devon County Council,19/09/2012,CFADRES30068583,REDACTED UNDER DP ACT,1700,HARTFORD CARE(SW)LD TA BETHEL HS,295297,,People Services,Care Spot - Private (3rd),5701,B
18,Devon County Council,05/09/2012,CFADRES30067782,REDACTED UNDER DP ACT,1270.6,HATCHMOOR NURSING HOME,247652,,People Services,Care Spot - Private (3rd),5701,B
18,Devon County Council,19/09/2012,CFADRES30068453,REDACTED UNDER DP ACT,1270.6,HATCHMOOR NURSING HOME,247652,,People Services,Care Spot - Private (3rd),5701,B
18,Devon County Council,05/09/2012,CFADRES30067766,REDACTED UNDER DP ACT,20534.64,HATHERLEIGH CARE VILLAGE,239685,,People Services,Care Spot - Private (3rd),5701,B
18,Devon County Council,19/09/2012,CFADRES30068437,REDACTED UNDER DP ACT,14198.14,HATHERLEIGH CARE VILLAGE,239685,,People Services,Care Spot - Private (3rd),5701,B
18,Devon County Council,19/09/2012,CFADRES30068438,REDACTED UNDER DP ACT,5149.64,HATHERLEIGH CARE VILLAGE,239685,,People Services,Care Spot - Private (3rd),5701,B
18,Devon County Council,03/09/2012,FINEAAD30661413,91578,2872.47,HATHERLEIGH CARE VILLAGE,239685,,People Services,Care Respite - Private (3rd),5703,B
18,Devon County Council,20/09/2012,FINSSCW30457862,91770,559.67,HATHERLEIGH CARE VILLAGE,239685,,People Services,Care Spot - Private (3rd),5701,B
18,Devon County Council,05/09/2012,CFADRES30067495,REDACTED UNDER DP ACT,15153.54,HAVENCARE (PLYMOUTH) LTD,94000,,People Services,Care Spot - Private (3rd),5701,B
18,Devon County Council,19/09/2012,CFADRES30068168,REDACTED UNDER DP ACT,15153.54,HAVENCARE (PLYMOUTH) LTD,94000,,People Services,Care Spot - Private (3rd),5701,B
18,Devon County Council,05/09/2012,CFADRES30067520,REDACTED UNDER DP ACT,10827.88,HAVENSCARE RESIDENTIAL HOME,102915,,People Services,Care Spot - Private (3rd),5701,B
18,Devon County Council,19/09/2012,CFADRES30068192,REDACTED UNDER DP ACT,10827.88,HAVENSCARE RESIDENTIAL HOME,102915,,People Services,Care Spot - Private (3rd),5701,B
18,Devon County Council,05/09/2012,CFADRES30067298,REDACTED UNDER DP ACT,9632.93,HAY HOUSE,88805,,People Services,Care Spot - Private (3rd),5701,B
18,Devon County Council,05/09/2012,CFADRES30067879,REDACTED UNDER DP ACT,1040,HC-ONE LTD T/A TRAFALGAR PARK,288236,,People Services,Care Spot - Private (3rd),5701,B
18,Devon County Council,19/09/2012,CFADRES30068549,REDACTED UNDER DP ACT,1040,HC-ONE LTD T/A TRAFALGAR PARK,288236,,People Services,Care Spot - Private (3rd),5701,B
18,Devon County Council,05/09/2012,CFADRES30067564,REDACTED UNDER DP ACT,3925,HEALTH CARE TRUST LTD,134214,,People Services,Care Spot - Private (3rd),5701,B
18,Devon County Council,19/09/2012,CFADRES30068236,REDACTED UNDER DP ACT,3925,HEALTH CARE TRUST LTD,134214,,People Services,Care Spot - Private (3rd),5701,B
18,Devon County Council,05/09/2012,CFADRES30067876,REDACTED UNDER DP ACT,782,HEATH LODGE CARE HOME,287187,,People Services,Care Spot - Private (3rd),5701,B
18,Devon County Council,19/09/2012,CFADRES30068546,REDACTED UNDER DP ACT,782,HEATH LODGE CARE HOME,287187,,People Services,Care Spot - Private (3rd),5701,B
18,Devon County Council,05/09/2012,CFADRES30067674,REDACTED UNDER DP ACT,13053.94,HEATHERSIDE HOUSE,195163,,People Services,Care Spot - Private (3rd),5701,B
18,Devon County Council,19/09/2012,CFADRES30068346,REDACTED UNDER DP ACT,13053.94,HEATHERSIDE HOUSE,195163,,People Services,Care Spot - Private (3rd),5701,B
18,Devon County Council,05/09/2012,CFADRES30067326,REDACTED UNDER DP ACT,11774.1,HEMBURY FORT HOUSE,89213,,People Services,Care Spot - Private (3rd),5701,B
18,Devon County Council,19/09/2012,CFADRES30068001,REDACTED UNDER DP ACT,12102.67,HEMBURY FORT HOUSE,89213,,People Services,Care Spot - Private (3rd),5701,B
18,Devon County Council,05/09/2012,CFADRES30067487,REDACTED UNDER DP ACT,2728.12,HERONS LEA RESIDENTIAL HOME,91007,,People Services,Care Spot - Private (3rd),5701,B
18,Devon County Council,19/09/2012,CFADRES30068160,REDACTED UNDER DP ACT,3364.24,HERONS LEA RESIDENTIAL HOME,91007,,People Services,Care Spot - Private (3rd),5701,B
18,Devon County Council,05/09/2012,CFADRES30067700,REDACTED UNDER DP ACT,689,HIGHLANDS MIST,206676,,People Services,Care Spot - Private (3rd),5701,B
18,Devon County Council,19/09/2012,CFADRES30068372,REDACTED UNDER DP ACT,689,HIGHLANDS MIST,206676,,People Services,Care Spot - Private (3rd),5701,B
18,Devon County Council,05/09/2012,CFADRES30067460,REDACTED UNDER DP ACT,2706.16,HILL HOUSE HOME (BRIXHAM),90696,,People Services,Care Spot - Private (3rd),5701,B
18,Devon County Council,19/09/2012,CFADRES30068132,REDACTED UNDER DP ACT,2706.16,HILL HOUSE HOME (BRIXHAM),90696,,People Services,Care Spot - Private (3rd),5701,B
18,Devon County Council,05/09/2012,CFADRES30067554,REDACTED UNDER DP ACT,6431.15,HILLBROW RESIDENTIAL CARE HME LT,120028,,People Services,Care Spot - Private (3rd),5701,B
18,Devon County Council,19/09/2012,CFADRES30068226,REDACTED UNDER DP ACT,5645.44,HILLBROW RESIDENTIAL CARE HME LT,120028,,People Services,Care Spot - Private (3rd),5701,B
18,Devon County Council,05/09/2012,CFADRES30067528,REDACTED UNDER DP ACT,847.4,HILLCREST HOUSE NURSING HOME,105455,,People Services,Care Spot - Private (3rd),5701,B
18,Devon County Council,19/09/2012,CFADRES30068200,REDACTED UNDER DP ACT,847.4,HILLCREST HOUSE NURSING HOME,105455,,People Services,Care Spot - Private (3rd),5701,B
18,Devon County Council,03/09/2012,CFADDAY30019485,REDACTED UNDER DP ACT,2880,HOLSWORTHY DAY CENTRE,277333,,People Services,Care Spot - Private (3rd),5701,B
18,Devon County Council,05/09/2012,CFADRES30067552,REDACTED UNDER DP ACT,2980.11,HOLWELL VILLA,119407,,People Services,Care Spot - Private (3rd),5701,B
18,Devon County Council,19/09/2012,CFADRES30068224,REDACTED UNDER DP ACT,2387.26,HOLWELL VILLA,119407,,People Services,Care Spot - Private (3rd),5701,B
18,Devon County Council,05/09/2012,CFADRES30067332,REDACTED UNDER DP ACT,6195.46,HOMEFARM TRUST LTD,89260,,People Services,Care Spot - Private (3rd),5701,B
18,Devon County Council,19/09/2012,CFADRES30068007,REDACTED UNDER DP ACT,6195.46,HOMEFARM TRUST LTD,89260,,People Services,Care Spot - Private (3rd),5701,B
18,Devon County Council,03/09/2012,CFADDOM30042262,REDACTED UNDER DP ACT,1064,HOMELIFE CARERS LTD,209222,,People Services,Care Spot - Private (3rd),5701,B
18,Devon County Council,24/09/2012,CFADDOM30043677,REDACTED UNDER DP ACT,26737.07,HOMELIFE CARERS LTD,209222,,People Services,Care Spot - Private (3rd),5701,B
18,Devon County Council,24/09/2012,CFADDOM30043678,REDACTED UNDER DP ACT,20520.93,HOMELIFE CARERS LTD,209222,,People Services,Care Spot - Private (3rd),5701,B
18,Devon County Council,05/09/2012,CFADRES30067435,REDACTED UNDER DP ACT,4398.69,HOMESTEAD THE,90483,,People Services,Care Spot - Private (3rd),5701,B
18,Devon County Council,19/09/2012,CFADRES30068108,REDACTED UNDER DP ACT,3635.84,HOMESTEAD THE,90483,,People Services,Care Spot - Private (3rd),5701,B
18,Devon County Council,05/09/2012,CFADRES30067631,REDACTED UNDER DP ACT,7209.82,HONEYBOURNE HOUSE,174783,,People Services,Care Spot - Private (3rd),5701,B
18,Devon County Council,19/09/2012,CFADRES30068302,REDACTED UNDER DP ACT,7209.82,HONEYBOURNE HOUSE,174783,,People Services,Care Spot - Private (3rd),5701,B
18,Devon County Council,12/09/2012,CFADDOM30043041,REDACTED UNDER DP ACT,598,HORIZON HOME CARE,294405,,People Services,Care Spot - Private (3rd),5701,B
18,Devon County Council,05/09/2012,CFADRES30067848,REDACTED UNDER DP ACT,911.28,HOUNDSWOOD HOUSE CARE HOME,280242,,People Services,Care Spot - Private (3rd),5701,B
18,Devon County Council,19/09/2012,CFADRES30068517,REDACTED UNDER DP ACT,911.28,HOUNDSWOOD HOUSE CARE HOME,280242,,People Services,Care Spot - Private (3rd),5701,B
18,Devon County Council,12/09/2012,CFADDAY30020015,REDACTED UNDER DP ACT,1768,HOUSDEN,255886,,People Services,Individualised Support - Private (3rd),5706,B
18,Devon County Council,12/09/2012,CFADDAY30020016,REDACTED UNDER DP ACT,988,HOUSDEN,255886,,People Services,Individualised Support - Private (3rd),5706,B
18,Devon County Council,12/09/2012,CFADDAY30020017,REDACTED UNDER DP ACT,936,HOUSDEN,255886,,People Services,Individualised Support - Private (3rd),5706,B
18,Devon County Council,05/09/2012,CFADRES30067308,REDACTED UNDER DP ACT,4819.56,HUNTLEY T/A VENVILLE HOUSE DC &,89063,,People Services,Care Spot - Private (3rd),5701,B
18,Devon County Council,19/09/2012,CFADRES30067983,REDACTED UNDER DP ACT,4819.56,HUNTLEY T/A VENVILLE HOUSE DC &,89063,,People Services,Care Spot - Private (3rd),5701,B
18,Devon County Council,13/09/2012,CYPNMLOC30196948,JF 24/08/12,2874.3,INDEPENDANCE,259184,,People Services,Care Other - Private (3rd),5705,B
18,Devon County Council,20/09/2012,CYPNMLOC30197211,AS 31/08/12,879,INDEPENDANCE,259184,,People Services,Care Other - Private (3rd),5705,B
18,Devon County Council,20/09/2012,CYPNMLOC30197214,JH 04/09/12,1553.63,INDEPENDANCE,259184,,People Services,Care Other - Private (3rd),5705,B
18,Devon County Council,27/09/2012,CYPNMLOC30197267,CL 23/08/12,536.86,INDEPENDANCE,259184,,People Services,Care Other - Private (3rd),5705,B
18,Devon County Council,26/09/2012,CFADDAY30020619,REDACTED UNDER DP ACT,1004.5,IVY HOUSE,242760,,People Services,Individualised Support - Private (3rd),5706,B
18,Devon County Council,26/09/2012,CFADDAY30020620,REDACTED UNDER DP ACT,600,IVY HOUSE,242760,,People Services,Individualised Support - Private (3rd),5706,B
18,Devon County Council,26/09/2012,CFADDAY30020621,REDACTED UNDER DP ACT,840,IVY HOUSE,242760,,People Services,Individualised Support - Private (3rd),5706,B
18,Devon County Council,26/09/2012,CFADDAY30020622,REDACTED UNDER DP ACT,630,IVY HOUSE,242760,,People Services,Individualised Support - Private (3rd),5706,B
18,Devon County Council,05/09/2012,CFADRES30067388,REDACTED UNDER DP ACT,10362.18,J G T CARE HOMES,90042,,People Services,Care Spot - Private (3rd),5701,B
18,Devon County Council,05/09/2012,CFADRES30067248,REDACTED UNDER DP ACT,1812.28,JAH-JIREH NURSING HOME,86686,,People Services,Care Spot - Private (3rd),5701,B
18,Devon County Council,19/09/2012,CFADRES30067923,REDACTED UNDER DP ACT,1812.28,JAH-JIREH NURSING HOME,86686,,People Services,Care Spot - Private (3rd),5701,B
18,Devon County Council,05/09/2012,CFADRES30067755,REDACTED UNDER DP ACT,1161.84,JASMINE HOUSE,233197,,People Services,Care Spot - Private (3rd),5701,B
18,Devon County Council,19/09/2012,CFADRES30068427,REDACTED UNDER DP ACT,1161.84,JASMINE HOUSE,233197,,People Services,Care Spot - Private (3rd),5701,B
18,Devon County Council,10/09/2012,CFADDAY30019678,REDACTED UNDER DP ACT,630.36,JEDD INTERNATIONAL LTD,119582,,People Services,Care Spot - Private (3rd),5701,B
18,Devon County Council,10/09/2012,CFADDAY30019679,REDACTED UNDER DP ACT,630.36,JEDD INTERNATIONAL LTD,119582,,People Services,Care Spot - Private (3rd),5701,B
18,Devon County Council,05/09/2012,CFADRES30067553,REDACTED UNDER DP ACT,7968.64,JEDD INTERNATIONAL LTD,119582,,People Services,Care Spot - Private (3rd),5701,B
18,Devon County Council,19/09/2012,CFADRES30068225,REDACTED UNDER DP ACT,7968.64,JEDD INTERNATIONAL LTD,119582,,People Services,Care Spot - Private (3rd),5701,B
18,Devon County Council,05/09/2012,CFADRES30067503,REDACTED UNDER DP ACT,12591.72,JONES GP & K T/A DONERAILE,98052,,People Services,Care Spot - Private (3rd),5701,B
18,Devon County Council,19/09/2012,CFADRES30068176,REDACTED UNDER DP ACT,12591.72,JONES GP & K T/A DONERAILE,98052,,People Services,Care Spot - Private (3rd),5701,B
18,Devon County Council,03/09/2012,CFADDAY30019478,REDACTED UNDER DP ACT,1008,KAZLUM SUPPORT SERVICES,234919,979268646,People Services,Individualised Support - Private (3rd),5706,B
18,Devon County Council,05/09/2012,CFADDAY30019517,REDACTED UNDER DP ACT,1152,KAZLUM SUPPORT SERVICES,234919,979268646,People Services,Individualised Support - Private (3rd),5706,B
18,Devon County Council,19/09/2012,CFADDAY30020345,REDACTED UNDER DP ACT,1440,KAZLUM SUPPORT SERVICES,234919,979268646,People Services,Individualised Support - Private (3rd),5706,B
18,Devon County Council,19/09/2012,CFADDAY30020346,REDACTED UNDER DP ACT,3482.56,KAZLUM SUPPORT SERVICES,234919,979268646,People Services,Individualised Support - Private (3rd),5706,B
18,Devon County Council,19/09/2012,CFADDAY30020347,REDACTED UNDER DP ACT,1728,KAZLUM SUPPORT SERVICES,234919,979268646,People Services,Individualised Support - Private (3rd),5706,B
18,Devon County Council,19/09/2012,CFADDAY30020348,REDACTED UNDER DP ACT,2811.24,KAZLUM SUPPORT SERVICES,234919,979268646,People Services,Individualised Support - Private (3rd),5706,B
18,Devon County Council,19/09/2012,CFADDAY30020349,REDACTED UNDER DP ACT,2441.92,KAZLUM SUPPORT SERVICES,234919,979268646,People Services,Individualised Support - Private (3rd),5706,B
18,Devon County Council,19/09/2012,CFADDAY30020350,REDACTED UNDER DP ACT,1324.8,KAZLUM SUPPORT SERVICES,234919,979268646,People Services,Individualised Support - Private (3rd),5706,B
18,Devon County Council,19/09/2012,CFADDAY30020351,REDACTED UNDER DP ACT,1555.2,KAZLUM SUPPORT SERVICES,234919,979268646,People Services,Individualised Support - Private (3rd),5706,B
18,Devon County Council,19/09/2012,CFADDAY30020352,REDACTED UNDER DP ACT,921.6,KAZLUM SUPPORT SERVICES,234919,979268646,People Services,Individualised Support - Private (3rd),5706,B
18,Devon County Council,19/09/2012,CFADDAY30020353,REDACTED UNDER DP ACT,1640.52,KAZLUM SUPPORT SERVICES,234919,979268646,People Services,Individualised Support - Private (3rd),5706,B
18,Devon County Council,19/09/2012,CFADDAY30020354,REDACTED UNDER DP ACT,2764.8,KAZLUM SUPPORT SERVICES,234919,979268646,People Services,Individualised Support - Private (3rd),5706,B
18,Devon County Council,19/09/2012,CFADDAY30020355,REDACTED UNDER DP ACT,1152,KAZLUM SUPPORT SERVICES,234919,979268646,People Services,Individualised Support - Private (3rd),5706,B
18,Devon County Council,19/09/2012,CFADDAY30020356,REDACTED UNDER DP ACT,1324.8,KAZLUM SUPPORT SERVICES,234919,979268646,People Services,Individualised Support - Private (3rd),5706,B
18,Devon County Council,19/09/2012,CFADDAY30020357,REDACTED UNDER DP ACT,1612.8,KAZLUM SUPPORT SERVICES,234919,979268646,People Services,Individualised Support - Private (3rd),5706,B
18,Devon County Council,19/09/2012,CFADDAY30020358,REDACTED UNDER DP ACT,806.4,KAZLUM SUPPORT SERVICES,234919,979268646,People Services,Individualised Support - Private (3rd),5706,B
18,Devon County Council,24/09/2012,CFADDAY30020511,REDACTED UNDER DP ACT,2073.6,KAZLUM SUPPORT SERVICES,234919,979268646,People Services,Individualised Support - Private (3rd),5706,B
18,Devon County Council,05/09/2012,CFADRES30067561,REDACTED UNDER DP ACT,1268.66,KENT FARM RESIDENTIAL HOME,133861,,People Services,Care Spot - Private (3rd),5701,B
18,Devon County Council,19/09/2012,CFADRES30068233,REDACTED UNDER DP ACT,1268.66,KENT FARM RESIDENTIAL HOME,133861,,People Services,Care Spot - Private (3rd),5701,B
18,Devon County Council,05/09/2012,CFADRES30067632,REDACTED UNDER DP ACT,8065.12,KENWYN RESIDENTIAL HOME,174853,,People Services,Care Spot - Private (3rd),5701,B
18,Devon County Council,19/09/2012,CFADRES30068303,REDACTED UNDER DP ACT,8065.12,KENWYN RESIDENTIAL HOME,174853,,People Services,Care Spot - Private (3rd),5701,B
18,Devon County Council,05/09/2012,CFADRES30067403,REDACTED UNDER DP ACT,4888.52,KEYCHANGE ROSE LAWN SIDMOUTH,90174,,People Services,Care Spot - Private (3rd),5701,B
18,Devon County Council,19/09/2012,CFADRES30068076,REDACTED UNDER DP ACT,4888.52,KEYCHANGE ROSE LAWN SIDMOUTH,90174,,People Services,Care Spot - Private (3rd),5701,B
18,Devon County Council,05/09/2012,CFADRES30067685,REDACTED UNDER DP ACT,3370,KINGSHURST COURT,201348,,People Services,Care Spot - Private (3rd),5701,B
18,Devon County Council,19/09/2012,CFADRES30068357,REDACTED UNDER DP ACT,2421.43,KINGSHURST COURT,201348,,People Services,Care Spot - Private (3rd),5701,B
18,Devon County Council,05/09/2012,CFADRES30067791,REDACTED UNDER DP ACT,788,KINGSTHORPE VIEW CARE HOME,253347,,People Services,Care Spot - Private (3rd),5701,B
18,Devon County Council,19/09/2012,CFADRES30068462,REDACTED UNDER DP ACT,788,KINGSTHORPE VIEW CARE HOME,253347,,People Services,Care Spot - Private (3rd),5701,B
18,Devon County Council,05/09/2012,CFADRES30067714,REDACTED UNDER DP ACT,952,KINGSTON COURT CARE HOME,215015,,People Services,Care Spot - Private (3rd),5701,B
18,Devon County Council,19/09/2012,CFADRES30068386,REDACTED UNDER DP ACT,952,KINGSTON COURT CARE HOME,215015,,People Services,Care Spot - Private (3rd),5701,B
18,Devon County Council,05/09/2012,CFADRES30067293,REDACTED UNDER DP ACT,1991.16,KINGSWOOD HOUSE NURSING HOME,88741,,People Services,Care Spot - Private (3rd),5701,B
18,Devon County Council,19/09/2012,CFADRES30067968,REDACTED UNDER DP ACT,1991.16,KINGSWOOD HOUSE NURSING HOME,88741,,People Services,Care Spot - Private (3rd),5701,B
18,Devon County Council,03/09/2012,CFADDAY30019459,REDACTED UNDER DP ACT,1032.84,KNIGHT CARE PROVIDERS LTD,208256,,People Services,Individualised Support - Private (3rd),5706,B
18,Devon County Council,03/09/2012,CFADDAY30019460,REDACTED UNDER DP ACT,992.07,KNIGHT CARE PROVIDERS LTD,208256,,People Services,Individualised Support - Private (3rd),5706,B
18,Devon County Council,03/09/2012,CFADDAY30019461,REDACTED UNDER DP ACT,1032.84,KNIGHT CARE PROVIDERS LTD,208256,,People Services,Individualised Support - Private (3rd),5706,B
18,Devon County Council,03/09/2012,CFADDAY30019462,REDACTED UNDER DP ACT,835.78,KNIGHT CARE PROVIDERS LTD,208256,,People Services,Individualised Support - Private (3rd),5706,B
18,Devon County Council,03/09/2012,CFADDAY30019463,REDACTED UNDER DP ACT,1005.66,KNIGHT CARE PROVIDERS LTD,208256,,People Services,Individualised Support - Private (3rd),5706,B
18,Devon County Council,05/09/2012,CFADRES30067521,REDACTED UNDER DP ACT,1069.92,KNIGHT SC & N-BUSINESS ACCOUNT,102916,,People Services,Care Spot - Private (3rd),5701,B
18,Devon County Council,19/09/2012,CFADRES30068193,REDACTED UNDER DP ACT,1069.92,KNIGHT SC & N-BUSINESS ACCOUNT,102916,,People Services,Care Spot - Private (3rd),5701,B
18,Devon County Council,05/09/2012,CFADRES30067877,REDACTED UNDER DP ACT,1500,KNIGHTS TEMPLAR COURT,287380,,People Services,Care Spot - Private (3rd),5701,B
18,Devon County Council,19/09/2012,CFADRES30068547,REDACTED UNDER DP ACT,1500,KNIGHTS TEMPLAR COURT,287380,,People Services,Care Spot - Private (3rd),5701,B
18,Devon County Council,05/09/2012,CFADRES30067721,REDACTED UNDER DP ACT,845.08,KNOLL NURSING HOME,219284,,People Services,Care Spot - Private (3rd),5701,B
18,Devon County Council,19/09/2012,CFADRES30068393,REDACTED UNDER DP ACT,845.08,KNOLL NURSING HOME,219284,,People Services,Care Spot - Private (3rd),5701,B
18,Devon County Council,05/09/2012,CFADRES30067315,REDACTED UNDER DP ACT,15768.85,KOTHE KJG & MRS VC T/A SANDHURST,89102,,People Services,Care Spot - Private (3rd),5701,B
18,Devon County Council,19/09/2012,CFADRES30067990,REDACTED UNDER DP ACT,16529.57,KOTHE KJG & MRS VC T/A SANDHURST,89102,,People Services,Care Spot - Private (3rd),5701,B
18,Devon County Council,05/09/2012,CFADRES30067828,REDACTED UNDER DP ACT,774,KOWLESSUR MR & MRS TA BROADACRES,274180,,People Services,Care Spot - Private (3rd),5701,B
18,Devon County Council,19/09/2012,CFADRES30068497,REDACTED UNDER DP ACT,774,KOWLESSUR MR & MRS TA BROADACRES,274180,,People Services,Care Spot - Private (3rd),5701,B
18,Devon County Council,05/09/2012,CFADRES30067576,REDACTED UNDER DP ACT,9154.75,LAKENHAM RESIDENTIAL HOME,143978,,People Services,Care Spot - Private (3rd),5701,B
18,Devon County Council,19/09/2012,CFADRES30068248,REDACTED UNDER DP ACT,8117.45,LAKENHAM RESIDENTIAL HOME,143978,,People Services,Care Spot - Private (3rd),5701,B
18,Devon County Council,18/09/2012,FINNDAD30450105,A POPHAM,2134.29,LAKENHAM RESIDENTIAL HOME,143978,,People Services,Care Spot - Private (3rd),5701,B
18,Devon County Council,05/09/2012,CFADRES30067779,REDACTED UNDER DP ACT,4278.18,LAKESIDE RESIDENTIAL HOME,246277,,People Services,Care Spot - Private (3rd),5701,B
18,Devon County Council,19/09/2012,CFADRES30068450,REDACTED UNDER DP ACT,4278.18,LAKESIDE RESIDENTIAL HOME,246277,,People Services,Care Spot - Private (3rd),5701,B
18,Devon County Council,05/09/2012,CFADRES30067592,REDACTED UNDER DP ACT,11767.8,LAKEVIEW RESIDENTIAL HOME,156132,,People Services,Care Spot - Private (3rd),5701,B
18,Devon County Council,19/09/2012,CFADRES30068263,REDACTED UNDER DP ACT,12339.23,LAKEVIEW RESIDENTIAL HOME,156132,,People Services,Care Spot - Private (3rd),5701,B
18,Devon County Council,05/09/2012,CFADRES30067329,REDACTED UNDER DP ACT,1582.82,LAMBSPARK RESIDENTIAL CARE HME,89243,,People Services,Care Spot - Private (3rd),5701,B
18,Devon County Council,19/09/2012,CFADRES30068004,REDACTED UNDER DP ACT,1582.82,LAMBSPARK RESIDENTIAL CARE HME,89243,,People Services,Care Spot - Private (3rd),5701,B
18,Devon County Council,05/09/2012,CFADRES30067575,REDACTED UNDER DP ACT,7832.9,LANDSCORE HOUSE,143547,,People Services,Care Spot - Private (3rd),5701,B
18,Devon County Council,19/09/2012,CFADRES30068247,REDACTED UNDER DP ACT,7240.05,LANDSCORE HOUSE,143547,,People Services,Care Spot - Private (3rd),5701,B
18,Devon County Council,05/09/2012,CFADRES30067467,REDACTED UNDER DP ACT,4158.52,LARCHES THE,90783,,People Services,Care Spot - Private (3rd),5701,B
18,Devon County Council,19/09/2012,CFADRES30068140,REDACTED UNDER DP ACT,4082,LARCHES THE,90783,,People Services,Care Spot - Private (3rd),5701,B
18,Devon County Council,05/09/2012,CFADRES30067375,REDACTED UNDER DP ACT,8552.16,LARK CASTLE LTD T/A YELVERTON,89858,,People Services,Care Spot - Private (3rd),5701,B
18,Devon County Council,05/09/2012,CFADRES30067762,REDACTED UNDER DP ACT,3904.24,LAS FLORES,237864,,People Services,Care Spot - Private (3rd),5701,B
18,Devon County Council,19/09/2012,CFADRES30068433,REDACTED UNDER DP ACT,4319.24,LAS FLORES,237864,,People Services,Care Spot - Private (3rd),5701,B
18,Devon County Council,05/09/2012,CFADRES30067457,REDACTED UNDER DP ACT,7988.5,LAWNS THE,90648,918307815,People Services,Care Spot - Private (3rd),5701,B
18,Devon County Council,19/09/2012,CFADRES30068130,REDACTED UNDER DP ACT,7988.5,LAWNS THE,90648,918307815,People Services,Care Spot - Private (3rd),5701,B
18,Devon County Council,05/09/2012,CFADRES30067546,REDACTED UNDER DP ACT,9997.02,LAWRENCE HOUSE,117551,,People Services,Care Spot - Private (3rd),5701,B
18,Devon County Council,19/09/2012,CFADRES30068218,REDACTED UNDER DP ACT,9997.02,LAWRENCE HOUSE,117551,,People Services,Care Spot - Private (3rd),5701,B
18,Devon County Council,05/09/2012,CFADRES30067726,REDACTED UNDER DP ACT,6381.94,LE CHALET,221825,,People Services,Care Spot - Private (3rd),5701,B
18,Devon County Council,19/09/2012,CFADRES30068398,REDACTED UNDER DP ACT,6381.94,LE CHALET,221825,,People Services,Care Spot - Private (3rd),5701,B
18,Devon County Council,03/09/2012,CFADDOM30042368,REDACTED UNDER DP ACT,7845,LEAN ON ME COMMUNITY CARE SERVS,244405,,People Services,Care Spot - Private (3rd),5701,B
18,Devon County Council,17/09/2012,CFADDOM30043364,REDACTED UNDER DP ACT,7488.75,LEAN ON ME COMMUNITY CARE SERVS,244405,,People Services,Care Spot - Private (3rd),5701,B
18,Devon County Council,26/09/2012,CFADDOM30043915,REDACTED UNDER DP ACT,6791.25,LEAN ON ME COMMUNITY CARE SERVS,244405,,People Services,Care Spot - Private (3rd),5701,B
18,Devon County Council,05/09/2012,CFADRES30067473,REDACTED UNDER DP ACT,2886.16,LEET/A HARDWICK VIEW A/C A,90849,,People Services,Care Spot - Private (3rd),5701,B
18,Devon County Council,19/09/2012,CFADRES30068146,REDACTED UNDER DP ACT,2886.16,LEET/A HARDWICK VIEW A/C A,90849,,People Services,Care Spot - Private (3rd),5701,B
18,Devon County Council,05/09/2012,CFADRES30067488,REDACTED UNDER DP ACT,1658.74,LEONARD CHESHIRE FNDT N W REGION,91676,,People Services,Care Spot - Private (3rd),5701,B
18,Devon County Council,19/09/2012,CFADRES30068161,REDACTED UNDER DP ACT,1658.74,LEONARD CHESHIRE FNDT N W REGION,91676,,People Services,Care Spot - Private (3rd),5701,B
18,Devon County Council,19/09/2012,CFADDAY30020222,REDACTED UNDER DP ACT,600,LEONARD CHESHIRE FOUND S W REGIO,88647,899322375,People Services,Individualised Support - Private (3rd),5706,B
18,Devon County Council,19/09/2012,CFADDAY30020224,REDACTED UNDER DP ACT,780,LEONARD CHESHIRE FOUND S W REGIO,88647,899322375,People Services,Individualised Support - Private (3rd),5706,B
18,Devon County Council,19/09/2012,CFADDAY30020232,REDACTED UNDER DP ACT,720,LEONARD CHESHIRE FOUND S W REGIO,88647,899322375,People Services,Individualised Support - Private (3rd),5706,B
18,Devon County Council,05/09/2012,CFADRES30067286,REDACTED UNDER DP ACT,20528.74,LEONARD CHESHIRE FOUND S W REGIO,88647,899322375,People Services,Care Spot - Private (3rd),5701,B
18,Devon County Council,19/09/2012,CFADRES30067961,REDACTED UNDER DP ACT,20528.74,LEONARD CHESHIRE FOUND S W REGIO,88647,899322375,People Services,Care Spot - Private (3rd),5701,B
18,Devon County Council,05/09/2012,CFADRES30067834,REDACTED UNDER DP ACT,1024,LEONORA HOME,276677,,People Services,Care Spot - Private (3rd),5701,B
18,Devon County Council,19/09/2012,CFADRES30068503,REDACTED UNDER DP ACT,1024,LEONORA HOME,276677,,People Services,Care Spot - Private (3rd),5701,B
18,Devon County Council,17/09/2012,CFADDAY30019363,REDACTED UNDER DP ACT,2522.28,LIFEWAYS COMMUNITY CARE LTD,90003,774168208,People Services,Individualised Support - Private (3rd),5706,B
18,Devon County Council,17/09/2012,CFADDAY30020074,REDACTED UNDER DP ACT,1040.76,LIFEWAYS COMMUNITY CARE LTD,90003,774168208,People Services,Individualised Support - Private (3rd),5706,B
18,Devon County Council,17/09/2012,CFADDAY30020075,REDACTED UNDER DP ACT,1687.92,LIFEWAYS COMMUNITY CARE LTD,90003,774168208,People Services,Individualised Support - Private (3rd),5706,B
18,Devon County Council,17/09/2012,CFADDAY30020076,REDACTED UNDER DP ACT,2590.6,LIFEWAYS COMMUNITY CARE LTD,90003,774168208,People Services,Individualised Support - Private (3rd),5706,B
18,Devon County Council,19/09/2012,CFADDAY30020233,REDACTED UNDER DP ACT,2288.2,LIFEWAYS COMMUNITY CARE LTD,90003,774168208,People Services,Individualised Support - Private (3rd),5706,B
18,Devon County Council,19/09/2012,CFADDAY30020234,REDACTED UNDER DP ACT,672.5,LIFEWAYS COMMUNITY CARE LTD,90003,774168208,People Services,Individualised Support - Private (3rd),5706,B
18,Devon County Council,19/09/2012,CFADDAY30020235,REDACTED UNDER DP ACT,1764.76,LIFEWAYS COMMUNITY CARE LTD,90003,774168208,People Services,Individualised Support - Private (3rd),5706,B
18,Devon County Council,19/09/2012,CFADDAY30020236,REDACTED UNDER DP ACT,1764.76,LIFEWAYS COMMUNITY CARE LTD,90003,774168208,People Services,Individualised Support - Private (3rd),5706,B
18,Devon County Council,19/09/2012,CFADDAY30020238,REDACTED UNDER DP ACT,2379.48,LIFEWAYS COMMUNITY CARE LTD,90003,774168208,People Services,Individualised Support - Private (3rd),5706,B
18,Devon County Council,19/09/2012,CFADDAY30020239,REDACTED UNDER DP ACT,686.4,LIFEWAYS COMMUNITY CARE LTD,90003,774168208,People Services,Individualised Support - Private (3rd),5706,B
18,Devon County Council,19/09/2012,CFADDAY30020240,REDACTED UNDER DP ACT,2522.28,LIFEWAYS COMMUNITY CARE LTD,90003,774168208,People Services,Individualised Support - Private (3rd),5706,B
18,Devon County Council,24/09/2012,CFADDAY30020455,REDACTED UNDER DP ACT,1060.04,LIFEWAYS COMMUNITY CARE LTD,90003,774168208,People Services,Individualised Support - Private (3rd),5706,B
18,Devon County Council,24/09/2012,CFADDAY30020456,REDACTED UNDER DP ACT,2331.68,LIFEWAYS COMMUNITY CARE LTD,90003,774168208,People Services,Individualised Support - Private (3rd),5706,B
18,Devon County Council,24/09/2012,CFADDAY30020457,REDACTED UNDER DP ACT,2985.32,LIFEWAYS COMMUNITY CARE LTD,90003,774168208,People Services,Individualised Support - Private (3rd),5706,B
18,Devon County Council,05/09/2012,CFADDAY30019506,REDACTED UNDER DP ACT,1251.6,LIFEWAYS COMMUNITY CARE LTD (NEW,96733,774168208,People Services,Individualised Support - Private (3rd),5706,B
18,Devon County Council,10/09/2012,CFADDAY30019624,REDACTED UNDER DP ACT,1590.4,LIFEWAYS COMMUNITY CARE LTD (NEW,96733,774168208,People Services,Individualised Support - Private (3rd),5706,B
18,Devon County Council,10/09/2012,CFADDAY30019625,REDACTED UNDER DP ACT,1065,LIFEWAYS COMMUNITY CARE LTD (NEW,96733,774168208,People Services,Individualised Support - Private (3rd),5706,B
18,Devon County Council,10/09/2012,CFADDAY30019626,REDACTED UNDER DP ACT,852,LIFEWAYS COMMUNITY CARE LTD (NEW,96733,774168208,People Services,Individualised Support - Private (3rd),5706,B
18,Devon County Council,10/09/2012,CFADDAY30019627,REDACTED UNDER DP ACT,1590.4,LIFEWAYS COMMUNITY CARE LTD (NEW,96733,774168208,People Services,Individualised Support - Private (3rd),5706,B
18,Devon County Council,10/09/2012,CFADDAY30019628,REDACTED UNDER DP ACT,5519.56,LIFEWAYS COMMUNITY CARE LTD (NEW,96733,774168208,People Services,Individualised Support - Private (3rd),5706,B
18,Devon County Council,12/09/2012,CFADDAY30019865,REDACTED UNDER DP ACT,581.48,LIFEWAYS COMMUNITY CARE LTD (NEW,96733,774168208,People Services,Individualised Support - Private (3rd),5706,B
18,Devon County Council,12/09/2012,CFADDAY30019866,REDACTED UNDER DP ACT,710,LIFEWAYS COMMUNITY CARE LTD (NEW,96733,774168208,People Services,Individualised Support - Private (3rd),5706,B
18,Devon County Council,12/09/2012,CFADDAY30019867,REDACTED UNDER DP ACT,697.5,LIFEWAYS COMMUNITY CARE LTD (NEW,96733,774168208,People Services,Individualised Support - Private (3rd),5706,B
18,Devon County Council,12/09/2012,CFADDAY30019868,REDACTED UNDER DP ACT,568,LIFEWAYS COMMUNITY CARE LTD (NEW,96733,774168208,People Services,Individualised Support - Private (3rd),5706,B
18,Devon County Council,12/09/2012,CFADDAY30019869,REDACTED UNDER DP ACT,558,LIFEWAYS COMMUNITY CARE LTD (NEW,96733,774168208,People Services,Individualised Support - Private (3rd),5706,B
18,Devon County Council,17/09/2012,CFADDAY30020089,REDACTED UNDER DP ACT,2162.2,LIFEWAYS COMMUNITY CARE LTD (NEW,96733,774168208,People Services,Individualised Support - Private (3rd),5706,B
18,Devon County Council,17/09/2012,CFADDAY30020092,REDACTED UNDER DP ACT,2613.48,LIFEWAYS COMMUNITY CARE LTD (NEW,96733,774168208,People Services,Individualised Support - Private (3rd),5706,B
18,Devon County Council,17/09/2012,CFADDAY30020093,REDACTED UNDER DP ACT,3923.08,LIFEWAYS COMMUNITY CARE LTD (NEW,96733,774168208,People Services,Individualised Support - Private (3rd),5706,B
18,Devon County Council,17/09/2012,CFADDAY30020094,REDACTED UNDER DP ACT,1420,LIFEWAYS COMMUNITY CARE LTD (NEW,96733,774168208,People Services,Individualised Support - Private (3rd),5706,B
18,Devon County Council,17/09/2012,CFADDAY30020095,REDACTED UNDER DP ACT,840.6,LIFEWAYS COMMUNITY CARE LTD (NEW,96733,774168208,People Services,Individualised Support - Private (3rd),5706,B
18,Devon County Council,17/09/2012,CFADDAY30020096,REDACTED UNDER DP ACT,556.4,LIFEWAYS COMMUNITY CARE LTD (NEW,96733,774168208,People Services,Individualised Support - Private (3rd),5706,B
18,Devon County Council,17/09/2012,CFADDAY30020097,REDACTED UNDER DP ACT,581.48,LIFEWAYS COMMUNITY CARE LTD (NEW,96733,774168208,People Services,Individualised Support - Private (3rd),5706,B
18,Devon County Council,17/09/2012,CFADDAY30020098,REDACTED UNDER DP ACT,1062.4,LIFEWAYS COMMUNITY CARE LTD (NEW,96733,774168208,People Services,Individualised Support - Private (3rd),5706,B
18,Devon County Council,17/09/2012,CFADDAY30020099,REDACTED UNDER DP ACT,2341.56,LIFEWAYS COMMUNITY CARE LTD (NEW,96733,774168208,People Services,Individualised Support - Private (3rd),5706,B
18,Devon County Council,17/09/2012,CFADDAY30020101,REDACTED UNDER DP ACT,1456,LIFEWAYS COMMUNITY CARE LTD (NEW,96733,774168208,People Services,Individualised Support - Private (3rd),5706,B
18,Devon County Council,17/09/2012,CFADDAY30020102,REDACTED UNDER DP ACT,780.64,LIFEWAYS COMMUNITY CARE LTD (NEW,96733,774168208,People Services,Individualised Support - Private (3rd),5706,B
18,Devon County Council,17/09/2012,CFADDAY30020103,REDACTED UNDER DP ACT,2090.04,LIFEWAYS COMMUNITY CARE LTD (NEW,96733,774168208,People Services,Individualised Support - Private (3rd),5706,B
18,Devon County Council,17/09/2012,CFADDAY30020104,REDACTED UNDER DP ACT,2077.88,LIFEWAYS COMMUNITY CARE LTD (NEW,96733,774168208,People Services,Individualised Support - Private (3rd),5706,B
18,Devon County Council,17/09/2012,CFADDAY30020105,REDACTED UNDER DP ACT,2233.36,LIFEWAYS COMMUNITY CARE LTD (NEW,96733,774168208,People Services,Individualised Support - Private (3rd),5706,B
18,Devon County Council,17/09/2012,CFADDAY30020106,REDACTED UNDER DP ACT,1202.96,LIFEWAYS COMMUNITY CARE LTD (NEW,96733,774168208,People Services,Individualised Support - Private (3rd),5706,B
18,Devon County Council,17/09/2012,CFADDAY30020108,REDACTED UNDER DP ACT,618.88,LIFEWAYS COMMUNITY CARE LTD (NEW,96733,774168208,People Services,Individualised Support - Private (3rd),5706,B
18,Devon County Council,17/09/2012,CFADDAY30020110,REDACTED UNDER DP ACT,4100,LIFEWAYS COMMUNITY CARE LTD (NEW,96733,774168208,People Services,Individualised Support - Private (3rd),5706,B
18,Devon County Council,17/09/2012,CFADDAY30020111,REDACTED UNDER DP ACT,1134.12,LIFEWAYS COMMUNITY CARE LTD (NEW,96733,774168208,People Services,Individualised Support - Private (3rd),5706,B
18,Devon County Council,17/09/2012,CFADDAY30020112,REDACTED UNDER DP ACT,6623.96,LIFEWAYS COMMUNITY CARE LTD (NEW,96733,774168208,People Services,Individualised Support - Private (3rd),5706,B
18,Devon County Council,17/09/2012,CFADDAY30020113,REDACTED UNDER DP ACT,592.64,LIFEWAYS COMMUNITY CARE LTD (NEW,96733,774168208,People Services,Individualised Support - Private (3rd),5706,B
18,Devon County Council,17/09/2012,CFADDAY30020114,REDACTED UNDER DP ACT,864.64,LIFEWAYS COMMUNITY CARE LTD (NEW,96733,774168208,People Services,Individualised Support - Private (3rd),5706,B
18,Devon County Council,17/09/2012,CFADDAY30020115,REDACTED UNDER DP ACT,5217.24,LIFEWAYS COMMUNITY CARE LTD (NEW,96733,774168208,People Services,Individualised Support - Private (3rd),5706,B
18,Devon County Council,17/09/2012,CFADDAY30020116,REDACTED UNDER DP ACT,3397.32,LIFEWAYS COMMUNITY CARE LTD (NEW,96733,774168208,People Services,Individualised Support - Private (3rd),5706,B
18,Devon County Council,19/09/2012,CFADDAY30020257,REDACTED UNDER DP ACT,1923.48,LIFEWAYS COMMUNITY CARE LTD (NEW,96733,774168208,People Services,Individualised Support - Private (3rd),5706,B
18,Devon County Council,24/09/2012,CFADDAY30020459,REDACTED UNDER DP ACT,2084.08,LIFEWAYS COMMUNITY CARE LTD (NEW,96733,774168208,People Services,Individualised Support - Private (3rd),5706,B
18,Devon County Council,26/09/2012,CFADDAY30020553,REDACTED UNDER DP ACT,1251.6,LIFEWAYS COMMUNITY CARE LTD (NEW,96733,774168208,People Services,Individualised Support - Private (3rd),5706,B
18,Devon County Council,10/09/2012,CFADDOM30042670,REDACTED UNDER DP ACT,2573.64,LIFEWAYS COMMUNITY CARE LTD (NEW,96733,774168208,People Services,Care Spot - Private (3rd),5701,B
18,Devon County Council,05/09/2012,CFADRES30067284,REDACTED UNDER DP ACT,16787.19,LILACS CARE HOME,88387,,People Services,Care Spot - Private (3rd),5701,B
18,Devon County Council,19/09/2012,CFADRES30067959,REDACTED UNDER DP ACT,15542.19,LILACS CARE HOME,88387,,People Services,Care Spot - Private (3rd),5701,B
18,Devon County Council,05/09/2012,CFADRES30067456,REDACTED UNDER DP ACT,1110,LINDLEY BD & MM,90647,,People Services,Care Spot - Private (3rd),5701,B
18,Devon County Council,19/09/2012,CFADRES30068129,REDACTED UNDER DP ACT,1110,LINDLEY BD & MM,90647,,People Services,Care Spot - Private (3rd),5701,B
18,Devon County Council,05/09/2012,CFADRES30067387,REDACTED UNDER DP ACT,19589.87,LINDONS CARE HOME_THE,90040,,People Services,Care Spot - Private (3rd),5701,B
18,Devon County Council,19/09/2012,FINTBAD30467837,LINDONS3-16/9,18226.3,LINDONS CARE HOME_THE,90040,,People Services,Care Spot - Private (3rd),5701,B
18,Devon County Council,05/09/2012,CFADRES30067733,REDACTED UNDER DP ACT,829.3,LINGALOO,227505,,People Services,Care Spot - Private (3rd),5701,B
18,Devon County Council,19/09/2012,CFADRES30068405,REDACTED UNDER DP ACT,829.3,LINGALOO,227505,,People Services,Care Spot - Private (3rd),5701,B
18,Devon County Council,05/09/2012,CFADRES30067599,REDACTED UNDER DP ACT,542.9,LISTER HOUSE,156698,,People Services,Care Spot - Private (3rd),5701,B
18,Devon County Council,19/09/2012,CFADRES30068270,REDACTED UNDER DP ACT,542.9,LISTER HOUSE,156698,,People Services,Care Spot - Private (3rd),5701,B
18,Devon County Council,05/09/2012,CFADRES30067474,REDACTED UNDER DP ACT,790.48,LITTLE OLDWAY,90888,,People Services,Care Spot - Private (3rd),5701,B
18,Devon County Council,19/09/2012,CFADRES30068147,REDACTED UNDER DP ACT,790.48,LITTLE OLDWAY,90888,,People Services,Care Spot - Private (3rd),5701,B
18,Devon County Council,05/09/2012,CFADRES30067815,REDACTED UNDER DP ACT,900,LITTLEFAIR,266657,,People Services,Care Spot - Private (3rd),5701,B
18,Devon County Council,19/09/2012,CFADRES30068484,REDACTED UNDER DP ACT,900,LITTLEFAIR,266657,,People Services,Care Spot - Private (3rd),5701,B
18,Devon County Council,05/09/2012,CFADRES30067844,REDACTED UNDER DP ACT,952,LLYS Y TYWYSOG CARE HOME,278958,,People Services,Care Spot - Private (3rd),5701,B
18,Devon County Council,19/09/2012,CFADRES30068513,REDACTED UNDER DP ACT,952,LLYS Y TYWYSOG CARE HOME,278958,,People Services,Care Spot - Private (3rd),5701,B
18,Devon County Council,05/09/2012,CFADRES30067583,REDACTED UNDER DP ACT,574.62,LORNA HOUSE,151321,,People Services,Care Spot - Private (3rd),5701,B
18,Devon County Council,19/09/2012,CFADRES30068255,REDACTED UNDER DP ACT,574.62,LORNA HOUSE,151321,,People Services,Care Spot - Private (3rd),5701,B
18,Devon County Council,05/09/2012,CFADRES30067408,REDACTED UNDER DP ACT,3877.8,LYNDALE CARE LTD,90252,,People Services,Care Spot - Private (3rd),5701,B
18,Devon County Council,19/09/2012,CFADRES30068081,REDACTED UNDER DP ACT,3877.8,LYNDALE CARE LTD,90252,,People Services,Care Spot - Private (3rd),5701,B
18,Devon County Council,17/09/2012,CFADDAY30020148,REDACTED UNDER DP ACT,1432.4,MADE-WELL PROJECT,289051,,People Services,Care Spot - Private (3rd),5701,B
18,Devon County Council,05/09/2012,CFADRES30067283,REDACTED UNDER DP ACT,10264.74,MAGNOLIA HOUSE,87589,918175019,People Services,Care Spot - Private (3rd),5701,B
18,Devon County Council,05/09/2012,CFADRES30067788,REDACTED UNDER DP ACT,4403.56,MAGNOLIA HOUSE,251047,,People Services,Care Spot - Private (3rd),5701,B
18,Devon County Council,19/09/2012,CFADRES30067958,REDACTED UNDER DP ACT,10620.45,MAGNOLIA HOUSE,87589,918175019,People Services,Care Spot - Private (3rd),5701,B
18,Devon County Council,19/09/2012,CFADRES30068459,REDACTED UNDER DP ACT,4403.56,MAGNOLIA HOUSE,251047,,People Services,Care Spot - Private (3rd),5701,B
18,Devon County Council,05/09/2012,CFADRES30067907,REDACTED UNDER DP ACT,821.38,MAIS HOUSE,294196,,People Services,Care Spot - Private (3rd),5701,B
18,Devon County Council,19/09/2012,CFADRES30068577,REDACTED UNDER DP ACT,821.38,MAIS HOUSE,294196,,People Services,Care Spot - Private (3rd),5701,B
18,Devon County Council,05/09/2012,CFADRES30067718,REDACTED UNDER DP ACT,4325.68,MALDEN HOUSE,216858,,People Services,Care Spot - Private (3rd),5701,B
18,Devon County Council,19/09/2012,CFADRES30068390,REDACTED UNDER DP ACT,4325.68,MALDEN HOUSE,216858,,People Services,Care Spot - Private (3rd),5701,B
18,Devon County Council,28/09/2012,DFS30218455,2339,700,MALDEN HOUSE,216858,,People Services,Care Spot - Private (3rd),5701,B
18,Devon County Council,18/09/2012,FINSSCW30457843,2332,1400,MALDEN HOUSE,216858,,People Services,Care Spot - Private (3rd),5701,B
18,Devon County Council,05/09/2012,CFADRES30067431,REDACTED UNDER DP ACT,11567.08,MALLANDS CARE LTD,90451,,People Services,Care Spot - Private (3rd),5701,B
18,Devon County Council,19/09/2012,CFADRES30068104,REDACTED UNDER DP ACT,10381.37,MALLANDS CARE LTD,90451,,People Services,Care Spot - Private (3rd),5701,B
18,Devon County Council,05/09/2012,CFADRES30067271,REDACTED UNDER DP ACT,9214.88,MANOR COLLECTION-PUDDAVINE COURT,87306,,People Services,Care Spot - Private (3rd),5701,B
18,Devon County Council,19/09/2012,CFADRES30067946,REDACTED UNDER DP ACT,10459.88,MANOR COLLECTION-PUDDAVINE COURT,87306,,People Services,Care Spot - Private (3rd),5701,B
18,Devon County Council,19/09/2012,CFADRES30068162,REDACTED UNDER DP ACT,6037.68,MANOR COTTAGE HOTEL,91681,,People Services,Care Spot - Private (3rd),5701,B
18,Devon County Council,05/09/2012,CFADRES30067858,REDACTED UNDER DP ACT,661.6,MANOR HOUSE RESIDENTIAL HOME,283346,,People Services,Care Spot - Private (3rd),5701,B
18,Devon County Council,19/09/2012,CFADRES30068527,REDACTED UNDER DP ACT,661.6,MANOR HOUSE RESIDENTIAL HOME,283346,,People Services,Care Spot - Private (3rd),5701,B
18,Devon County Council,05/09/2012,CFADRES30067356,REDACTED UNDER DP ACT,4443.2,MANOR HOUSE THE,89636,,People Services,Care Spot - Private (3rd),5701,B
18,Devon County Council,19/09/2012,CFADRES30068031,REDACTED UNDER DP ACT,4443.2,MANOR HOUSE THE,89636,,People Services,Care Spot - Private (3rd),5701,B
18,Devon County Council,05/09/2012,CFADRES30067352,REDACTED UNDER DP ACT,2623.94,MANOR LODGE,89617,,People Services,Care Spot - Private (3rd),5701,B
18,Devon County Council,19/09/2012,CFADRES30068027,REDACTED UNDER DP ACT,2623.94,MANOR LODGE,89617,,People Services,Care Spot - Private (3rd),5701,B
18,Devon County Council,05/09/2012,CFADRES30067429,REDACTED UNDER DP ACT,6809.24,MANOR THE,90442,,People Services,Care Spot - Private (3rd),5701,B
18,Devon County Council,19/09/2012,CFADRES30068102,REDACTED UNDER DP ACT,5892.8,MANOR THE,90442,,People Services,Care Spot - Private (3rd),5701,B
18,Devon County Council,05/09/2012,CFADRES30067773,REDACTED UNDER DP ACT,6881.36,MARDON HOUSE,243976,,People Services,Care Spot - Private (3rd),5701,B
18,Devon County Council,19/09/2012,CFADRES30068444,REDACTED UNDER DP ACT,6609.36,MARDON HOUSE,243976,,People Services,Care Spot - Private (3rd),5701,B
18,Devon County Council,05/09/2012,CFADRES30067890,REDACTED UNDER DP ACT,1856.04,MARGARET ROSE CARE TA WARBERRIES,291175,,People Services,Care Spot - Private (3rd),5701,B
18,Devon County Council,05/09/2012,CFADRES30067885,REDACTED UNDER DP ACT,3760,MATSON HOUSE,289305,,People Services,Care Spot - Private (3rd),5701,B
18,Devon County Council,19/09/2012,CFADRES30068555,REDACTED UNDER DP ACT,3760,MATSON HOUSE,289305,,People Services,Care Spot - Private (3rd),5701,B
18,Devon County Council,05/09/2012,CFADRES30067268,REDACTED UNDER DP ACT,2421.56,MCLEOD RC & J,87171,,People Services,Care Spot - Private (3rd),5701,B
18,Devon County Council,19/09/2012,CFADRES30067943,REDACTED UNDER DP ACT,2421.56,MCLEOD RC & J,87171,,People Services,Care Spot - Private (3rd),5701,B
18,Devon County Council,19/09/2012,CFADRES30068047,REDACTED UNDER DP ACT,6762.54,MCSPADDEN JJ T/A ANCHORAGE GRP,89848,,People Services,Care Spot - Private (3rd),5701,B
18,Devon County Council,05/09/2012,CFADRES30067802,REDACTED UNDER DP ACT,1149.9,MEADBANK NURSING HOME,259977,,People Services,Care Spot - Private (3rd),5701,B
18,Devon County Council,19/09/2012,CFADRES30068471,REDACTED UNDER DP ACT,1149.9,MEADBANK NURSING HOME,259977,,People Services,Care Spot - Private (3rd),5701,B
18,Devon County Council,05/09/2012,CFADRES30067416,REDACTED UNDER DP ACT,3801.16,MEADOWSIDE,90340,,People Services,Care Spot - Private (3rd),5701,B
18,Devon County Council,19/09/2012,CFADRES30068089,REDACTED UNDER DP ACT,3801.16,MEADOWSIDE,90340,,People Services,Care Spot - Private (3rd),5701,B
18,Devon County Council,05/09/2012,CFADRES30067805,REDACTED UNDER DP ACT,743.22,MENDIP LODGE,261786,,People Services,Care Spot - Private (3rd),5701,B
18,Devon County Council,19/09/2012,CFADRES30068474,REDACTED UNDER DP ACT,743.22,MENDIP LODGE,261786,,People Services,Care Spot - Private (3rd),5701,B
18,Devon County Council,05/09/2012,CFADRES30067880,REDACTED UNDER DP ACT,1488.6,METHODIST HOMES - TORRWOOD,288434,,People Services,Care Spot - Private (3rd),5701,B
18,Devon County Council,19/09/2012,CFADRES30068550,REDACTED UNDER DP ACT,1488.6,METHODIST HOMES - TORRWOOD,288434,,People Services,Care Spot - Private (3rd),5701,B
18,Devon County Council,05/09/2012,CFADRES30067417,REDACTED UNDER DP ACT,2570.74,METHODIST HOMES FOR THE AGED,90351,,People Services,Care Spot - Private (3rd),5701,B
18,Devon County Council,19/09/2012,CFADRES30068090,REDACTED UNDER DP ACT,9884.74,METHODIST HOMES FOR THE AGED,90351,,People Services,Care Spot - Private (3rd),5701,B
18,Devon County Council,05/09/2012,CFADRES30067884,REDACTED UNDER DP ACT,867.44,METHODIST HOMES T/A RICHMOND,289213,,People Services,Care Spot - Private (3rd),5701,B
18,Devon County Council,19/09/2012,CFADRES30068554,REDACTED UNDER DP ACT,867.44,METHODIST HOMES T/A RICHMOND,289213,,People Services,Care Spot - Private (3rd),5701,B
18,Devon County Council,05/09/2012,CFADRES30067893,REDACTED UNDER DP ACT,2200,MIDSHIRES HEALTHCARE LTD,291304,,People Services,Care Spot - Private (3rd),5701,B
18,Devon County Council,19/09/2012,CFADRES30068562,REDACTED UNDER DP ACT,2200,MIDSHIRES HEALTHCARE LTD,291304,,People Services,Care Spot - Private (3rd),5701,B
18,Devon County Council,05/09/2012,CFADRES30067871,REDACTED UNDER DP ACT,1162,MILL HEATH NURSING HOME,286599,,People Services,Care Spot - Private (3rd),5701,B
18,Devon County Council,19/09/2012,CFADRES30068541,REDACTED UNDER DP ACT,1162,MILL HEATH NURSING HOME,286599,,People Services,Care Spot - Private (3rd),5701,B
18,Devon County Council,05/09/2012,CFADRES30067463,REDACTED UNDER DP ACT,5096.56,MILLS KP&E - DOVE RIDGE,90716,,People Services,Care Spot - Private (3rd),5701,B
18,Devon County Council,19/09/2012,CFADRES30068135,REDACTED UNDER DP ACT,5096.56,MILLS KP&E - DOVE RIDGE,90716,,People Services,Care Spot - Private (3rd),5701,B
18,Devon County Council,05/09/2012,CFADRES30067873,REDACTED UNDER DP ACT,1024.48,MILLWAY HOUSE,286795,,People Services,Care Spot - Private (3rd),5701,B
18,Devon County Council,19/09/2012,CFADRES30068543,REDACTED UNDER DP ACT,1024.48,MILLWAY HOUSE,286795,,People Services,Care Spot - Private (3rd),5701,B
18,Devon County Council,05/09/2012,CFADRES30067708,REDACTED UNDER DP ACT,1273.36,MILTON COURT CARE CENTRE,209180,,People Services,Care Spot - Private (3rd),5701,B
18,Devon County Council,19/09/2012,CFADRES30068380,REDACTED UNDER DP ACT,1273.36,MILTON COURT CARE CENTRE,209180,,People Services,Care Spot - Private (3rd),5701,B
18,Devon County Council,05/09/2012,CFADRES30067420,REDACTED UNDER DP ACT,8063.58,MIRAMAR CARE HOME,90376,,People Services,Care Spot - Private (3rd),5701,B
18,Devon County Council,19/09/2012,CFADRES30068093,REDACTED UNDER DP ACT,8063.58,MIRAMAR CARE HOME,90376,,People Services,Care Spot - Private (3rd),5701,B
18,Devon County Council,05/09/2012,CFADRES30067255,REDACTED UNDER DP ACT,6488.38,MODUS CARE LTD,86872,,People Services,Care Spot - Private (3rd),5701,B
18,Devon County Council,19/09/2012,CFADRES30067930,REDACTED UNDER DP ACT,6488.38,MODUS CARE LTD,86872,,People Services,Care Spot - Private (3rd),5701,B
18,Devon County Council,19/09/2012,CYPNMLOC30197086,12/MCL/3089,12604.29,MODUS CARE LTD,86872,,People Services,Residential Care - Private (3rd),5731,B
18,Devon County Council,24/09/2012,CFADDOM30043800,REDACTED UNDER DP ACT,525,MOORCARE DEVON LTD,260782,,People Services,Care Spot - Private (3rd),5701,B
18,Devon County Council,24/09/2012,CFADDOM30043801,REDACTED UNDER DP ACT,1155,MOORCARE DEVON LTD,260782,,People Services,Care Spot - Private (3rd),5701,B
18,Devon County Council,05/09/2012,CFADRES30067272,REDACTED UNDER DP ACT,11309.62,MOORS PARK BISHOPSTEIGNTON LTD,87332,,People Services,Care Spot - Private (3rd),5701,B
18,Devon County Council,19/09/2012,CFADRES30067947,REDACTED UNDER DP ACT,11309.62,MOORS PARK BISHOPSTEIGNTON LTD,87332,,People Services,Care Spot - Private (3rd),5701,B
18,Devon County Council,05/09/2012,CFADRES30067432,REDACTED UNDER DP ACT,13995.09,MORGAN T/A PENSYLVANIA HOUSE HA&,90452,,People Services,Care Spot - Private (3rd),5701,B
18,Devon County Council,05/09/2012,CFADRES30067536,REDACTED UNDER DP ACT,880.9,MOUNT OLIVET NURSING HOME,109320,,People Services,Care Spot - Private (3rd),5701,B
18,Devon County Council,19/09/2012,CFADRES30068207,REDACTED UNDER DP ACT,880.9,MOUNT OLIVET NURSING HOME,109320,,People Services,Care Spot - Private (3rd),5701,B
18,Devon County Council,05/09/2012,CFADRES30067722,REDACTED UNDER DP ACT,9581.23,MOUNT PLEASANT,219575,,People Services,Care Spot - Private (3rd),5701,B
18,Devon County Council,19/09/2012,CFADRES30068394,REDACTED UNDER DP ACT,9462.66,MOUNT PLEASANT,219575,,People Services,Care Spot - Private (3rd),5701,B
18,Devon County Council,12/09/2012,CFADDAY30020006,REDACTED UNDER DP ACT,680.48,MOUNT PLEASANT CRE HME(DAY CARE),244546,,People Services,Care Spot - Private (3rd),5701,B
18,Devon County Council,12/09/2012,CFADDAY30019844,REDACTED UNDER DP ACT,1809.88,MOUNT RALEIGH RCH (KALM LIVING),90601,,People Services,Individualised Support - Private (3rd),5706,B
18,Devon County Council,19/09/2012,CFADDAY30020246,REDACTED UNDER DP ACT,2000,MOUNT RALEIGH RCH (KALM LIVING),90601,,People Services,Individualised Support - Private (3rd),5706,B
18,Devon County Council,19/09/2012,CFADDAY30020247,REDACTED UNDER DP ACT,1600,MOUNT RALEIGH RCH (KALM LIVING),90601,,People Services,Individualised Support - Private (3rd),5706,B
18,Devon County Council,03/09/2012,CFADDAY30019477,REDACTED UNDER DP ACT,1400,MULHALL SUE,233997,,People Services,Individualised Support - Private (3rd),5706,B
18,Devon County Council,26/09/2012,CFADDAY30020616,REDACTED UNDER DP ACT,1400,MULHALL SUE,233997,,People Services,Individualised Support - Private (3rd),5706,B
18,Devon County Council,05/09/2012,CFADRES30067786,REDACTED UNDER DP ACT,800.68,NAPIER LODGE,250489,,People Services,Care Spot - Private (3rd),5701,B
18,Devon County Council,19/09/2012,CFADRES30068457,REDACTED UNDER DP ACT,800.68,NAPIER LODGE,250489,,People Services,Care Spot - Private (3rd),5701,B
18,Devon County Council,05/09/2012,CFADRES30067541,REDACTED UNDER DP ACT,2526.8,NATIONAL SOCIETY FOR EPILEPSY,113016,,People Services,Care Spot - Private (3rd),5701,B
18,Devon County Council,19/09/2012,CFADRES30068213,REDACTED UNDER DP ACT,2526.8,NATIONAL SOCIETY FOR EPILEPSY,113016,,People Services,Care Spot - Private (3rd),5701,B
18,Devon County Council,05/09/2012,CFADRES30067317,REDACTED UNDER DP ACT,1694.58,NAZARETH HOUSE CARE HOME,89117,,People Services,Care Spot - Private (3rd),5701,B
18,Devon County Council,19/09/2012,CFADRES30067992,REDACTED UNDER DP ACT,1694.58,NAZARETH HOUSE CARE HOME,89117,,People Services,Care Spot - Private (3rd),5701,B
18,Devon County Council,05/09/2012,CFADRES30067494,REDACTED UNDER DP ACT,8865.1,ND MCCOWEN-SMITH T/A WELLESLEY,93568,974855463,People Services,Care Spot - Private (3rd),5701,B
18,Devon County Council,19/09/2012,CFADRES30068167,REDACTED UNDER DP ACT,8865.1,ND MCCOWEN-SMITH T/A WELLESLEY,93568,974855463,People Services,Care Spot - Private (3rd),5701,B
18,Devon County Council,05/09/2012,CFADRES30067903,REDACTED UNDER DP ACT,900,NEEDWOOD HOUSE NURSING HOME,293114,,People Services,Care Spot - Private (3rd),5701,B
18,Devon County Council,19/09/2012,CFADRES30068573,REDACTED UNDER DP ACT,900,NEEDWOOD HOUSE NURSING HOME,293114,,People Services,Care Spot - Private (3rd),5701,B
18,Devon County Council,05/09/2012,CFADRES30067407,REDACTED UNDER DP ACT,9202.64,NEILSON RETIREMENT HOTEL,90214,927360125,People Services,Care Spot - Private (3rd),5701,B
18,Devon County Council,19/09/2012,CFADRES30068080,REDACTED UNDER DP ACT,8313.36,NEILSON RETIREMENT HOTEL,90214,927360125,People Services,Care Spot - Private (3rd),5701,B
18,Devon County Council,05/09/2012,CFADRES30067743,REDACTED UNDER DP ACT,820,NEW CENTURY CARE LTD TA CLYDE HS,231150,,People Services,Care Spot - Private (3rd),5701,B
18,Devon County Council,19/09/2012,CFADRES30068415,REDACTED UNDER DP ACT,820,NEW CENTURY CARE LTD TA CLYDE HS,231150,,People Services,Care Spot - Private (3rd),5701,B
18,Devon County Council,05/09/2012,CFADRES30067567,REDACTED UNDER DP ACT,2440.18,NEW WITHEVEN,138197,,People Services,Care Spot - Private (3rd),5701,B
18,Devon County Council,19/09/2012,CFADRES30068239,REDACTED UNDER DP ACT,2440.18,NEW WITHEVEN,138197,,People Services,Care Spot - Private (3rd),5701,B
18,Devon County Council,05/09/2012,CFADRES30067465,REDACTED UNDER DP ACT,7670.06,NEWTON ABBOT/DIST SOC MENTALLY H,90755,,People Services,Care Spot - Private (3rd),5701,B
18,Devon County Council,19/09/2012,CFADRES30068138,REDACTED UNDER DP ACT,7670.06,NEWTON ABBOT/DIST SOC MENTALLY H,90755,,People Services,Care Spot - Private (3rd),5701,B
18,Devon County Council,05/09/2012,CFADRES30067250,REDACTED UNDER DP ACT,1815.36,NIGHTINGALE CARE HOMES,86712,974855659,People Services,Care Spot - Private (3rd),5701,B
18,Devon County Council,19/09/2012,CFADRES30067925,REDACTED UNDER DP ACT,1815.36,NIGHTINGALE CARE HOMES,86712,974855659,People Services,Care Spot - Private (3rd),5701,B
18,Devon County Council,05/09/2012,CFADRES30067449,REDACTED UNDER DP ACT,3319.46,NIGHTINGALE HOUSE,90603,,People Services,Care Spot - Private (3rd),5701,B
18,Devon County Council,19/09/2012,CFADRES30068122,REDACTED UNDER DP ACT,3829.1,NIGHTINGALE HOUSE,90603,,People Services,Care Spot - Private (3rd),5701,B
18,Devon County Council,05/09/2012,CFADRES30067719,REDACTED UNDER DP ACT,2521.62,NIGHTINGALES THE,216973,,People Services,Care Spot - Private (3rd),5701,B
18,Devon County Council,19/09/2012,CFADRES30068391,REDACTED UNDER DP ACT,2521.62,NIGHTINGALES THE,216973,,People Services,Care Spot - Private (3rd),5701,B
18,Devon County Council,26/09/2012,CFADDAY30020535,REDACTED UNDER DP ACT,578.68,NOON R MRS,90116,,People Services,Individualised Support - Private (3rd),5706,B
18,Devon County Council,26/09/2012,CFADDAY30020536,REDACTED UNDER DP ACT,578.68,NOON R MRS,90116,,People Services,Individualised Support - Private (3rd),5706,B
18,Devon County Council,26/09/2012,CFADDAY30020537,REDACTED UNDER DP ACT,578.68,NOON R MRS,90116,,People Services,Individualised Support - Private (3rd),5706,B
18,Devon County Council,26/09/2012,CFADDAY30020538,REDACTED UNDER DP ACT,723.35,NOON R MRS,90116,,People Services,Individualised Support - Private (3rd),5706,B
18,Devon County Council,26/09/2012,CFADDAY30020539,REDACTED UNDER DP ACT,578.68,NOON R MRS,90116,,People Services,Individualised Support - Private (3rd),5706,B
18,Devon County Council,19/09/2012,CFADDAY30020241,REDACTED UNDER DP ACT,1004,NORTHAM LODGE,90377,,People Services,Care Spot - Private (3rd),5701,B
18,Devon County Council,19/09/2012,CFADDAY30020242,REDACTED UNDER DP ACT,1296,NORTHAM LODGE,90377,,People Services,Care Spot - Private (3rd),5701,B
18,Devon County Council,19/09/2012,CFADDAY30020243,REDACTED UNDER DP ACT,1479.6,NORTHAM LODGE,90377,,People Services,Care Spot - Private (3rd),5701,B
18,Devon County Council,24/09/2012,CFADDAY30020458,REDACTED UNDER DP ACT,510,NORTHAM LODGE,90377,,People Services,Care Spot - Private (3rd),5701,B
18,Devon County Council,05/09/2012,CFADRES30067421,REDACTED UNDER DP ACT,34126.38,NORTHAM LODGE,90377,,People Services,Care Spot - Private (3rd),5701,B
18,Devon County Council,19/09/2012,CFADRES30068094,REDACTED UNDER DP ACT,32241.84,NORTHAM LODGE,90377,,People Services,Care Spot - Private (3rd),5701,B
18,Devon County Council,20/09/2012,FNEXMHLD30472668,3644,2331,NORTHAM LODGE,90377,,People Services,Care Spot - Private (3rd),5701,B
18,Devon County Council,05/09/2012,CFADRES30067344,REDACTED UNDER DP ACT,2213.28,NORTHFIELD HOUSE,89435,,People Services,Care Spot - Private (3rd),5701,B
18,Devon County Council,19/09/2012,CFADRES30068019,REDACTED UNDER DP ACT,2213.28,NORTHFIELD HOUSE,89435,,People Services,Care Spot - Private (3rd),5701,B
18,Devon County Council,05/09/2012,CFADRES30067887,REDACTED UNDER DP ACT,950,NORTHWAY HOUSE RESIDENTIAL HOME,290532,,People Services,Care Spot - Private (3rd),5701,B
18,Devon County Council,19/09/2012,CFADRES30068557,REDACTED UNDER DP ACT,950,NORTHWAY HOUSE RESIDENTIAL HOME,290532,,People Services,Care Spot - Private (3rd),5701,B
18,Devon County Council,05/09/2012,CFADRES30067759,REDACTED UNDER DP ACT,2829.71,NOSNOM,236271,,People Services,Care Spot - Private (3rd),5701,B
18,Devon County Council,19/09/2012,CFADRES30068430,REDACTED UNDER DP ACT,2695,NOSNOM,236271,,People Services,Care Spot - Private (3rd),5701,B
18,Devon County Council,05/09/2012,CFADRES30067290,REDACTED UNDER DP ACT,4890.02,NOTARO HOMES N LTD,88692,,People Services,Care Spot - Private (3rd),5701,B
18,Devon County Council,19/09/2012,CFADRES30067965,REDACTED UNDER DP ACT,4890.02,NOTARO HOMES N LTD,88692,,People Services,Care Spot - Private (3rd),5701,B
18,Devon County Council,17/09/2012,CFADDOM30043219,REDACTED UNDER DP ACT,1199.23,NURSE PLUS & CARER PLUS (UK) LTD,209782,,People Services,Care Spot - Private (3rd),5701,B
18,Devon County Council,17/09/2012,CFADDOM30043220,REDACTED UNDER DP ACT,1799.28,NURSE PLUS & CARER PLUS (UK) LTD,209782,,People Services,Care Spot - Private (3rd),5701,B
18,Devon County Council,17/09/2012,CFADDOM30043227,REDACTED UNDER DP ACT,1792.14,NURSE PLUS & CARER PLUS (UK) LTD,209782,,People Services,Care Spot - Private (3rd),5701,B
18,Devon County Council,17/09/2012,CFADDOM30043229,REDACTED UNDER DP ACT,799.68,NURSE PLUS & CARER PLUS (UK) LTD,209782,,People Services,Care Spot - Private (3rd),5701,B
18,Devon County Council,17/09/2012,CFADDOM30043230,REDACTED UNDER DP ACT,656.88,NURSE PLUS & CARER PLUS (UK) LTD,209782,,People Services,Care Spot - Private (3rd),5701,B
18,Devon County Council,17/09/2012,CFADDOM30043233,REDACTED UNDER DP ACT,1006.74,NURSE PLUS & CARER PLUS (UK) LTD,209782,,People Services,Care Spot - Private (3rd),5701,B
18,Devon County Council,17/09/2012,CFADDOM30043236,REDACTED UNDER DP ACT,599.76,NURSE PLUS & CARER PLUS (UK) LTD,209782,,People Services,Care Spot - Private (3rd),5701,B
18,Devon County Council,17/09/2012,CFADDOM30043237,REDACTED UNDER DP ACT,714,NURSE PLUS & CARER PLUS (UK) LTD,209782,,People Services,Care Spot - Private (3rd),5701,B
18,Devon County Council,17/09/2012,CFADDOM30043240,REDACTED UNDER DP ACT,799.68,NURSE PLUS & CARER PLUS (UK) LTD,209782,,People Services,Care Spot - Private (3rd),5701,B
18,Devon County Council,17/09/2012,CFADDOM30043246,REDACTED UNDER DP ACT,514.08,NURSE PLUS & CARER PLUS (UK) LTD,209782,,People Services,Care Spot - Private (3rd),5701,B
18,Devon County Council,17/09/2012,CFADDOM30043249,REDACTED UNDER DP ACT,521.22,NURSE PLUS & CARER PLUS (UK) LTD,209782,,People Services,Care Spot - Private (3rd),5701,B
18,Devon County Council,17/09/2012,CFADDOM30043250,REDACTED UNDER DP ACT,735.42,NURSE PLUS & CARER PLUS (UK) LTD,209782,,People Services,Care Spot - Private (3rd),5701,B
18,Devon County Council,17/09/2012,CFADDOM30043261,REDACTED UNDER DP ACT,642.6,NURSE PLUS & CARER PLUS (UK) LTD,209782,,People Services,Care Spot - Private (3rd),5701,B
18,Devon County Council,17/09/2012,CFADDOM30043262,REDACTED UNDER DP ACT,799.68,NURSE PLUS & CARER PLUS (UK) LTD,209782,,People Services,Care Spot - Private (3rd),5701,B
18,Devon County Council,17/09/2012,CFADDOM30043264,REDACTED UNDER DP ACT,799.68,NURSE PLUS & CARER PLUS (UK) LTD,209782,,People Services,Care Spot - Private (3rd),5701,B
18,Devon County Council,17/09/2012,CFADDOM30043268,REDACTED UNDER DP ACT,863.94,NURSE PLUS & CARER PLUS (UK) LTD,209782,,People Services,Care Spot - Private (3rd),5701,B
18,Devon County Council,17/09/2012,CFADDOM30043273,REDACTED UNDER DP ACT,813.96,NURSE PLUS & CARER PLUS (UK) LTD,209782,,People Services,Care Spot - Private (3rd),5701,B
18,Devon County Council,10/09/2012,RECSERV30602367,00140276,15211.25,NURSE PLUS & CARER PLUS (UK) LTD,209782,,Corporate Services,External Agency Staff,4321,B
18,Devon County Council,19/09/2012,RECSERV30602404,00140877,14540.97,NURSE PLUS & CARER PLUS (UK) LTD,209782,,Corporate Services,External Agency Staff,4321,B
18,Devon County Council,19/09/2012,RECSERV30602405,00141706,14662.02,NURSE PLUS & CARER PLUS (UK) LTD,209782,,Corporate Services,External Agency Staff,4321,B
18,Devon County Council,26/09/2012,RECSERV30602554,00142511,13262.49,NURSE PLUS & CARER PLUS (UK) LTD,209782,,Corporate Services,External Agency Staff,4321,B
18,Devon County Council,05/09/2012,CFADRES30067318,REDACTED UNDER DP ACT,2464,NUTLEY LODGE,89120,,People Services,Care Spot - Private (3rd),5701,B
18,Devon County Council,19/09/2012,CFADRES30067993,REDACTED UNDER DP ACT,2464,NUTLEY LODGE,89120,,People Services,Care Spot - Private (3rd),5701,B
18,Devon County Council,05/09/2012,CFADRES30067776,REDACTED UNDER DP ACT,1365.62,OAK HOUSE,244550,,People Services,Care Spot - Private (3rd),5701,B
18,Devon County Council,19/09/2012,CFADRES30068447,REDACTED UNDER DP ACT,1365.62,OAK HOUSE,244550,,People Services,Care Spot - Private (3rd),5701,B
18,Devon County Council,05/09/2012,CFADRES30067589,REDACTED UNDER DP ACT,8247.2,OAK HOUSE CARE HOME,154484,,People Services,Care Spot - Private (3rd),5701,B
18,Devon County Council,19/09/2012,CFADRES30068260,REDACTED UNDER DP ACT,8771.48,OAK HOUSE CARE HOME,154484,,People Services,Care Spot - Private (3rd),5701,B
18,Devon County Council,05/09/2012,CFADRES30067851,REDACTED UNDER DP ACT,1282.6,OAK LODGE NURSING HOME,280917,,People Services,Care Spot - Private (3rd),5701,B
18,Devon County Council,19/09/2012,CFADRES30068520,REDACTED UNDER DP ACT,1282.6,OAK LODGE NURSING HOME,280917,,People Services,Care Spot - Private (3rd),5701,B
18,Devon County Council,10/09/2012,CFADDOM30042894,REDACTED UNDER DP ACT,539,OAKFIELD INDEPENDENT CARE AND,253505,,People Services,Care Spot - Private (3rd),5701,B
18,Devon County Council,10/09/2012,CFADDOM30042895,REDACTED UNDER DP ACT,851.2,OAKFIELD INDEPENDENT CARE AND,253505,,People Services,Care Spot - Private (3rd),5701,B
18,Devon County Council,10/09/2012,CFADDOM30042900,REDACTED UNDER DP ACT,700.3,OAKFIELD INDEPENDENT CARE AND,253505,,People Services,Care Spot - Private (3rd),5701,B
18,Devon County Council,10/09/2012,CFADDOM30042907,REDACTED UNDER DP ACT,836,OAKFIELD INDEPENDENT CARE AND,253505,,People Services,Care Spot - Private (3rd),5701,B
18,Devon County Council,10/09/2012,CFADDOM30042908,REDACTED UNDER DP ACT,638.4,OAKFIELD INDEPENDENT CARE AND,253505,,People Services,Care Spot - Private (3rd),5701,B
18,Devon County Council,05/09/2012,CFADRES30067709,REDACTED UNDER DP ACT,767.34,OAKHURST RETIREMENT HOTEL,209339,,People Services,Care Spot - Private (3rd),5701,B
18,Devon County Council,19/09/2012,CFADRES30068381,REDACTED UNDER DP ACT,767.34,OAKHURST RETIREMENT HOTEL,209339,,People Services,Care Spot - Private (3rd),5701,B
18,Devon County Council,05/09/2012,CFADRES30067442,REDACTED UNDER DP ACT,13202.34,OAKLANDS RESIDENTIAL CARE HOME,90566,,People Services,Care Spot - Private (3rd),5701,B
18,Devon County Council,19/09/2012,CFADRES30068115,REDACTED UNDER DP ACT,14565.92,OAKLANDS RESIDENTIAL CARE HOME,90566,,People Services,Care Spot - Private (3rd),5701,B
18,Devon County Council,12/09/2012,CFADDOM30042972,REDACTED UNDER DP ACT,1050,OASIS COMMUNITY CARE LTD,253349,,People Services,Care Spot - Private (3rd),5701,B
18,Devon County Council,12/09/2012,CFADDOM30042976,REDACTED UNDER DP ACT,1050,OASIS COMMUNITY CARE LTD,253349,,People Services,Care Spot - Private (3rd),5701,B
18,Devon County Council,05/09/2012,CFADRES30067433,REDACTED UNDER DP ACT,1695.18,OATEN MJ&P TA HATT HOUSE,90459,,People Services,Care Spot - Private (3rd),5701,B
18,Devon County Council,19/09/2012,CFADRES30068106,REDACTED UNDER DP ACT,1695.18,OATEN MJ&P TA HATT HOUSE,90459,,People Services,Care Spot - Private (3rd),5701,B
18,Devon County Council,12/09/2012,CFADDAY30020033,REDACTED UNDER DP ACT,2092,OCEAN CARE SOLUTIONS LTD,287932,,People Services,Individualised Support - Private (3rd),5706,B
18,Devon County Council,12/09/2012,CFADDAY30020034,REDACTED UNDER DP ACT,4550,OCEAN CARE SOLUTIONS LTD,287932,,People Services,Individualised Support - Private (3rd),5706,B
18,Devon County Council,12/09/2012,CFADDAY30019876,REDACTED UNDER DP ACT,855.12,OGWELL GRANGE LTD,110454,,People Services,Care Spot - Private (3rd),5701,B
18,Devon County Council,05/09/2012,CFADRES30067538,REDACTED UNDER DP ACT,10752.08,OGWELL GRANGE LTD,110454,,People Services,Care Spot - Private (3rd),5701,B
18,Devon County Council,19/09/2012,CFADRES30068209,REDACTED UNDER DP ACT,10752.08,OGWELL GRANGE LTD,110454,,People Services,Care Spot - Private (3rd),5701,B
18,Devon County Council,05/09/2012,CFADRES30067838,REDACTED UNDER DP ACT,8191.54,OKECROFT,277435,,People Services,Care Spot - Private (3rd),5701,B
18,Devon County Council,19/09/2012,CFADRES30068507,REDACTED UNDER DP ACT,8191.54,OKECROFT,277435,,People Services,Care Spot - Private (3rd),5701,B
18,Devon County Council,05/09/2012,CFADRES30067534,REDACTED UNDER DP ACT,3010.68,OLD VICARAGE OTTERTON,107590,,People Services,Care Spot - Private (3rd),5701,B
18,Devon County Council,19/09/2012,CFADRES30068205,REDACTED UNDER DP ACT,3759.68,OLD VICARAGE OTTERTON,107590,,People Services,Care Spot - Private (3rd),5701,B
18,Devon County Council,05/09/2012,CFADRES30067830,REDACTED UNDER DP ACT,1002.02,OLD VICARAGE RESIDENTIAL HOME,275410,,People Services,Care Spot - Private (3rd),5701,B
18,Devon County Council,19/09/2012,CFADRES30068499,REDACTED UNDER DP ACT,1002.02,OLD VICARAGE RESIDENTIAL HOME,275410,,People Services,Care Spot - Private (3rd),5701,B
18,Devon County Council,10/09/2012,CFADDAY30019591,REDACTED UNDER DP ACT,4182,ORCHARD VIEW CARE HOME,89507,,People Services,Individualised Support - Private (3rd),5706,B
18,Devon County Council,10/09/2012,CFADDAY30019592,REDACTED UNDER DP ACT,2768.92,ORCHARD VIEW CARE HOME,89507,,People Services,Individualised Support - Private (3rd),5706,B
18,Devon County Council,05/09/2012,CFADRES30067347,REDACTED UNDER DP ACT,9329.56,ORCHARD VIEW CARE HOME,89507,,People Services,Care Spot - Private (3rd),5701,B
18,Devon County Council,19/09/2012,CFADRES30068022,REDACTED UNDER DP ACT,9329.56,ORCHARD VIEW CARE HOME,89507,,People Services,Care Spot - Private (3rd),5701,B
18,Devon County Council,11/09/2012,CFADRES30065712,REDACTED UNDER DP ACT,950,OSBORNE HOUSE RESIDENTIAL HOME,226183,,People Services,Care Spot - Private (3rd),5701,B
18,Devon County Council,11/09/2012,CFADRES30066383,REDACTED UNDER DP ACT,950,OSBORNE HOUSE RESIDENTIAL HOME,226183,,People Services,Care Spot - Private (3rd),5701,B
18,Devon County Council,10/09/2012,CFADDAY30019601,REDACTED UNDER DP ACT,2330.9,OTTERHAYES TRUST LTD,90675,,People Services,Individualised Support - Private (3rd),5706,B
18,Devon County Council,10/09/2012,CFADDAY30019602,REDACTED UNDER DP ACT,2266.55,OTTERHAYES TRUST LTD,90675,,People Services,Individualised Support - Private (3rd),5706,B
18,Devon County Council,10/09/2012,CFADDAY30019603,REDACTED UNDER DP ACT,2432.35,OTTERHAYES TRUST LTD,90675,,People Services,Individualised Support - Private (3rd),5706,B
18,Devon County Council,10/09/2012,CFADDAY30019604,REDACTED UNDER DP ACT,1475,OTTERHAYES TRUST LTD,90675,,People Services,Individualised Support - Private (3rd),5706,B
18,Devon County Council,10/09/2012,CFADDAY30019605,REDACTED UNDER DP ACT,1475,OTTERHAYES TRUST LTD,90675,,People Services,Individualised Support - Private (3rd),5706,B
18,Devon County Council,10/09/2012,CFADDAY30019606,REDACTED UNDER DP ACT,2065,OTTERHAYES TRUST LTD,90675,,People Services,Individualised Support - Private (3rd),5706,B
18,Devon County Council,10/09/2012,CFADDAY30019607,REDACTED UNDER DP ACT,1770,OTTERHAYES TRUST LTD,90675,,People Services,Individualised Support - Private (3rd),5706,B
18,Devon County Council,10/09/2012,CFADDAY30019608,REDACTED UNDER DP ACT,2065,OTTERHAYES TRUST LTD,90675,,People Services,Individualised Support - Private (3rd),5706,B
18,Devon County Council,10/09/2012,CFADDAY30019609,REDACTED UNDER DP ACT,1475,OTTERHAYES TRUST LTD,90675,,People Services,Individualised Support - Private (3rd),5706,B
18,Devon County Council,10/09/2012,CFADDAY30019610,REDACTED UNDER DP ACT,2370,OTTERHAYES TRUST LTD,90675,,People Services,Individualised Support - Private (3rd),5706,B
18,Devon County Council,10/09/2012,CFADDAY30019611,REDACTED UNDER DP ACT,2065,OTTERHAYES TRUST LTD,90675,,People Services,Individualised Support - Private (3rd),5706,B
18,Devon County Council,10/09/2012,CFADDAY30019612,REDACTED UNDER DP ACT,2065,OTTERHAYES TRUST LTD,90675,,People Services,Individualised Support - Private (3rd),5706,B
18,Devon County Council,05/09/2012,CFADRES30067458,REDACTED UNDER DP ACT,3222.84,OTTERHAYES TRUST LTD,90675,,People Services,Care Spot - Private (3rd),5701,B
18,Devon County Council,19/09/2012,CFADRES30068131,REDACTED UNDER DP ACT,3222.84,OTTERHAYES TRUST LTD,90675,,People Services,Care Spot - Private (3rd),5701,B
18,Devon County Council,05/09/2012,CFADRES30067832,REDACTED UNDER DP ACT,992.3,OVERDALE,276369,,People Services,Care Spot - Private (3rd),5701,B
18,Devon County Council,19/09/2012,CFADRES30068501,REDACTED UNDER DP ACT,992.3,OVERDALE,276369,,People Services,Care Spot - Private (3rd),5701,B
18,Devon County Council,05/09/2012,CFADRES30067853,REDACTED UNDER DP ACT,2581.6,OVERLEAT RESIDENTIAL CARE HOME,281124,,People Services,Care Spot - Private (3rd),5701,B
18,Devon County Council,19/09/2012,CFADRES30068522,REDACTED UNDER DP ACT,2581.6,OVERLEAT RESIDENTIAL CARE HOME,281124,,People Services,Care Spot - Private (3rd),5701,B
18,Devon County Council,05/09/2012,CFADRES30067533,REDACTED UNDER DP ACT,1578.46,PARADISE HOUSE ASSOCIATION LTD,107043,,People Services,Care Spot - Private (3rd),5701,B
18,Devon County Council,19/09/2012,CFADRES30068204,REDACTED UNDER DP ACT,1578.46,PARADISE HOUSE ASSOCIATION LTD,107043,,People Services,Care Spot - Private (3rd),5701,B
18,Devon County Council,18/09/2012,CFADRES30067505,REDACTED UNDER DP ACT,3040.62,PARIKIA APL DG HARDEE T/A,99658,,People Services,Care Spot - Private (3rd),5701,B
18,Devon County Council,05/09/2012,CFADRES30067445,REDACTED UNDER DP ACT,14948.01,PARK HOUSE RESIDENTIAL HOME,90590,,People Services,Care Spot - Private (3rd),5701,B
18,Devon County Council,19/09/2012,CFADRES30068118,REDACTED UNDER DP ACT,11898,PARK HOUSE RESIDENTIAL HOME,90590,,People Services,Care Spot - Private (3rd),5701,B
18,Devon County Council,05/09/2012,CFADRES30067439,REDACTED UNDER DP ACT,14370.24,PARKLAND HOUSE,90529,,People Services,Care Spot - Private (3rd),5701,B
18,Devon County Council,19/09/2012,CFADRES30068112,REDACTED UNDER DP ACT,14133.1,PARKLAND HOUSE,90529,,People Services,Care Spot - Private (3rd),5701,B
18,Devon County Council,05/09/2012,CFADRES30067469,REDACTED UNDER DP ACT,5363.44,PARKLANDS RESIDENTIAL HOME,90789,,People Services,Care Spot - Private (3rd),5701,B
18,Devon County Council,19/09/2012,CFADRES30068142,REDACTED UNDER DP ACT,4237.01,PARKLANDS RESIDENTIAL HOME,90789,,People Services,Care Spot - Private (3rd),5701,B
18,Devon County Council,05/09/2012,CFADRES30067760,REDACTED UNDER DP ACT,1500,PARKVIEW HOUSE,236450,,People Services,Care Spot - Private (3rd),5701,B
18,Devon County Council,19/09/2012,CFADRES30068431,REDACTED UNDER DP ACT,1500,PARKVIEW HOUSE,236450,,People Services,Care Spot - Private (3rd),5701,B
18,Devon County Council,05/09/2012,CFADRES30067443,REDACTED UNDER DP ACT,4132.12,PARKVIEW SOCIETY LTD,90583,,People Services,Care Spot - Private (3rd),5701,B
18,Devon County Council,19/09/2012,CFADRES30068116,REDACTED UNDER DP ACT,4132.12,PARKVIEW SOCIETY LTD,90583,,People Services,Care Spot - Private (3rd),5701,B
18,Devon County Council,24/09/2012,CFADDOM30043786,REDACTED UNDER DP ACT,2088.8,PENCLEASE HOUSE,213058,,People Services,Care Spot - Private (3rd),5701,B
18,Devon County Council,24/09/2012,CFADDOM30043787,REDACTED UNDER DP ACT,626.64,PENCLEASE HOUSE,213058,,People Services,Care Spot - Private (3rd),5701,B
18,Devon County Council,24/09/2012,CFADDOM30043791,REDACTED UNDER DP ACT,2088.8,PENCLEASE HOUSE,213058,,People Services,Care Spot - Private (3rd),5701,B
18,Devon County Council,24/09/2012,CFADDOM30043792,REDACTED UNDER DP ACT,626.64,PENCLEASE HOUSE,213058,,People Services,Care Spot - Private (3rd),5701,B
18,Devon County Council,24/09/2012,CFADDOM30043794,REDACTED UNDER DP ACT,1879.92,PENCLEASE HOUSE,213058,,People Services,Care Spot - Private (3rd),5701,B
18,Devon County Council,05/09/2012,CFADRES30067620,REDACTED UNDER DP ACT,3149.28,PENDENNIS RESIDENTIAL HOME,169104,,People Services,Care Spot - Private (3rd),5701,B
18,Devon County Council,19/09/2012,CFADRES30068292,REDACTED UNDER DP ACT,3149.28,PENDENNIS RESIDENTIAL HOME,169104,,People Services,Care Spot - Private (3rd),5701,B
18,Devon County Council,17/09/2012,CFADDOM30043092,REDACTED UNDER DP ACT,893.2,PENINSULA CARE DEVON,159339,,People Services,Care Spot - Private (3rd),5701,B
18,Devon County Council,17/09/2012,CFADDOM30043095,REDACTED UNDER DP ACT,646.8,PENINSULA CARE DEVON,159339,,People Services,Care Spot - Private (3rd),5701,B
18,Devon County Council,17/09/2012,CFADDOM30043100,REDACTED UNDER DP ACT,1031.8,PENINSULA CARE DEVON,159339,,People Services,Care Spot - Private (3rd),5701,B
18,Devon County Council,17/09/2012,CFADDOM30043103,REDACTED UNDER DP ACT,708.4,PENINSULA CARE DEVON,159339,,People Services,Care Spot - Private (3rd),5701,B
18,Devon County Council,17/09/2012,CFADDOM30043105,REDACTED UNDER DP ACT,1024.1,PENINSULA CARE DEVON,159339,,People Services,Care Spot - Private (3rd),5701,B
18,Devon County Council,17/09/2012,CFADDOM30043109,REDACTED UNDER DP ACT,646.8,PENINSULA CARE DEVON,159339,,People Services,Care Spot - Private (3rd),5701,B
18,Devon County Council,17/09/2012,CFADDOM30043111,REDACTED UNDER DP ACT,1293.6,PENINSULA CARE DEVON,159339,,People Services,Care Spot - Private (3rd),5701,B
18,Devon County Council,17/09/2012,CFADDOM30043112,REDACTED UNDER DP ACT,754.6,PENINSULA CARE DEVON,159339,,People Services,Care Spot - Private (3rd),5701,B
18,Devon County Council,17/09/2012,CFADDOM30043114,REDACTED UNDER DP ACT,862.4,PENINSULA CARE DEVON,159339,,People Services,Care Spot - Private (3rd),5701,B
18,Devon County Council,17/09/2012,CFADDOM30043115,REDACTED UNDER DP ACT,646.8,PENINSULA CARE DEVON,159339,,People Services,Care Spot - Private (3rd),5701,B
18,Devon County Council,17/09/2012,CFADDOM30043122,REDACTED UNDER DP ACT,2130,PENINSULA CARE DEVON,159339,,People Services,Care Spot - Private (3rd),5701,B
18,Devon County Council,17/09/2012,CFADDOM30043130,REDACTED UNDER DP ACT,1001,PENINSULA CARE DEVON,159339,,People Services,Care Spot - Private (3rd),5701,B
18,Devon County Council,05/09/2012,CFADRES30067559,REDACTED UNDER DP ACT,9171.02,PENINSULA CARE HOMES LTD,124008,,People Services,Care Spot - Private (3rd),5701,B
18,Devon County Council,19/09/2012,CFADRES30068231,REDACTED UNDER DP ACT,7511.03,PENINSULA CARE HOMES LTD,124008,,People Services,Care Spot - Private (3rd),5701,B
18,Devon County Council,05/09/2012,CFADRES30067716,REDACTED UNDER DP ACT,988.9,PENNWOOD LODGE NURSING HOME,216348,,People Services,Care Spot - Private (3rd),5701,B
18,Devon County Council,19/09/2012,CFADRES30068388,REDACTED UNDER DP ACT,988.9,PENNWOOD LODGE NURSING HOME,216348,,People Services,Care Spot - Private (3rd),5701,B
18,Devon County Council,05/09/2012,CFADRES30067349,REDACTED UNDER DP ACT,3663.72,PHILLIPS T/A KORNILOFF GJ & JS,89545,,People Services,Care Spot - Private (3rd),5701,B
18,Devon County Council,19/09/2012,CFADRES30068024,REDACTED UNDER DP ACT,3663.72,PHILLIPS T/A KORNILOFF GJ & JS,89545,,People Services,Care Spot - Private (3rd),5701,B
18,Devon County Council,12/09/2012,CFADDAY30019874,REDACTED UNDER DP ACT,1926.43,PHOENIX LEARNING & CARE LTD,100780,,People Services,Individualised Support - Private (3rd),5706,B
18,Devon County Council,12/09/2012,CFADDAY30019875,REDACTED UNDER DP ACT,2548.51,PHOENIX LEARNING & CARE LTD,100780,,People Services,Individualised Support - Private (3rd),5706,B
18,Devon County Council,05/09/2012,CFADRES30067511,REDACTED UNDER DP ACT,2200.42,PHOENIX LEARNING & CARE LTD,100780,,People Services,Care Spot - Private (3rd),5701,B
18,Devon County Council,19/09/2012,CFADRES30068183,REDACTED UNDER DP ACT,3202.89,PHOENIX LEARNING & CARE LTD,100780,,People Services,Care Spot - Private (3rd),5701,B
18,Devon County Council,05/09/2012,CFADRES30067730,REDACTED UNDER DP ACT,3648.64,PHOENIX LODGE,225836,,People Services,Care Spot - Private (3rd),5701,B
18,Devon County Council,19/09/2012,CFADRES30068402,REDACTED UNDER DP ACT,3648.64,PHOENIX LODGE,225836,,People Services,Care Spot - Private (3rd),5701,B
18,Devon County Council,05/09/2012,CFADRES30067447,REDACTED UNDER DP ACT,10285.82,PINEHURST,90592,,People Services,Care Spot - Private (3rd),5701,B
18,Devon County Council,05/09/2012,CFADRES30067627,REDACTED UNDER DP ACT,8994.7,PINEHURST,171536,,People Services,Care Spot - Private (3rd),5701,B
18,Devon County Council,19/09/2012,CFADRES30068120,REDACTED UNDER DP ACT,10285.82,PINEHURST,90592,,People Services,Care Spot - Private (3rd),5701,B
18,Devon County Council,19/09/2012,CFADRES30068298,REDACTED UNDER DP ACT,12868.84,PINEHURST,171536,,People Services,Care Spot - Private (3rd),5701,B
18,Devon County Council,03/09/2012,CFADDOM30042227,REDACTED UNDER DP ACT,824.32,PINEWOOD NURSING HOME,159483,,People Services,Care Spot - Private (3rd),5701,B
18,Devon County Council,03/09/2012,CFADDOM30042231,REDACTED UNDER DP ACT,559.36,PINEWOOD NURSING HOME,159483,,People Services,Care Spot - Private (3rd),5701,B
18,Devon County Council,03/09/2012,CFADDOM30042233,REDACTED UNDER DP ACT,758.08,PINEWOOD NURSING HOME,159483,,People Services,Care Spot - Private (3rd),5701,B
18,Devon County Council,03/09/2012,CFADDOM30042234,REDACTED UNDER DP ACT,610.88,PINEWOOD NURSING HOME,159483,,People Services,Care Spot - Private (3rd),5701,B
18,Devon County Council,03/09/2012,CFADDOM30042237,REDACTED UNDER DP ACT,581.44,PINEWOOD NURSING HOME,159483,,People Services,Care Spot - Private (3rd),5701,B
18,Devon County Council,03/09/2012,CFADDOM30042238,REDACTED UNDER DP ACT,529.92,PINEWOOD NURSING HOME,159483,,People Services,Care Spot - Private (3rd),5701,B
18,Devon County Council,03/09/2012,CFADDOM30042239,REDACTED UNDER DP ACT,603.52,PINEWOOD NURSING HOME,159483,,People Services,Care Spot - Private (3rd),5701,B
18,Devon County Council,03/09/2012,CFADDOM30042240,REDACTED UNDER DP ACT,1173.92,PINEWOOD NURSING HOME,159483,,People Services,Care Spot - Private (3rd),5701,B
18,Devon County Council,03/09/2012,CFADDOM30042241,REDACTED UNDER DP ACT,618.24,PINEWOOD NURSING HOME,159483,,People Services,Care Spot - Private (3rd),5701,B
18,Devon County Council,17/09/2012,CFADDOM30043138,REDACTED UNDER DP ACT,824.32,PINEWOOD NURSING HOME,159483,,People Services,Care Spot - Private (3rd),5701,B
18,Devon County Council,17/09/2012,CFADDOM30043142,REDACTED UNDER DP ACT,559.36,PINEWOOD NURSING HOME,159483,,People Services,Care Spot - Private (3rd),5701,B
18,Devon County Council,17/09/2012,CFADDOM30043144,REDACTED UNDER DP ACT,765.44,PINEWOOD NURSING HOME,159483,,People Services,Care Spot - Private (3rd),5701,B
18,Devon County Council,17/09/2012,CFADDOM30043145,REDACTED UNDER DP ACT,618.24,PINEWOOD NURSING HOME,159483,,People Services,Care Spot - Private (3rd),5701,B
18,Devon County Council,17/09/2012,CFADDOM30043149,REDACTED UNDER DP ACT,529.92,PINEWOOD NURSING HOME,159483,,People Services,Care Spot - Private (3rd),5701,B
18,Devon County Council,17/09/2012,CFADDOM30043150,REDACTED UNDER DP ACT,1037.76,PINEWOOD NURSING HOME,159483,,People Services,Care Spot - Private (3rd),5701,B
18,Devon County Council,17/09/2012,CFADDOM30043151,REDACTED UNDER DP ACT,588.8,PINEWOOD NURSING HOME,159483,,People Services,Care Spot - Private (3rd),5701,B
18,Devon County Council,17/09/2012,CFADDOM30043152,REDACTED UNDER DP ACT,1854.72,PINEWOOD NURSING HOME,159483,,People Services,Care Spot - Private (3rd),5701,B
18,Devon County Council,17/09/2012,CFADDOM30043154,REDACTED UNDER DP ACT,559.36,PINEWOOD NURSING HOME,159483,,People Services,Care Spot - Private (3rd),5701,B
18,Devon County Council,05/09/2012,CFADRES30067448,REDACTED UNDER DP ACT,5234.8,PINHAY PARTNERSHIP,90595,918492005,People Services,Care Spot - Private (3rd),5701,B
18,Devon County Council,19/09/2012,CFADRES30068121,REDACTED UNDER DP ACT,5234.8,PINHAY PARTNERSHIP,90595,918492005,People Services,Care Spot - Private (3rd),5701,B
18,Devon County Council,03/09/2012,CFADDAY30019482,REDACTED UNDER DP ACT,3930,PLATINUM LIVING DEVON LTD,250083,,People Services,Individualised Support - Private (3rd),5706,B
18,Devon County Council,12/09/2012,CFADDAY30020012,REDACTED UNDER DP ACT,3930,PLATINUM LIVING DEVON LTD,250083,,People Services,Individualised Support - Private (3rd),5706,B
18,Devon County Council,17/09/2012,CFADDOM30043352,REDACTED UNDER DP ACT,850.5,PLATINUM PLUS HEALTHCARE LTD,237129,,People Services,Care Spot - Private (3rd),5701,B
18,Devon County Council,17/09/2012,CFADDOM30043353,REDACTED UNDER DP ACT,952,PLATINUM PLUS HEALTHCARE LTD,237129,,People Services,Care Spot - Private (3rd),5701,B
18,Devon County Council,17/09/2012,CFADDOM30043355,REDACTED UNDER DP ACT,784,PLATINUM PLUS HEALTHCARE LTD,237129,,People Services,Care Spot - Private (3rd),5701,B
18,Devon County Council,17/09/2012,CFADDOM30043358,REDACTED UNDER DP ACT,1568,PLATINUM PLUS HEALTHCARE LTD,237129,,People Services,Care Spot - Private (3rd),5701,B
18,Devon County Council,17/09/2012,CFADDOM30043360,REDACTED UNDER DP ACT,1092,PLATINUM PLUS HEALTHCARE LTD,237129,,People Services,Care Spot - Private (3rd),5701,B
18,Devon County Council,17/09/2012,CFADDOM30043361,REDACTED UNDER DP ACT,882,PLATINUM PLUS HEALTHCARE LTD,237129,,People Services,Care Spot - Private (3rd),5701,B
18,Devon County Council,05/09/2012,CFADRES30067821,REDACTED UNDER DP ACT,824,POPLARS THE,270234,,People Services,Care Spot - Private (3rd),5701,B
18,Devon County Council,19/09/2012,CFADRES30068490,REDACTED UNDER DP ACT,824,POPLARS THE,270234,,People Services,Care Spot - Private (3rd),5701,B
18,Devon County Council,05/09/2012,CFADRES30067704,REDACTED UNDER DP ACT,8321.58,POTTLES COURT,207641,,People Services,Care Spot - Private (3rd),5701,B
18,Devon County Council,19/09/2012,CFADRES30068376,REDACTED UNDER DP ACT,8817.9,POTTLES COURT,207641,,People Services,Care Spot - Private (3rd),5701,B
18,Devon County Council,10/09/2012,CFADDOM30042879,REDACTED UNDER DP ACT,2156,PREMIER COMMUNITY SERVICES LTD,236361,,People Services,Care Spot - Private (3rd),5701,B
18,Devon County Council,10/09/2012,CFADDOM30042880,REDACTED UNDER DP ACT,847,PREMIER COMMUNITY SERVICES LTD,236361,,People Services,Care Spot - Private (3rd),5701,B
18,Devon County Council,10/09/2012,CFADDOM30042881,REDACTED UNDER DP ACT,539,PREMIER COMMUNITY SERVICES LTD,236361,,People Services,Care Spot - Private (3rd),5701,B
18,Devon County Council,10/09/2012,CFADDOM30042885,REDACTED UNDER DP ACT,2156,PREMIER COMMUNITY SERVICES LTD,236361,,People Services,Care Spot - Private (3rd),5701,B
18,Devon County Council,10/09/2012,CFADDOM30042887,REDACTED UNDER DP ACT,862.4,PREMIER COMMUNITY SERVICES LTD,236361,,People Services,Care Spot - Private (3rd),5701,B
18,Devon County Council,10/09/2012,CFADDOM30042888,REDACTED UNDER DP ACT,1293.6,PREMIER COMMUNITY SERVICES LTD,236361,,People Services,Care Spot - Private (3rd),5701,B
18,Devon County Council,10/09/2012,CFADDOM30042889,REDACTED UNDER DP ACT,600.6,PREMIER COMMUNITY SERVICES LTD,236361,,People Services,Care Spot - Private (3rd),5701,B
18,Devon County Council,10/09/2012,CFADDOM30042890,REDACTED UNDER DP ACT,739.2,PREMIER COMMUNITY SERVICES LTD,236361,,People Services,Care Spot - Private (3rd),5701,B
18,Devon County Council,10/09/2012,CFADDOM30042893,REDACTED UNDER DP ACT,1405.1,PREMIER COMMUNITY SERVICES LTD,236361,,People Services,Care Spot - Private (3rd),5701,B
18,Devon County Council,05/09/2012,CFADRES30067892,REDACTED UNDER DP ACT,782,PRIME LIFE LTD T/A FIR CLOSE,291236,,People Services,Care Spot - Private (3rd),5701,B
18,Devon County Council,19/09/2012,CFADRES30068561,REDACTED UNDER DP ACT,782,PRIME LIFE LTD T/A FIR CLOSE,291236,,People Services,Care Spot - Private (3rd),5701,B
18,Devon County Council,05/09/2012,CFADRES30067362,REDACTED UNDER DP ACT,2107.66,PRIMROSE HOUSE ACCOUNT,89742,,People Services,Care Spot - Private (3rd),5701,B
18,Devon County Council,19/09/2012,CFADRES30068037,REDACTED UNDER DP ACT,2107.66,PRIMROSE HOUSE ACCOUNT,89742,,People Services,Care Spot - Private (3rd),5701,B
18,Devon County Council,05/09/2012,CFADRES30067796,REDACTED UNDER DP ACT,952,PRIMROSE LODGE,256495,,People Services,Care Spot - Private (3rd),5701,B
18,Devon County Council,05/09/2012,CFADRES30067529,REDACTED UNDER DP ACT,3310.76,PRIORS PEASE RESIDENTIAL HOME,105459,,People Services,Care Spot - Private (3rd),5701,B
18,Devon County Council,05/09/2012,CFADDOM30042577,REDACTED UNDER DP ACT,1932.7,PRIORY RESIDENTIAL CARE HOME,195039,,People Services,Care Spot - Private (3rd),5701,B
18,Devon County Council,19/09/2012,CFADRES30067673,REDACTED UNDER DP ACT,1831.05,PRIORY RESIDENTIAL CARE HOME,195039,,People Services,Care Spot - Private (3rd),5701,B
18,Devon County Council,19/09/2012,CFADRES30068345,REDACTED UNDER DP ACT,5804.34,PRIORY RESIDENTIAL CARE HOME,195039,,People Services,Care Spot - Private (3rd),5701,B
18,Devon County Council,19/09/2012,FINSSCW30457831,12/03,782,PRIORY RESIDENTIAL CARE HOME,195039,,People Services,Care Spot - Private (3rd),5701,B
18,Devon County Council,24/09/2012,FINSSCW30457877,12/02,782,PRIORY RESIDENTIAL CARE HOME,195039,,People Services,Care Spot - Private (3rd),5701,B
18,Devon County Council,19/09/2012,CFADRES17332319,REDACTED UNDER DP ACT,-4108.86,PRIORY RESIDENTIAL CARE HOME,195039,,People Services,Care Spot - Private (3rd),5701,B
18,Devon County Council,05/09/2012,CFADRES30067404,REDACTED UNDER DP ACT,14000.22,PRIVETT JA & BM,90182,,People Services,Care Spot - Private (3rd),5701,B
18,Devon County Council,19/09/2012,CFADRES30068077,REDACTED UNDER DP ACT,13393.08,PRIVETT JA & BM,90182,,People Services,Care Spot - Private (3rd),5701,B
18,Devon County Council,19/09/2012,CFADDAY30020363,REDACTED UNDER DP ACT,581.28,Q CARE LTD,253549,,People Services,Individualised Support - Private (3rd),5706,B
18,Devon County Council,24/09/2012,CFADDOM30043683,REDACTED UNDER DP ACT,18320.01,Q CARE LTD,253549,,People Services,Care Block - Private (3rd),5702,B
18,Devon County Council,24/09/2012,CFADDOM30043684,REDACTED UNDER DP ACT,17389.99,Q CARE LTD,253549,,People Services,Care Block - Private (3rd),5702,B
18,Devon County Council,24/09/2012,CFADDOM30043685,REDACTED UNDER DP ACT,1152.59,Q CARE LTD,253549,,People Services,Care Block - Private (3rd),5702,B
18,Devon County Council,05/09/2012,CFADRES30067793,REDACTED UNDER DP ACT,2667.31,QUALITY LIFESTYLE LTD,255184,,People Services,Care Spot - Private (3rd),5701,B
18,Devon County Council,19/09/2012,CFADRES30068464,REDACTED UNDER DP ACT,5334.62,QUALITY LIFESTYLE LTD,255184,,People Services,Care Spot - Private (3rd),5701,B
18,Devon County Council,05/09/2012,CFADRES30067901,REDACTED UNDER DP ACT,1067.5,QUANTUM CARE T/A FREEMAN HOUSE,292957,,People Services,Care Spot - Private (3rd),5701,B
18,Devon County Council,19/09/2012,CFADRES30068571,REDACTED UNDER DP ACT,1067.5,QUANTUM CARE T/A FREEMAN HOUSE,292957,,People Services,Care Spot - Private (3rd),5701,B
18,Devon County Council,05/09/2012,CFADRES30067331,REDACTED UNDER DP ACT,8317.45,QUAY COURT CARE CENTRE LTD,89250,,People Services,Care Spot - Private (3rd),5701,B
18,Devon County Council,19/09/2012,CFADRES30068006,REDACTED UNDER DP ACT,8021.02,QUAY COURT CARE CENTRE LTD,89250,,People Services,Care Spot - Private (3rd),5701,B
18,Devon County Council,05/09/2012,CFADRES30067510,REDACTED UNDER DP ACT,4705.69,QUAY COURT CARE CNTR/KAHALA CRT,100778,,People Services,Care Spot - Private (3rd),5701,B
18,Devon County Council,19/09/2012,CFADRES30068182,REDACTED UNDER DP ACT,7182.72,QUAY COURT CARE CNTR/KAHALA CRT,100778,,People Services,Care Spot - Private (3rd),5701,B
18,Devon County Council,05/09/2012,CFADRES30067758,REDACTED UNDER DP ACT,870.6,R M J J HEALTHCARE TA FANSHAWE,236091,,People Services,Care Spot - Private (3rd),5701,B
18,Devon County Council,05/09/2012,CFADRES30067820,REDACTED UNDER DP ACT,821.28,R N I B KATHLEEN CHAMBERS HOUSE,269873,,People Services,Care Spot - Private (3rd),5701,B
18,Devon County Council,19/09/2012,CFADRES30068489,REDACTED UNDER DP ACT,821.28,R N I B KATHLEEN CHAMBERS HOUSE,269873,,People Services,Care Spot - Private (3rd),5701,B
18,Devon County Council,03/09/2012,CFADDOM30042370,REDACTED UNDER DP ACT,795.6,R V CARE SOMERSET LTD,269911,,People Services,Care Spot - Private (3rd),5701,B
18,Devon County Council,12/09/2012,CFADDOM30043012,REDACTED UNDER DP ACT,4029,R V CARE SOMERSET LTD,269911,,People Services,Care Spot - Private (3rd),5701,B
18,Devon County Council,12/09/2012,CFADDOM30043015,REDACTED UNDER DP ACT,900,R V CARE SOMERSET LTD,269911,,People Services,Care Spot - Private (3rd),5701,B
18,Devon County Council,12/09/2012,CFADDOM30043021,REDACTED UNDER DP ACT,705.6,R V CARE SOMERSET LTD,269911,,People Services,Care Spot - Private (3rd),5701,B
18,Devon County Council,12/09/2012,CFADDOM30043023,REDACTED UNDER DP ACT,1142.4,R V CARE SOMERSET LTD,269911,,People Services,Care Spot - Private (3rd),5701,B
18,Devon County Council,12/09/2012,CFADDOM30043025,REDACTED UNDER DP ACT,1785.6,R V CARE SOMERSET LTD,269911,,People Services,Care Spot - Private (3rd),5701,B
18,Devon County Council,12/09/2012,CFADDOM30043030,REDACTED UNDER DP ACT,1714.8,R V CARE SOMERSET LTD,269911,,People Services,Care Spot - Private (3rd),5701,B
18,Devon County Council,12/09/2012,CFADDOM30043032,REDACTED UNDER DP ACT,813.6,R V CARE SOMERSET LTD,269911,,People Services,Care Spot - Private (3rd),5701,B
18,Devon County Council,12/09/2012,CFADDOM30043034,REDACTED UNDER DP ACT,842.4,R V CARE SOMERSET LTD,269911,,People Services,Care Spot - Private (3rd),5701,B
18,Devon County Council,12/09/2012,CFADDOM30043037,REDACTED UNDER DP ACT,864,R V CARE SOMERSET LTD,269911,,People Services,Care Spot - Private (3rd),5701,B
18,Devon County Council,19/09/2012,CFADDOM30043616,REDACTED UNDER DP ACT,522,R V CARE SOMERSET LTD,269911,,People Services,Care Spot - Private (3rd),5701,B
18,Devon County Council,19/09/2012,CFADDOM30043617,REDACTED UNDER DP ACT,547.2,R V CARE SOMERSET LTD,269911,,People Services,Care Spot - Private (3rd),5701,B
18,Devon County Council,05/09/2012,CFADRES30067464,REDACTED UNDER DP ACT,3202.54,RADWAY LODGE PARTNERSHIP,90726,,People Services,Care Spot - Private (3rd),5701,B
18,Devon County Council,19/09/2012,CFADRES30068137,REDACTED UNDER DP ACT,3202.54,RADWAY LODGE PARTNERSHIP,90726,,People Services,Care Spot - Private (3rd),5701,B
18,Devon County Council,05/09/2012,CFADRES30067799,REDACTED UNDER DP ACT,741,RATAN HOMES LTD T/A GROVE HOUSE,258455,,People Services,Care Spot - Private (3rd),5701,B
18,Devon County Council,19/09/2012,CFADRES30068469,REDACTED UNDER DP ACT,741,RATAN HOMES LTD T/A GROVE HOUSE,258455,,People Services,Care Spot - Private (3rd),5701,B
18,Devon County Council,05/09/2012,CFADRES30067825,REDACTED UNDER DP ACT,10365.21,RAVENHURST CARE HOME,272303,,People Services,Care Spot - Private (3rd),5701,B
18,Devon County Council,19/09/2012,CFADRES30068494,REDACTED UNDER DP ACT,736,RAVENHURST CARE HOME,272303,,People Services,Care Spot - Private (3rd),5701,B
18,Devon County Council,05/09/2012,CFADRES30067790,REDACTED UNDER DP ACT,801.26,REDWOOD HOUSE RESIDENTIAL HOME,252171,,People Services,Care Spot - Private (3rd),5701,B
18,Devon County Council,19/09/2012,CFADRES30068461,REDACTED UNDER DP ACT,801.26,REDWOOD HOUSE RESIDENTIAL HOME,252171,,People Services,Care Spot - Private (3rd),5701,B
18,Devon County Council,05/09/2012,CFADRES30067343,REDACTED UNDER DP ACT,1591.02,RENAISSANCE CARE SERVICES LTD,89421,927308909,People Services,Care Spot - Private (3rd),5701,B
18,Devon County Council,19/09/2012,CFADRES30068018,REDACTED UNDER DP ACT,1591.02,RENAISSANCE CARE SERVICES LTD,89421,927308909,People Services,Care Spot - Private (3rd),5701,B
18,Devon County Council,05/09/2012,CFADRES30067468,REDACTED UNDER DP ACT,12836.03,REST HAVEN,90785,,People Services,Care Spot - Private (3rd),5701,B
18,Devon County Council,19/09/2012,CFADRES30068141,REDACTED UNDER DP ACT,15206.72,REST HAVEN,90785,,People Services,Care Spot - Private (3rd),5701,B
18,Devon County Council,05/09/2012,CFADRES30067509,REDACTED UNDER DP ACT,957.94,RETREAT CARE HOME LTD,100777,,People Services,Care Spot - Private (3rd),5701,B
18,Devon County Council,19/09/2012,CFADRES30068181,REDACTED UNDER DP ACT,957.94,RETREAT CARE HOME LTD,100777,,People Services,Care Spot - Private (3rd),5701,B
18,Devon County Council,05/09/2012,CFADRES30067558,REDACTED UNDER DP ACT,922.3,RIDGE HOUSE,123407,,People Services,Care Spot - Private (3rd),5701,B
18,Devon County Council,19/09/2012,CFADRES30068230,REDACTED UNDER DP ACT,922.3,RIDGE HOUSE,123407,,People Services,Care Spot - Private (3rd),5701,B
18,Devon County Council,05/09/2012,CFADRES30067325,REDACTED UNDER DP ACT,3493.8,RIDGEWAY RES HOME LTD (HOMES),89204,,People Services,Care Spot - Private (3rd),5701,B
18,Devon County Council,19/09/2012,CFADRES30068000,REDACTED UNDER DP ACT,3493.8,RIDGEWAY RES HOME LTD (HOMES),89204,,People Services,Care Spot - Private (3rd),5701,B
18,Devon County Council,19/09/2012,CFADRES30068187,REDACTED UNDER DP ACT,911.25,RIDGMONT CARE HOMES LTD,101740,,People Services,Care Spot - Private (3rd),5701,B
18,Devon County Council,05/09/2012,CFADRES30067702,REDACTED UNDER DP ACT,7676.05,RISE CARE HOME THE,207075,,People Services,Care Spot - Private (3rd),5701,B
18,Devon County Council,19/09/2012,CFADRES30068374,REDACTED UNDER DP ACT,7616.76,RISE CARE HOME THE,207075,,People Services,Care Spot - Private (3rd),5701,B
18,Devon County Council,05/09/2012,CFADRES30067749,REDACTED UNDER DP ACT,1043.42,RIVER COURT RES & NURSING HOME,231744,,People Services,Care Spot - Private (3rd),5701,B
18,Devon County Council,19/09/2012,CFADRES30068421,REDACTED UNDER DP ACT,1043.42,RIVER COURT RES & NURSING HOME,231744,,People Services,Care Spot - Private (3rd),5701,B
18,Devon County Council,05/09/2012,CFADRES30067303,REDACTED UNDER DP ACT,5328.2,RIVIERA CARE LTD,88995,,People Services,Care Spot - Private (3rd),5701,B
18,Devon County Council,19/09/2012,CFADRES30067978,REDACTED UNDER DP ACT,4559.73,RIVIERA CARE LTD,88995,,People Services,Care Spot - Private (3rd),5701,B
18,Devon County Council,05/09/2012,CFADRES30067258,REDACTED UNDER DP ACT,23572.34,ROBERT OWEN COMMUNITIES,86977,,People Services,Care Spot - Private (3rd),5701,B
18,Devon County Council,19/09/2012,CFADRES30067933,REDACTED UNDER DP ACT,23572.34,ROBERT OWEN COMMUNITIES,86977,,People Services,Care Spot - Private (3rd),5701,B
18,Devon County Council,05/09/2012,CFADRES30067611,REDACTED UNDER DP ACT,10911.22,ROBOROUGH HOUSE NURSING HOME,160844,,People Services,Care Spot - Private (3rd),5701,B
18,Devon County Council,19/09/2012,CFADRES30068282,REDACTED UNDER DP ACT,10911.22,ROBOROUGH HOUSE NURSING HOME,160844,,People Services,Care Spot - Private (3rd),5701,B
18,Devon County Council,05/09/2012,CFADRES30067455,REDACTED UNDER DP ACT,5911.86,ROGERS D&SC T/A ASHDOWN RES HOME,90646,,People Services,Care Spot - Private (3rd),5701,B
18,Devon County Council,19/09/2012,CFADRES30068128,REDACTED UNDER DP ACT,6553.3,ROGERS D&SC T/A ASHDOWN RES HOME,90646,,People Services,Care Spot - Private (3rd),5701,B
18,Devon County Council,17/09/2012,CFADDAY30020124,REDACTED UNDER DP ACT,540,ROSE LODGE CARE HOME,157417,,People Services,Care Spot - Private (3rd),5701,B
18,Devon County Council,05/09/2012,CFADRES30067600,REDACTED UNDER DP ACT,8868.98,ROSE LODGE CARE HOME,157417,,People Services,Care Spot - Private (3rd),5701,B
18,Devon County Council,19/09/2012,CFADRES30068271,REDACTED UNDER DP ACT,8868.98,ROSE LODGE CARE HOME,157417,,People Services,Care Spot - Private (3rd),5701,B
18,Devon County Council,05/09/2012,CFADRES30067593,REDACTED UNDER DP ACT,543.6,ROSEACRE CARE LIMITED,156366,,People Services,Care Spot - Private (3rd),5701,B
18,Devon County Council,19/09/2012,CFADRES30068264,REDACTED UNDER DP ACT,543.6,ROSEACRE CARE LIMITED,156366,,People Services,Care Spot - Private (3rd),5701,B
18,Devon County Council,05/09/2012,CFADRES30067646,REDACTED UNDER DP ACT,912.52,ROSEDALE HOUSE,181940,,People Services,Care Spot - Private (3rd),5701,B
18,Devon County Council,19/09/2012,CFADRES30068317,REDACTED UNDER DP ACT,912.52,ROSEDALE HOUSE,181940,,People Services,Care Spot - Private (3rd),5701,B
18,Devon County Council,05/09/2012,CFADRES30067827,REDACTED UNDER DP ACT,607.04,ROSEHAVEN RESIDENTIAL CARE HOME,273171,,People Services,Care Spot - Private (3rd),5701,B
18,Devon County Council,19/09/2012,CFADRES30068496,REDACTED UNDER DP ACT,607.04,ROSEHAVEN RESIDENTIAL CARE HOME,273171,,People Services,Care Spot - Private (3rd),5701,B
18,Devon County Council,05/09/2012,CFADRES30067294,REDACTED UNDER DP ACT,7425.52,ROSEHILL REST HOME,88750,,People Services,Care Spot - Private (3rd),5701,B
18,Devon County Council,19/09/2012,CFADRES30067969,REDACTED UNDER DP ACT,7425.52,ROSEHILL REST HOME,88750,,People Services,Care Spot - Private (3rd),5701,B
18,Devon County Council,05/09/2012,CFADRES30067351,REDACTED UNDER DP ACT,3678.84,ROSEMONT RESIDENTIAL HOME,89560,,People Services,Care Spot - Private (3rd),5701,B
18,Devon County Council,19/09/2012,CFADRES30068026,REDACTED UNDER DP ACT,3678.84,ROSEMONT RESIDENTIAL HOME,89560,,People Services,Care Spot - Private (3rd),5701,B
18,Devon County Council,05/09/2012,CFADRES30067898,REDACTED UNDER DP ACT,882.8,ROSEWOOD CARE TA HOLMLEIGH NS HM,292353,,People Services,Care Spot - Private (3rd),5701,B
18,Devon County Council,19/09/2012,CFADRES30068568,REDACTED UNDER DP ACT,882.8,ROSEWOOD CARE TA HOLMLEIGH NS HM,292353,,People Services,Care Spot - Private (3rd),5701,B
18,Devon County Council,05/09/2012,CFADRES30067321,REDACTED UNDER DP ACT,787.92,ROUNDHAM COURT,89155,,People Services,Care Spot - Private (3rd),5701,B
18,Devon County Council,05/09/2012,CFADRES30067772,REDACTED UNDER DP ACT,782,ROWANS THE,242266,,People Services,Care Spot - Private (3rd),5701,B
18,Devon County Council,19/09/2012,CFADRES30068443,REDACTED UNDER DP ACT,782,ROWANS THE,242266,,People Services,Care Spot - Private (3rd),5701,B
18,Devon County Council,12/09/2012,CFADDAY30019853,REDACTED UNDER DP ACT,600,ROWE J,90959,,People Services,Individualised Support - Private (3rd),5706,B
18,Devon County Council,05/09/2012,CFADRES30067483,REDACTED UNDER DP ACT,3726.54,ROWE J,90959,,People Services,Care Spot - Private (3rd),5701,B
18,Devon County Council,19/09/2012,CFADRES30068156,REDACTED UNDER DP ACT,3726.54,ROWE J,90959,,People Services,Care Spot - Private (3rd),5701,B
18,Devon County Council,05/09/2012,CFADRES30067859,REDACTED UNDER DP ACT,868.36,ROYAL BRTSH LEGN TA DUNKIRK MEML,285004,,People Services,Care Spot - Private (3rd),5701,B
18,Devon County Council,19/09/2012,CFADRES30068529,REDACTED UNDER DP ACT,868.36,ROYAL BRTSH LEGN TA DUNKIRK MEML,285004,,People Services,Care Spot - Private (3rd),5701,B
18,Devon County Council,05/09/2012,CFADRES30067481,REDACTED UNDER DP ACT,17951.78,ROYAL MASONIC BVLNT INST-NO 4 AC,90938,,People Services,Care Spot - Private (3rd),5701,B
18,Devon County Council,19/09/2012,CFADRES30068154,REDACTED UNDER DP ACT,14376.54,ROYAL MASONIC BVLNT INST-NO 4 AC,90938,,People Services,Care Spot - Private (3rd),5701,B
18,Devon County Council,05/09/2012,CFADRES30067446,REDACTED UNDER DP ACT,12359.46,SAINTHILL HOUSE/VISION UK,90591,,People Services,Care Spot - Private (3rd),5701,B
18,Devon County Council,19/09/2012,CFADRES30068119,REDACTED UNDER DP ACT,11571.46,SAINTHILL HOUSE/VISION UK,90591,,People Services,Care Spot - Private (3rd),5701,B
18,Devon County Council,05/09/2012,CFADRES30067594,REDACTED UNDER DP ACT,17460.78,SANCTUARY CARE LTD {RESIDENTIAL),156414,,People Services,Care Spot - Private (3rd),5701,B
18,Devon County Council,05/09/2012,CFADRES30067595,REDACTED UNDER DP ACT,11406.48,SANCTUARY CARE LTD {RESIDENTIAL),156414,,People Services,Care Spot - Private (3rd),5701,B
18,Devon County Council,19/09/2012,CFADRES30068265,REDACTED UNDER DP ACT,13138.02,SANCTUARY CARE LTD {RESIDENTIAL),156414,,People Services,Care Spot - Private (3rd),5701,B
18,Devon County Council,19/09/2012,CFADRES30068266,REDACTED UNDER DP ACT,12876.52,SANCTUARY CARE LTD {RESIDENTIAL),156414,,People Services,Care Spot - Private (3rd),5701,B
18,Devon County Council,19/09/2012,CFADRES30068267,REDACTED UNDER DP ACT,3254.19,SANCTUARY CARE LTD {RESIDENTIAL),156414,,People Services,Care Spot - Private (3rd),5701,B
18,Devon County Council,19/09/2012,CFADRES30068109,REDACTED UNDER DP ACT,14680.42,SANCTUARY H ASSOC T/A GREENSLADE,90484,,People Services,Care Spot - Private (3rd),5701,B
18,Devon County Council,19/09/2012,CFADRES30068110,REDACTED UNDER DP ACT,11554.13,SANCTUARY H ASSOC T/A GREENSLADE,90484,,People Services,Care Spot - Private (3rd),5701,B
18,Devon County Council,05/09/2012,CFADRES17332317,REDACTED UNDER DP ACT,-1224.12,SANCTUARY H ASSOC T/A GREENSLADE,90484,,People Services,Nursing Income,9366,B
18,Devon County Council,19/09/2012,CFADRES17332325,REDACTED UNDER DP ACT,-1687.9,SANCTUARY H ASSOC T/A GREENSLADE,90484,,People Services,Nursing Income,9366,B
18,Devon County Council,05/09/2012,CFADRES30067897,REDACTED UNDER DP ACT,1081.66,SCIO HEALTH CARE LD TA HIGHFIELD,291988,,People Services,Care Spot - Private (3rd),5701,B
18,Devon County Council,19/09/2012,CFADRES30068566,REDACTED UNDER DP ACT,1081.66,SCIO HEALTH CARE LD TA HIGHFIELD,291988,,People Services,Care Spot - Private (3rd),5701,B
18,Devon County Council,05/09/2012,CFADRES30067466,REDACTED UNDER DP ACT,1354.76,SCOPE - FEES COLLECTION ACCOUNT,90767,,People Services,Care Spot - Private (3rd),5701,B
18,Devon County Council,19/09/2012,CFADRES30068139,REDACTED UNDER DP ACT,1354.76,SCOPE - FEES COLLECTION ACCOUNT,90767,,People Services,Care Spot - Private (3rd),5701,B
18,Devon County Council,05/09/2012,CFADRES30067327,REDACTED UNDER DP ACT,919.22,SCOPE FEES COLLECTION ACCOUNT,89217,,People Services,Care Spot - Private (3rd),5701,B
18,Devon County Council,19/09/2012,CFADRES30068002,REDACTED UNDER DP ACT,919.22,SCOPE FEES COLLECTION ACCOUNT,89217,,People Services,Care Spot - Private (3rd),5701,B
18,Devon County Council,05/09/2012,CFADRES30067324,REDACTED UNDER DP ACT,4479.66,SEASWIFT HOUSE LTD,89181,,People Services,Care Spot - Private (3rd),5701,B
18,Devon County Council,19/09/2012,CFADRES30067999,REDACTED UNDER DP ACT,4479.66,SEASWIFT HOUSE LTD,89181,,People Services,Care Spot - Private (3rd),5701,B
18,Devon County Council,05/09/2012,CFADRES30067422,REDACTED UNDER DP ACT,12652.59,SEATON THE,90393,,People Services,Care Spot - Private (3rd),5701,B
18,Devon County Council,05/09/2012,CFADRES30067322,REDACTED UNDER DP ACT,1390,SEFTON PARK,89168,,People Services,Care Spot - Private (3rd),5701,B
18,Devon County Council,19/09/2012,CFADRES30067997,REDACTED UNDER DP ACT,4125.71,SEFTON PARK,89168,,People Services,Care Spot - Private (3rd),5701,B
18,Devon County Council,05/09/2012,CFADRES30067451,REDACTED UNDER DP ACT,4798.6,SELF UNLIMITED,90612,,People Services,Care Spot - Private (3rd),5701,B
18,Devon County Council,19/09/2012,CFADRES30068124,REDACTED UNDER DP ACT,4798.6,SELF UNLIMITED,90612,,People Services,Care Spot - Private (3rd),5701,B
18,Devon County Council,05/09/2012,CFADRES30067761,REDACTED UNDER DP ACT,4146.66,SERENITA CARE HOME,237664,,People Services,Care Spot - Private (3rd),5701,B
18,Devon County Council,19/09/2012,CFADRES30068432,REDACTED UNDER DP ACT,4146.66,SERENITA CARE HOME,237664,,People Services,Care Spot - Private (3rd),5701,B
18,Devon County Council,05/09/2012,CFADRES30067798,REDACTED UNDER DP ACT,3079.32,SESAME,257301,,People Services,Care Spot - Private (3rd),5701,B
18,Devon County Council,19/09/2012,CFADRES30068468,REDACTED UNDER DP ACT,3079.32,SESAME,257301,,People Services,Care Spot - Private (3rd),5701,B
18,Devon County Council,05/09/2012,CFADRES30067763,REDACTED UNDER DP ACT,1100,SHIRE HOUSE,238334,,People Services,Care Spot - Private (3rd),5701,B
18,Devon County Council,19/09/2012,CFADRES30068434,REDACTED UNDER DP ACT,1100,SHIRE HOUSE,238334,,People Services,Care Spot - Private (3rd),5701,B
18,Devon County Council,05/09/2012,CFADRES30067338,REDACTED UNDER DP ACT,4302.1,SILVER THREADS CARE HOME(C IN C),89357,,People Services,Care Spot - Private (3rd),5701,B
18,Devon County Council,19/09/2012,CFADRES30068013,REDACTED UNDER DP ACT,4302.1,SILVER THREADS CARE HOME(C IN C),89357,,People Services,Care Spot - Private (3rd),5701,B
18,Devon County Council,19/09/2012,CFADRES30068069,REDACTED UNDER DP ACT,9472.94,SILVERLEIGH CEDARS,90133,,People Services,Care Spot - Private (3rd),5701,B
18,Devon County Council,05/09/2012,CFADRES30067450,REDACTED UNDER DP ACT,7229.16,SMITH JR & RM,90606,,People Services,Care Spot - Private (3rd),5701,B
18,Devon County Council,19/09/2012,CFADRES30068123,REDACTED UNDER DP ACT,7529.98,SMITH JR & RM,90606,,People Services,Care Spot - Private (3rd),5701,B
18,Devon County Council,05/09/2012,CFADRES30067519,REDACTED UNDER DP ACT,6393.62,SOMERFORDE RESIDENTIAL HOME,102169,,People Services,Care Spot - Private (3rd),5701,B
18,Devon County Council,19/09/2012,CFADRES30068191,REDACTED UNDER DP ACT,6393.62,SOMERFORDE RESIDENTIAL HOME,102169,,People Services,Care Spot - Private (3rd),5701,B
18,Devon County Council,05/09/2012,CFADRES30067499,REDACTED UNDER DP ACT,2347.98,SOMERSET CARE LTD (HOMES MODULE),97320,,People Services,Care Spot - Private (3rd),5701,B
18,Devon County Council,19/09/2012,CFADRES30068172,REDACTED UNDER DP ACT,2618.48,SOMERSET CARE LTD (HOMES MODULE),97320,,People Services,Care Spot - Private (3rd),5701,B
